 Batch Number,Vendor Name,Invoice Number, Line,Line Amount,Account Description,Issue Date ,Total Amount Paid
221012E,HAZLEMERE WINDOW CO.LTD,0000025392,1,"59,121.38",DEVELOPMENT EXP - CONTRACTORS,01/11/12,"59,121.38"
291012C,SPEAKERS TRUST,0738,1,"1,545.00",TRAINING & CONFERENCES,01/11/12,"1,545.00"
291012C,G WORRALL & SON LIMITED=======,097064,1,369.00,TACTICAL DAY TO DAY,01/11/12,369.00
171012E,COMPASS GROUP PLC============,10015304,1,394.00,REFRESHMENTS,01/11/12,394.00
261012E,CARILLION COMMUNICATIONS LTD==,1011138,1,289.00,TACTICAL DAY TO DAY,01/11/12,289.00
251012E,ARVAL UK LTD,1019090643,1,792.82,CONTRACT HIRE,01/11/12,792.82
291012E,*SPRUE SAFETY PRODUCTS LTD====,1037631,1,632.00,FIRE DETECTORS,01/11/12,632.00
291012E,*SPRUE SAFETY PRODUCTS LTD====,1038130,1,"1,011.20",FIRE DETECTORS,01/11/12,"1,011.20"
291012E,*SPRUE SAFETY PRODUCTS LTD====,1038131,1,"1,011.20",FIRE DETECTORS,01/11/12,"1,011.20"
291012E,*SPRUE SAFETY PRODUCTS LTD====,1038134,1,"1,011.20",FIRE DETECTORS,01/11/12,"1,011.20"
139938,CILEX=========================,10744,1,290.00,PRACT CERT & DRIVING LICENCES,01/11/12,290.00
251012E,DELOITTE LLP,1110853461,1,"2,973.24",PROFESSIONAL SERVICES,01/11/12,"2,973.24"
251012E,DELOITTE LLP,1110853624,1,"1,362.73",PROFESSIONAL SERVICES,01/11/12,"1,362.73"
139934,BOURNE CONSTRUCTION COMPANY,12/392,1,800.00,STRATEGIC (NON CYCLICAL),01/11/12,"1,400.00"
139934,BOURNE CONSTRUCTION COMPANY,12/392,2,600.00,STRATEGIC (NON CYCLICAL),01/11/12,
261012E,BUREAU VERITAS HS&E LTD=======,12019129,1,"91,451.47",SCIENTIFIC SERVICES,01/11/12,"91,451.47"
261012E,CARPETS & FLOOR COVERS DIRECT=,1249,1,"1,596.00",FIXTURES & FITTINGS,01/11/12,"1,596.00"
261012E,CARPETS & FLOOR COVERS DIRECT=,1250,1,708.00,FIXTURES & FITTINGS,01/11/12,708.00
261012E,CARPETS & FLOOR COVERS DIRECT=,1251,1,"2,520.00",FIXTURES & FITTINGS,01/11/12,"2,520.00"
139931,AFFINITY WATER,12960038T,1,389.06,WATER & SEWERAGE RATES,01/11/12,389.06
139934,B NOKES CONTRACTS LTD,1560,1,"4,830.00",STRATEGIC (NON CYCLICAL),01/11/12,"8,652.00"
139934,B NOKES CONTRACTS LTD,1560,2,"3,822.00",STRATEGIC (NON CYCLICAL),01/11/12,
251012E,BRISTOL UNIFORMS LTD==========,195448,1,"1,070.00",CLOTHING,01/11/12,"1,070.00"
251012E,AUTOGLASS LIMITED=============,20028565,1,651.02,WINDSCREEN & TYRE CHARGES,01/11/12,651.02
261012E,DYSLEXIA ASSESSMENT & CONSULTA,2051,1,475.00,TRAINING & CONFERENCES,01/11/12,475.00
139931,AFFINITY WATER,2094979-4J,1,322.50,WATER & SEWERAGE RATES,01/11/12,322.50
139938,CILEX=========================,21615,1,290.00,PRACT CERT & DRIVING LICENCES,01/11/12,290.00
261012E,SOUTHERN ASBESTOS SERVICES LTD,216766,1,"3,910.00",DEVELOPMENT EXP - CONTRACTORS,01/11/12,"3,910.00"
181012E,TNS UK LTD,260113267,1,"2,500.00",CONSULTANTS,01/11/12,"2,500.00"
800014293,ADECCO UK LIMITED=============,26180947,1,568.76,FRS STAFF AGENCY,01/11/12,568.76
800014294,ADECCO UK LIMITED=============,26180948,1,533.46,FRS STAFF AGENCY,01/11/12,533.46
800014295,ADECCO UK LIMITED=============,26180949,1,424.70,FRS STAFF AGENCY,01/11/12,424.70
800014296,ADECCO UK LIMITED=============,26180950,1,386.05,FRS STAFF AGENCY,01/11/12,386.05
800014297,ADECCO UK LIMITED=============,26180951,1,386.05,FRS STAFF AGENCY,01/11/12,386.05
800014298,ADECCO UK LIMITED=============,26180952,1,565.42,FRS STAFF AGENCY,01/11/12,565.42
800014299,ADECCO UK LIMITED=============,26180953,1,503.30,FRS STAFF AGENCY,01/11/12,503.30
800014300,ADECCO UK LIMITED=============,26180954,1,690.55,FRS STAFF AGENCY,01/11/12,690.55
800014301,ADECCO UK LIMITED=============,26180955,1,"1,135.40",FRS STAFF AGENCY,01/11/12,"1,135.40"
800014302,ADECCO UK LIMITED=============,26180956,1,"1,081.75",FRS STAFF AGENCY,01/11/12,"1,081.75"
800014303,ADECCO UK LIMITED=============,26180957,1,576.80,FRS STAFF AGENCY,01/11/12,576.80
800014304,ADECCO UK LIMITED=============,26180958,1,576.45,FRS STAFF AGENCY,01/11/12,576.45
800014305,ADECCO UK LIMITED=============,26180959,1,"1,426.25",FRS STAFF AGENCY,01/11/12,"1,426.25"
800014306,ADECCO UK LIMITED=============,26180960,1,406.95,FRS STAFF AGENCY,01/11/12,406.95
800014307,ADECCO UK LIMITED=============,26180961,1,499.10,FRS STAFF AGENCY,01/11/12,499.10
800014308,ADECCO UK LIMITED=============,26180962,1,959.54,FRS STAFF AGENCY,01/11/12,959.54
800014309,ADECCO UK LIMITED=============,26180963,1,698.95,FRS STAFF AGENCY,01/11/12,698.95
800014310,ADECCO UK LIMITED=============,26180964,1,576.80,FRS STAFF AGENCY,01/11/12,576.80
800014313,ADECCO UK LIMITED=============,26180967,1,259.56,FRS STAFF AGENCY,01/11/12,259.56
800014314,ADECCO UK LIMITED=============,26180968,1,432.60,FRS STAFF AGENCY,01/11/12,432.60
800014315,ADECCO UK LIMITED=============,26180969,1,834.90,FRS STAFF AGENCY,01/11/12,834.90
800014316,ADECCO UK LIMITED=============,26180970,1,499.80,FRS STAFF AGENCY,01/11/12,499.80
800014317,ADECCO UK LIMITED=============,26180971,1,579.60,FRS STAFF AGENCY,01/11/12,579.60
800014318,ADECCO UK LIMITED=============,26185443,1,"1,749.96",FRS STAFF AGENCY,01/11/12,"1,749.96"
800014319,ADECCO UK LIMITED=============,26185444,1,"1,296.75",FRS STAFF AGENCY,01/11/12,"1,296.75"
251012E,MCGRATH BROS (WASTE CONTROL) L,270088,1,29.01,REFUSE COLLECTION,01/11/12,"13,020.91"
251012E,MCGRATH BROS (WASTE CONTROL) L,270088,2,241.60,REFUSE COLLECTION,01/11/12,
251012E,MCGRATH BROS (WASTE CONTROL) L,270088,3,74.80,REFUSE COLLECTION,01/11/12,
251012E,MCGRATH BROS (WASTE CONTROL) L,270088,4,46.00,REFUSE COLLECTION,01/11/12,
251012E,MCGRATH BROS (WASTE CONTROL) L,270088,5,52.50,REFUSE COLLECTION,01/11/12,
251012E,MCGRATH BROS (WASTE CONTROL) L,270088,6,89.20,REFUSE COLLECTION,01/11/12,
251012E,MCGRATH BROS (WASTE CONTROL) L,270088,7,60.40,REFUSE COLLECTION,01/11/12,
251012E,MCGRATH BROS (WASTE CONTROL) L,270088,8,120.80,REFUSE COLLECTION,01/11/12,
251012E,MCGRATH BROS (WASTE CONTROL) L,270088,9,90.60,REFUSE COLLECTION,01/11/12,
251012E,MCGRATH BROS (WASTE CONTROL) L,270088,10,89.20,REFUSE COLLECTION,01/11/12,
251012E,MCGRATH BROS (WASTE CONTROL) L,270088,11,45.30,REFUSE COLLECTION,01/11/12,
251012E,MCGRATH BROS (WASTE CONTROL) L,270088,12,45.30,REFUSE COLLECTION,01/11/12,
251012E,MCGRATH BROS (WASTE CONTROL) L,270088,13,76.20,REFUSE COLLECTION,01/11/12,
251012E,MCGRATH BROS (WASTE CONTROL) L,270088,14,105.00,REFUSE COLLECTION,01/11/12,
251012E,MCGRATH BROS (WASTE CONTROL) L,270088,15,211.40,REFUSE COLLECTION,01/11/12,
251012E,MCGRATH BROS (WASTE CONTROL) L,270088,16,89.20,REFUSE COLLECTION,01/11/12,
251012E,MCGRATH BROS (WASTE CONTROL) L,270088,17,211.40,REFUSE COLLECTION,01/11/12,
251012E,MCGRATH BROS (WASTE CONTROL) L,270088,18,60.40,REFUSE COLLECTION,01/11/12,
251012E,MCGRATH BROS (WASTE CONTROL) L,270088,19,181.20,REFUSE COLLECTION,01/11/12,
251012E,MCGRATH BROS (WASTE CONTROL) L,270088,20,241.60,REFUSE COLLECTION,01/11/12,
251012E,MCGRATH BROS (WASTE CONTROL) L,270088,21,281.10,REFUSE COLLECTION,01/11/12,
251012E,MCGRATH BROS (WASTE CONTROL) L,270088,22,151.00,REFUSE COLLECTION,01/11/12,
251012E,MCGRATH BROS (WASTE CONTROL) L,270088,23,52.50,REFUSE COLLECTION,01/11/12,
251012E,MCGRATH BROS (WASTE CONTROL) L,270088,24,60.40,REFUSE COLLECTION,01/11/12,
251012E,MCGRATH BROS (WASTE CONTROL) L,270088,25,53.20,REFUSE COLLECTION,01/11/12,
251012E,MCGRATH BROS (WASTE CONTROL) L,270088,26,38.10,REFUSE COLLECTION,01/11/12,
251012E,MCGRATH BROS (WASTE CONTROL) L,270088,27,89.20,REFUSE COLLECTION,01/11/12,
251012E,MCGRATH BROS (WASTE CONTROL) L,270088,28,60.40,REFUSE COLLECTION,01/11/12,
251012E,MCGRATH BROS (WASTE CONTROL) L,270088,29,211.40,REFUSE COLLECTION,01/11/12,
251012E,MCGRATH BROS (WASTE CONTROL) L,270088,30,162.60,REFUSE COLLECTION,01/11/12,
251012E,MCGRATH BROS (WASTE CONTROL) L,270088,31,68.30,REFUSE COLLECTION,01/11/12,
251012E,MCGRATH BROS (WASTE CONTROL) L,270088,32,89.20,REFUSE COLLECTION,01/11/12,
251012E,MCGRATH BROS (WASTE CONTROL) L,270088,33,241.60,REFUSE COLLECTION,01/11/12,
251012E,MCGRATH BROS (WASTE CONTROL) L,270088,34,89.20,REFUSE COLLECTION,01/11/12,
251012E,MCGRATH BROS (WASTE CONTROL) L,270088,35,89.20,REFUSE COLLECTION,01/11/12,
251012E,MCGRATH BROS (WASTE CONTROL) L,270088,36,105.00,REFUSE COLLECTION,01/11/12,
251012E,MCGRATH BROS (WASTE CONTROL) L,270088,37,89.20,REFUSE COLLECTION,01/11/12,
251012E,MCGRATH BROS (WASTE CONTROL) L,270088,38,120.80,REFUSE COLLECTION,01/11/12,
251012E,MCGRATH BROS (WASTE CONTROL) L,270088,39,92.00,REFUSE COLLECTION,01/11/12,
251012E,MCGRATH BROS (WASTE CONTROL) L,270088,40,45.30,REFUSE COLLECTION,01/11/12,
251012E,MCGRATH BROS (WASTE CONTROL) L,270088,41,178.40,REFUSE COLLECTION,01/11/12,
251012E,MCGRATH BROS (WASTE CONTROL) L,270088,42,162.60,REFUSE COLLECTION,01/11/12,
251012E,MCGRATH BROS (WASTE CONTROL) L,270088,43,89.20,REFUSE COLLECTION,01/11/12,
251012E,MCGRATH BROS (WASTE CONTROL) L,270088,44,60.40,REFUSE COLLECTION,01/11/12,
251012E,MCGRATH BROS (WASTE CONTROL) L,270088,45,60.40,REFUSE COLLECTION,01/11/12,
251012E,MCGRATH BROS (WASTE CONTROL) L,270088,46,241.60,REFUSE COLLECTION,01/11/12,
251012E,MCGRATH BROS (WASTE CONTROL) L,270088,47,178.40,REFUSE COLLECTION,01/11/12,
251012E,MCGRATH BROS (WASTE CONTROL) L,270088,48,59.70,REFUSE COLLECTION,01/11/12,
251012E,MCGRATH BROS (WASTE CONTROL) L,270088,49,60.40,REFUSE COLLECTION,01/11/12,
251012E,MCGRATH BROS (WASTE CONTROL) L,270088,50,45.30,REFUSE COLLECTION,01/11/12,
251012E,MCGRATH BROS (WASTE CONTROL) L,270088,51,81.30,REFUSE COLLECTION,01/11/12,
251012E,MCGRATH BROS (WASTE CONTROL) L,270088,52,227.20,REFUSE COLLECTION,01/11/12,
251012E,MCGRATH BROS (WASTE CONTROL) L,270088,53,60.40,REFUSE COLLECTION,01/11/12,
251012E,MCGRATH BROS (WASTE CONTROL) L,270088,54,60.40,REFUSE COLLECTION,01/11/12,
251012E,MCGRATH BROS (WASTE CONTROL) L,270088,55,66.90,REFUSE COLLECTION,01/11/12,
251012E,MCGRATH BROS (WASTE CONTROL) L,270088,56,60.40,REFUSE COLLECTION,01/11/12,
251012E,MCGRATH BROS (WASTE CONTROL) L,270088,57,92.00,REFUSE COLLECTION,01/11/12,
251012E,MCGRATH BROS (WASTE CONTROL) L,270088,58,53.20,REFUSE COLLECTION,01/11/12,
251012E,MCGRATH BROS (WASTE CONTROL) L,270088,59,120.80,REFUSE COLLECTION,01/11/12,
251012E,MCGRATH BROS (WASTE CONTROL) L,270088,60,75.80,REFUSE COLLECTION,01/11/12,
251012E,MCGRATH BROS (WASTE CONTROL) L,270088,61,241.60,REFUSE COLLECTION,01/11/12,
251012E,MCGRATH BROS (WASTE CONTROL) L,270088,62,81.30,REFUSE COLLECTION,01/11/12,
251012E,MCGRATH BROS (WASTE CONTROL) L,270088,63,81.30,REFUSE COLLECTION,01/11/12,
251012E,MCGRATH BROS (WASTE CONTROL) L,270088,64,52.50,REFUSE COLLECTION,01/11/12,
251012E,MCGRATH BROS (WASTE CONTROL) L,270088,65,211.40,REFUSE COLLECTION,01/11/12,
251012E,MCGRATH BROS (WASTE CONTROL) L,270088,66,60.40,REFUSE COLLECTION,01/11/12,
251012E,MCGRATH BROS (WASTE CONTROL) L,270088,67,225.80,REFUSE COLLECTION,01/11/12,
251012E,MCGRATH BROS (WASTE CONTROL) L,270088,68,60.40,REFUSE COLLECTION,01/11/12,
251012E,MCGRATH BROS (WASTE CONTROL) L,270088,69,89.20,REFUSE COLLECTION,01/11/12,
251012E,MCGRATH BROS (WASTE CONTROL) L,270088,70,66.90,REFUSE COLLECTION,01/11/12,
251012E,MCGRATH BROS (WASTE CONTROL) L,270088,71,74.80,REFUSE COLLECTION,01/11/12,
251012E,MCGRATH BROS (WASTE CONTROL) L,270088,72,89.20,REFUSE COLLECTION,01/11/12,
251012E,MCGRATH BROS (WASTE CONTROL) L,270088,73,60.40,REFUSE COLLECTION,01/11/12,
251012E,MCGRATH BROS (WASTE CONTROL) L,270088,74,136.60,REFUSE COLLECTION,01/11/12,
251012E,MCGRATH BROS (WASTE CONTROL) L,270088,75,53.20,REFUSE COLLECTION,01/11/12,
251012E,MCGRATH BROS (WASTE CONTROL) L,270088,76,89.20,REFUSE COLLECTION,01/11/12,
251012E,MCGRATH BROS (WASTE CONTROL) L,270088,77,76.20,REFUSE COLLECTION,01/11/12,
251012E,MCGRATH BROS (WASTE CONTROL) L,270088,78,89.20,REFUSE COLLECTION,01/11/12,
251012E,MCGRATH BROS (WASTE CONTROL) L,270088,79,92.00,REFUSE COLLECTION,01/11/12,
251012E,MCGRATH BROS (WASTE CONTROL) L,270088,80,60.40,REFUSE COLLECTION,01/11/12,
251012E,MCGRATH BROS (WASTE CONTROL) L,270088,81,60.40,REFUSE COLLECTION,01/11/12,
251012E,MCGRATH BROS (WASTE CONTROL) L,270088,82,15.10,REFUSE COLLECTION,01/11/12,
251012E,MCGRATH BROS (WASTE CONTROL) L,270088,83,60.40,REFUSE COLLECTION,01/11/12,
251012E,MCGRATH BROS (WASTE CONTROL) L,270088,84,225.80,REFUSE COLLECTION,01/11/12,
251012E,MCGRATH BROS (WASTE CONTROL) L,270088,85,211.40,REFUSE COLLECTION,01/11/12,
251012E,MCGRATH BROS (WASTE CONTROL) L,270088,86,89.20,REFUSE COLLECTION,01/11/12,
251012E,MCGRATH BROS (WASTE CONTROL) L,270088,87,53.20,REFUSE COLLECTION,01/11/12,
251012E,MCGRATH BROS (WASTE CONTROL) L,270088,88,92.00,REFUSE COLLECTION,01/11/12,
251012E,MCGRATH BROS (WASTE CONTROL) L,270088,89,89.20,REFUSE COLLECTION,01/11/12,
251012E,MCGRATH BROS (WASTE CONTROL) L,270088,90,52.50,REFUSE COLLECTION,01/11/12,
251012E,MCGRATH BROS (WASTE CONTROL) L,270088,91,411.40,REFUSE COLLECTION,01/11/12,
251012E,MCGRATH BROS (WASTE CONTROL) L,270088,92,52.50,REFUSE COLLECTION,01/11/12,
251012E,MCGRATH BROS (WASTE CONTROL) L,270088,93,60.40,REFUSE COLLECTION,01/11/12,
251012E,MCGRATH BROS (WASTE CONTROL) L,270088,94,241.60,REFUSE COLLECTION,01/11/12,
251012E,MCGRATH BROS (WASTE CONTROL) L,270088,95,60.40,REFUSE COLLECTION,01/11/12,
251012E,MCGRATH BROS (WASTE CONTROL) L,270088,96,74.80,REFUSE COLLECTION,01/11/12,
251012E,MCGRATH BROS (WASTE CONTROL) L,270088,97,81.30,REFUSE COLLECTION,01/11/12,
251012E,MCGRATH BROS (WASTE CONTROL) L,270088,98,241.60,REFUSE COLLECTION,01/11/12,
251012E,MCGRATH BROS (WASTE CONTROL) L,270088,99,89.20,REFUSE COLLECTION,01/11/12,
251012E,MCGRATH BROS (WASTE CONTROL) L,270088,100,"1,099.80",REFUSE COLLECTION,01/11/12,
251012E,MCGRATH BROS (WASTE CONTROL) L,270088,101,60.40,REFUSE COLLECTION,01/11/12,
251012E,MCGRATH BROS (WASTE CONTROL) L,270088,102,81.30,REFUSE COLLECTION,01/11/12,
251012E,MCGRATH BROS (WASTE CONTROL) L,270088,103,81.30,REFUSE COLLECTION,01/11/12,
251012E,MCGRATH BROS (WASTE CONTROL) L,270088,104,241.60,REFUSE COLLECTION,01/11/12,
251012E,MCGRATH BROS (WASTE CONTROL) L,270088,105,15.10,REFUSE COLLECTION,01/11/12,
251012E,MCGRATH BROS (WASTE CONTROL) L,270088,106,92.00,REFUSE COLLECTION,01/11/12,
251012E,MCGRATH BROS (WASTE CONTROL) L,270088,107,66.90,REFUSE COLLECTION,01/11/12,
251012E,MCGRATH BROS (WASTE CONTROL) L,270088,108,168.20,REFUSE COLLECTION,01/11/12,
251012E,MCGRATH BROS (WASTE CONTROL) L,270088,109,89.20,REFUSE COLLECTION,01/11/12,
251012E,MCGRATH BROS (WASTE CONTROL) L,270088,110,81.30,REFUSE COLLECTION,01/11/12,
251012E,MCGRATH BROS (WASTE CONTROL) L,270088,111,84.50,REFUSE COLLECTION,01/11/12,
251012E,MCGRATH BROS (WASTE CONTROL) L,270088,112,53.20,REFUSE COLLECTION,01/11/12,
251012E,MCGRATH BROS (WASTE CONTROL) L,270088,113,60.40,REFUSE COLLECTION,01/11/12,
251012E,MCGRATH BROS (WASTE CONTROL) L,270088,114,45.30,REFUSE COLLECTION,01/11/12,
251012E,MCGRATH BROS (WASTE CONTROL) L,270088,115,60.40,REFUSE COLLECTION,01/11/12,
261012E,CLASSIC VIDEO INTERNATIONAL===,36570,1,"47,478.50",PUBLIC RELATIONS,01/11/12,"47,478.50"
291012C,BURGES SALMON=================,376279,1,660.00,DISPOSAL COSTS - LEGAL COSTS,01/11/12,660.00
191012C,W & E DERRICK BLDG. CONT.=====,4023,1,"2,355.00",DAY TO DAY MINOR IMPS,01/11/12,"2,355.00"
291012E,MELVILLE EXHIB &EVENT SERVICES,420204,1,"9,496.38",PUBLIC RELATIONS,01/11/12,"9,496.38"
291012E,MELVILLE EXHIB &EVENT SERVICES,420211,1,"14,573.72",PUBLIC RELATIONS,01/11/12,"14,573.72"
291012E,MELVILLE EXHIB &EVENT SERVICES,421130,1,"4,209.50",PUBLIC RELATIONS,01/11/12,"4,209.50"
291012E,MELVILLE EXHIB &EVENT SERVICES,421138,1,"2,292.00",PUBLIC RELATIONS,01/11/12,"2,292.00"
261012E,SPORTSAFE UK LTD==============,438384,1,315.72,GYM EQUIPMENT,01/11/12,778.72
261012E,SPORTSAFE UK LTD==============,438384,2,69.00,GYM EQUIPMENT,01/11/12,
261012E,SPORTSAFE UK LTD==============,438384,3,49.00,GYM EQUIPMENT,01/11/12,
261012E,SPORTSAFE UK LTD==============,438384,4,345.00,GYM EQUIPMENT,01/11/12,
301012F,R J HOLLAND LTD===============,4614,1,"3,978.00",STRATEGIC (NON CYCLICAL),01/11/12,"5,263.00"
301012F,R J HOLLAND LTD===============,4614,2,"1,285.00",STRATEGIC (NON CYCLICAL),01/11/12,
291012C,R J HOLLAND LTD===============,4615,1,"4,465.00",STRATEGIC (NON CYCLICAL),01/11/12,"4,465.00"
291012C,R J HOLLAND LTD===============,4616,1,"2,159.00",STRATEGIC (NON CYCLICAL),01/11/12,"2,159.00"
301012F,URS SCOTT WILSON LIMITED,5295404,1,"14,217.56",PROFESSIONAL FEES - MISC,01/11/12,"14,217.56"
301012F,J HUDSON & CO (WHISTLES)LTD,54359,1,659.67,GENERAL CONSUMABLES,01/11/12,659.67
800014142,*GREENHAM TRADING LTD=========,5554184,1,15.84,HYGIENE,01/11/12,252.09
800014142,*GREENHAM TRADING LTD=========,5554184,2,15.84,HYGIENE,01/11/12,
800014142,*GREENHAM TRADING LTD=========,5554184,3,23.44,HYGIENE,01/11/12,
800014142,*GREENHAM TRADING LTD=========,5554184,4,27.30,HYGIENE,01/11/12,
800014142,*GREENHAM TRADING LTD=========,5554184,5,9.60,HYGIENE,01/11/12,
800014142,*GREENHAM TRADING LTD=========,5554184,6,0.50,CATERING EQUIPMENT,01/11/12,
800014142,*GREENHAM TRADING LTD=========,5554184,7,2.28,HYGIENE,01/11/12,
800014142,*GREENHAM TRADING LTD=========,5554184,8,17.58,HYGIENE,01/11/12,
800014142,*GREENHAM TRADING LTD=========,5554184,9,4.12,HYGIENE,01/11/12,
800014142,*GREENHAM TRADING LTD=========,5554184,10,7.80,HYGIENE,01/11/12,
800014142,*GREENHAM TRADING LTD=========,5554184,11,11.24,HYGIENE,01/11/12,
800014142,*GREENHAM TRADING LTD=========,5554184,12,38.85,HYGIENE,01/11/12,
800014142,*GREENHAM TRADING LTD=========,5554184,13,38.85,HYGIENE,01/11/12,
800014142,*GREENHAM TRADING LTD=========,5554184,14,38.85,HYGIENE,01/11/12,
800014143,*GREENHAM TRADING LTD=========,5554185,1,16.38,HYGIENE,01/11/12,279.46
800014143,*GREENHAM TRADING LTD=========,5554185,2,3.96,HYGIENE,01/11/12,
800014143,*GREENHAM TRADING LTD=========,5554185,3,17.58,HYGIENE,01/11/12,
800014143,*GREENHAM TRADING LTD=========,5554185,4,3.16,HYGIENE,01/11/12,
800014143,*GREENHAM TRADING LTD=========,5554185,5,1.63,HYGIENE,01/11/12,
800014143,*GREENHAM TRADING LTD=========,5554185,6,4.00,HYGIENE,01/11/12,
800014143,*GREENHAM TRADING LTD=========,5554185,7,16.38,HYGIENE,01/11/12,
800014143,*GREENHAM TRADING LTD=========,5554185,8,20.98,HYGIENE,01/11/12,
800014143,*GREENHAM TRADING LTD=========,5554185,9,41.77,HYGIENE,01/11/12,
800014143,*GREENHAM TRADING LTD=========,5554185,10,4.56,HYGIENE,01/11/12,
800014143,*GREENHAM TRADING LTD=========,5554185,11,14.77,HYGIENE,01/11/12,
800014143,*GREENHAM TRADING LTD=========,5554185,12,3.96,HYGIENE,01/11/12,
800014143,*GREENHAM TRADING LTD=========,5554185,13,1.63,HYGIENE,01/11/12,
800014143,*GREENHAM TRADING LTD=========,5554185,14,4.00,HYGIENE,01/11/12,
800014143,*GREENHAM TRADING LTD=========,5554185,15,16.38,HYGIENE,01/11/12,
800014143,*GREENHAM TRADING LTD=========,5554185,16,20.98,HYGIENE,01/11/12,
800014143,*GREENHAM TRADING LTD=========,5554185,17,1.58,HYGIENE,01/11/12,
800014143,*GREENHAM TRADING LTD=========,5554185,18,41.77,HYGIENE,01/11/12,
800014143,*GREENHAM TRADING LTD=========,5554185,19,4.56,HYGIENE,01/11/12,
800014143,*GREENHAM TRADING LTD=========,5554185,20,14.77,HYGIENE,01/11/12,
800014143,*GREENHAM TRADING LTD=========,5554185,21,3.96,HYGIENE,01/11/12,
800014143,*GREENHAM TRADING LTD=========,5554185,22,17.58,HYGIENE,01/11/12,
800014143,*GREENHAM TRADING LTD=========,5554185,23,3.12,HYGIENE,01/11/12,
139931,BRITISH GAS BUSINESS==========,575346901,1,257.03,ELECTRICITY,01/11/12,257.03
139926,BRITISH GAS BUSINESS==========,580259991,1,495.57,ELECTRICITY,01/11/12,"13,740.22"
139926,BRITISH GAS BUSINESS==========,580259991,2,341.80,ELECTRICITY,01/11/12,
139926,BRITISH GAS BUSINESS==========,580259991,3,526.26,ELECTRICITY,01/11/12,
139926,BRITISH GAS BUSINESS==========,580259991,4,559.71,ELECTRICITY,01/11/12,
139926,BRITISH GAS BUSINESS==========,580259991,5,613.30,ELECTRICITY,01/11/12,
139926,BRITISH GAS BUSINESS==========,580259991,6,473.20,ELECTRICITY,01/11/12,
139926,BRITISH GAS BUSINESS==========,580259991,7,462.39,ELECTRICITY,01/11/12,
139926,BRITISH GAS BUSINESS==========,580259991,8,317.00,ELECTRICITY,01/11/12,
139926,BRITISH GAS BUSINESS==========,580259991,9,264.12,ELECTRICITY,01/11/12,
139926,BRITISH GAS BUSINESS==========,580259991,10,546.53,ELECTRICITY,01/11/12,
139926,BRITISH GAS BUSINESS==========,580259991,11,327.42,ELECTRICITY,01/11/12,
139926,BRITISH GAS BUSINESS==========,580259991,12,565.26,ELECTRICITY,01/11/12,
139926,BRITISH GAS BUSINESS==========,580259991,13,423.32,ELECTRICITY,01/11/12,
139926,BRITISH GAS BUSINESS==========,580259991,14,674.40,ELECTRICITY,01/11/12,
139926,BRITISH GAS BUSINESS==========,580259991,15,579.79,ELECTRICITY,01/11/12,
139926,BRITISH GAS BUSINESS==========,580259991,16,309.79,ELECTRICITY,01/11/12,
139926,BRITISH GAS BUSINESS==========,580259991,17,153.60,ELECTRICITY,01/11/12,
139926,BRITISH GAS BUSINESS==========,580259991,18,206.15,ELECTRICITY,01/11/12,
139926,BRITISH GAS BUSINESS==========,580259991,19,571.45,ELECTRICITY,01/11/12,
139926,BRITISH GAS BUSINESS==========,580259991,20,566.08,ELECTRICITY,01/11/12,
139926,BRITISH GAS BUSINESS==========,580259991,21,56.14,ELECTRICITY,01/11/12,
139926,BRITISH GAS BUSINESS==========,580259991,22,32.83,ELECTRICITY,01/11/12,
139926,BRITISH GAS BUSINESS==========,580259991,23,63.73,ELECTRICITY,01/11/12,
139926,BRITISH GAS BUSINESS==========,580259991,24,509.09,ELECTRICITY,01/11/12,
139926,BRITISH GAS BUSINESS==========,580259991,25,45.41,ELECTRICITY,01/11/12,
139926,BRITISH GAS BUSINESS==========,580259991,26,48.86,ELECTRICITY,01/11/12,
139926,BRITISH GAS BUSINESS==========,580259991,27,18.10,ELECTRICITY,01/11/12,
139926,BRITISH GAS BUSINESS==========,580259991,28,"1,138.04",ELECTRICITY,01/11/12,
139926,BRITISH GAS BUSINESS==========,580259991,29,"1,183.45",ELECTRICITY,01/11/12,
139926,BRITISH GAS BUSINESS==========,580259991,30,762.29,ELECTRICITY,01/11/12,
139926,BRITISH GAS BUSINESS==========,580259991,31,390.52,ELECTRICITY,01/11/12,
139926,BRITISH GAS BUSINESS==========,580259991,32,272.62,ELECTRICITY,01/11/12,
139926,BRITISH GAS BUSINESS==========,580259991,33,242.00,ELECTRICITY,01/11/12,
139927,BRITISH GAS BUSINESS==========,580259992,1,348.53,ELECTRICITY,01/11/12,"12,943.25"
139927,BRITISH GAS BUSINESS==========,580259992,2,348.55,ELECTRICITY,01/11/12,
139927,BRITISH GAS BUSINESS==========,580259992,3,835.49,ELECTRICITY,01/11/12,
139927,BRITISH GAS BUSINESS==========,580259992,4,533.56,ELECTRICITY,01/11/12,
139927,BRITISH GAS BUSINESS==========,580259992,5,36.41,ELECTRICITY,01/11/12,
139927,BRITISH GAS BUSINESS==========,580259992,6,18.91,ELECTRICITY,01/11/12,
139927,BRITISH GAS BUSINESS==========,580259992,7,313.04,ELECTRICITY,01/11/12,
139927,BRITISH GAS BUSINESS==========,580259992,8,388.66,ELECTRICITY,01/11/12,
139927,BRITISH GAS BUSINESS==========,580259992,9,397.17,ELECTRICITY,01/11/12,
139927,BRITISH GAS BUSINESS==========,580259992,10,734.24,ELECTRICITY,01/11/12,
139927,BRITISH GAS BUSINESS==========,580259992,11,18.54,ELECTRICITY,01/11/12,
139927,BRITISH GAS BUSINESS==========,580259992,12,24.48,ELECTRICITY,01/11/12,
139927,BRITISH GAS BUSINESS==========,580259992,13,196.32,ELECTRICITY,01/11/12,
139927,BRITISH GAS BUSINESS==========,580259992,14,675.24,ELECTRICITY,01/11/12,
139927,BRITISH GAS BUSINESS==========,580259992,15,18.46,ELECTRICITY,01/11/12,
139927,BRITISH GAS BUSINESS==========,580259992,16,378.44,ELECTRICITY,01/11/12,
139927,BRITISH GAS BUSINESS==========,580259992,17,494.48,ELECTRICITY,01/11/12,
139927,BRITISH GAS BUSINESS==========,580259992,18,486.69,ELECTRICITY,01/11/12,
139927,BRITISH GAS BUSINESS==========,580259992,19,45.55,ELECTRICITY,01/11/12,
139927,BRITISH GAS BUSINESS==========,580259992,20,"1,305.10",ELECTRICITY,01/11/12,
139927,BRITISH GAS BUSINESS==========,580259992,21,21.56,ELECTRICITY,01/11/12,
139927,BRITISH GAS BUSINESS==========,580259992,22,681.85,ELECTRICITY,01/11/12,
139927,BRITISH GAS BUSINESS==========,580259992,23,64.52,ELECTRICITY,01/11/12,
139927,BRITISH GAS BUSINESS==========,580259992,24,63.10,ELECTRICITY,01/11/12,
139927,BRITISH GAS BUSINESS==========,580259992,25,334.17,ELECTRICITY,01/11/12,
139927,BRITISH GAS BUSINESS==========,580259992,26,210.80,ELECTRICITY,01/11/12,
139927,BRITISH GAS BUSINESS==========,580259992,27,426.67,ELECTRICITY,01/11/12,
139927,BRITISH GAS BUSINESS==========,580259992,28,271.68,ELECTRICITY,01/11/12,
139927,BRITISH GAS BUSINESS==========,580259992,29,545.45,ELECTRICITY,01/11/12,
139927,BRITISH GAS BUSINESS==========,580259992,30,288.91,ELECTRICITY,01/11/12,
139927,BRITISH GAS BUSINESS==========,580259992,31,170.86,ELECTRICITY,01/11/12,
139927,BRITISH GAS BUSINESS==========,580259992,32,455.12,ELECTRICITY,01/11/12,
139927,BRITISH GAS BUSINESS==========,580259992,33,462.43,ELECTRICITY,01/11/12,
139927,BRITISH GAS BUSINESS==========,580259992,34,310.05,ELECTRICITY,01/11/12,
139927,BRITISH GAS BUSINESS==========,580259992,35,"1,038.22",ELECTRICITY,01/11/12,
139928,BRITISH GAS BUSINESS==========,580259993,1,587.85,ELECTRICITY,01/11/12,"14,390.58"
139928,BRITISH GAS BUSINESS==========,580259993,2,595.80,ELECTRICITY,01/11/12,
139928,BRITISH GAS BUSINESS==========,580259993,3,336.38,ELECTRICITY,01/11/12,
139928,BRITISH GAS BUSINESS==========,580259993,4,20.41,ELECTRICITY,01/11/12,
139928,BRITISH GAS BUSINESS==========,580259993,5,391.32,ELECTRICITY,01/11/12,
139928,BRITISH GAS BUSINESS==========,580259993,6,266.98,ELECTRICITY,01/11/12,
139928,BRITISH GAS BUSINESS==========,580259993,7,61.25,ELECTRICITY,01/11/12,
139928,BRITISH GAS BUSINESS==========,580259993,8,30.13,ELECTRICITY,01/11/12,
139928,BRITISH GAS BUSINESS==========,580259993,9,526.53,ELECTRICITY,01/11/12,
139928,BRITISH GAS BUSINESS==========,580259993,10,290.86,ELECTRICITY,01/11/12,
139928,BRITISH GAS BUSINESS==========,580259993,11,46.94,ELECTRICITY,01/11/12,
139928,BRITISH GAS BUSINESS==========,580259993,12,354.02,ELECTRICITY,01/11/12,
139928,BRITISH GAS BUSINESS==========,580259993,13,"1,177.73",ELECTRICITY,01/11/12,
139928,BRITISH GAS BUSINESS==========,580259993,14,583.99,ELECTRICITY,01/11/12,
139928,BRITISH GAS BUSINESS==========,580259993,15,234.77,ELECTRICITY,01/11/12,
139928,BRITISH GAS BUSINESS==========,580259993,16,"1,543.59",ELECTRICITY,01/11/12,
139928,BRITISH GAS BUSINESS==========,580259993,17,262.13,ELECTRICITY,01/11/12,
139928,BRITISH GAS BUSINESS==========,580259993,18,587.99,ELECTRICITY,01/11/12,
139928,BRITISH GAS BUSINESS==========,580259993,19,222.77,ELECTRICITY,01/11/12,
139928,BRITISH GAS BUSINESS==========,580259993,20,293.46,ELECTRICITY,01/11/12,
139928,BRITISH GAS BUSINESS==========,580259993,21,347.13,ELECTRICITY,01/11/12,
139928,BRITISH GAS BUSINESS==========,580259993,22,224.36,ELECTRICITY,01/11/12,
139928,BRITISH GAS BUSINESS==========,580259993,23,266.55,ELECTRICITY,01/11/12,
139928,BRITISH GAS BUSINESS==========,580259993,24,473.93,ELECTRICITY,01/11/12,
139928,BRITISH GAS BUSINESS==========,580259993,25,759.70,ELECTRICITY,01/11/12,
139928,BRITISH GAS BUSINESS==========,580259993,26,499.71,ELECTRICITY,01/11/12,
139928,BRITISH GAS BUSINESS==========,580259993,27,428.12,ELECTRICITY,01/11/12,
139928,BRITISH GAS BUSINESS==========,580259993,28,562.43,ELECTRICITY,01/11/12,
139928,BRITISH GAS BUSINESS==========,580259993,29,543.97,ELECTRICITY,01/11/12,
139928,BRITISH GAS BUSINESS==========,580259993,30,304.26,ELECTRICITY,01/11/12,
139928,BRITISH GAS BUSINESS==========,580259993,31,646.06,ELECTRICITY,01/11/12,
139928,BRITISH GAS BUSINESS==========,580259993,32,333.47,ELECTRICITY,01/11/12,
139928,BRITISH GAS BUSINESS==========,580259993,33,348.40,ELECTRICITY,01/11/12,
139928,BRITISH GAS BUSINESS==========,580259993,34,237.59,ELECTRICITY,01/11/12,
139929,BRITISH GAS BUSINESS==========,580259994,1,448.58,ELECTRICITY,01/11/12,"13,757.23"
139929,BRITISH GAS BUSINESS==========,580259994,2,324.07,ELECTRICITY,01/11/12,
139929,BRITISH GAS BUSINESS==========,580259994,3,41.63,ELECTRICITY,01/11/12,
139929,BRITISH GAS BUSINESS==========,580259994,4,30.74,ELECTRICITY,01/11/12,
139929,BRITISH GAS BUSINESS==========,580259994,5,27.52,ELECTRICITY,01/11/12,
139929,BRITISH GAS BUSINESS==========,580259994,6,12.88,ELECTRICITY,01/11/12,
139929,BRITISH GAS BUSINESS==========,580259994,7,462.49,ELECTRICITY,01/11/12,
139929,BRITISH GAS BUSINESS==========,580259994,8,316.60,ELECTRICITY,01/11/12,
139929,BRITISH GAS BUSINESS==========,580259994,9,783.69,ELECTRICITY,01/11/12,
139929,BRITISH GAS BUSINESS==========,580259994,10,271.17,ELECTRICITY,01/11/12,
139929,BRITISH GAS BUSINESS==========,580259994,11,142.23,ELECTRICITY,01/11/12,
139929,BRITISH GAS BUSINESS==========,580259994,12,257.30,ELECTRICITY,01/11/12,
139929,BRITISH GAS BUSINESS==========,580259994,13,296.53,ELECTRICITY,01/11/12,
139929,BRITISH GAS BUSINESS==========,580259994,14,406.75,ELECTRICITY,01/11/12,
139929,BRITISH GAS BUSINESS==========,580259994,15,627.26,ELECTRICITY,01/11/12,
139929,BRITISH GAS BUSINESS==========,580259994,16,"2,605.17",ELECTRICITY,01/11/12,
139929,BRITISH GAS BUSINESS==========,580259994,17,205.96,ELECTRICITY,01/11/12,
139929,BRITISH GAS BUSINESS==========,580259994,18,20.96,ELECTRICITY,01/11/12,
139929,BRITISH GAS BUSINESS==========,580259994,19,317.16,ELECTRICITY,01/11/12,
139929,BRITISH GAS BUSINESS==========,580259994,20,492.73,ELECTRICITY,01/11/12,
139929,BRITISH GAS BUSINESS==========,580259994,21,427.09,ELECTRICITY,01/11/12,
139929,BRITISH GAS BUSINESS==========,580259994,22,630.81,ELECTRICITY,01/11/12,
139929,BRITISH GAS BUSINESS==========,580259994,23,415.58,ELECTRICITY,01/11/12,
139929,BRITISH GAS BUSINESS==========,580259994,24,649.96,ELECTRICITY,01/11/12,
139929,BRITISH GAS BUSINESS==========,580259994,25,310.34,ELECTRICITY,01/11/12,
139929,BRITISH GAS BUSINESS==========,580259994,26,"1,334.25",ELECTRICITY,01/11/12,
139929,BRITISH GAS BUSINESS==========,580259994,27,368.64,ELECTRICITY,01/11/12,
139929,BRITISH GAS BUSINESS==========,580259994,28,259.57,ELECTRICITY,01/11/12,
139929,BRITISH GAS BUSINESS==========,580259994,29,438.81,ELECTRICITY,01/11/12,
139929,BRITISH GAS BUSINESS==========,580259994,30,16.46,ELECTRICITY,01/11/12,
139929,BRITISH GAS BUSINESS==========,580259994,31,25.19,ELECTRICITY,01/11/12,
139929,BRITISH GAS BUSINESS==========,580259994,32,366.47,ELECTRICITY,01/11/12,
139929,BRITISH GAS BUSINESS==========,580259994,33,33.79,ELECTRICITY,01/11/12,
139929,BRITISH GAS BUSINESS==========,580259994,34,388.85,ELECTRICITY,01/11/12,
139930,BRITISH GAS BUSINESS==========,580259995,1,308.09,ELECTRICITY,01/11/12,"1,124.88"
139930,BRITISH GAS BUSINESS==========,580259995,2,392.19,ELECTRICITY,01/11/12,
139930,BRITISH GAS BUSINESS==========,580259995,3,192.37,ELECTRICITY,01/11/12,
139930,BRITISH GAS BUSINESS==========,580259995,4,217.16,ELECTRICITY,01/11/12,
139930,BRITISH GAS BUSINESS==========,580259995,5,15.07,ELECTRICITY,01/11/12,
139935,STONEDALE PROPERTY MANAGEMENT,67218,1,"6,059.74",RENTS,01/11/12,"6,059.74"
291012C,TWO SERVICES LTD==============,67334,1,645.50,CATERING EQUIPMENT,01/11/12,645.50
301012F,H V SIER LTD==================,7/I42949,1,416.40,STATIONERY CONSUMABLES,01/11/12,416.40
241012E,MARWOOD GROUP LTD,751220,1,400.00,GENERAL,01/11/12,400.00
251012E,LEVEL 3 COMMUNICATIONS UK,80266757,1,"1,097.78",ACQUISITIONS,01/11/12,"1,097.78"
251012E,LEVEL 3 COMMUNICATIONS UK,80275535,1,"35,879.20",ACQUISITIONS,01/11/12,"35,879.20"
251012E,LEVEL 3 COMMUNICATIONS UK,80292031,1,"24,518.32",ACQUISITIONS,01/11/12,"24,518.32"
291012C,G4S TECHNOLOGY LIMITED========,840151,1,403.19,TACTICAL DAY TO DAY,01/11/12,403.19
301012F,CPL PETROLEUM=================,8488459,1,"1,743.00",FUEL,01/11/12,"1,743.00"
139938,DEPARTMENT FOR WORK & PENSIONS,8697,1,600.00,DOCTORS/MEDICAL FEES,01/11/12,600.00
139932,MISS RACHEL KAPILA,8730A,1,"3,390.00",COUNSELS FEES,01/11/12,"3,390.00"
139938,THOMPSON SOLICITORS===========,8791*,1,"2,000.00",CLAIMANT COSTS AGREED,01/11/12,"2,000.00"
139932,MR NED HELME,8851,1,"1,625.00",COUNSELS FEES,01/11/12,"1,625.00"
291012E,A&A ELECTRICAL DISTRIBUTORS===,899805,1,580.50,GENERAL CONSUMABLES,01/11/12,580.50
261012E,DRAEGER SAFETY UK LIMITED=====,90392985,1,954.75,PROTECTIVE EQUIPT - PARTS,01/11/12,954.75
221012C,TSI INSTRUMENTS LTD===========,90522470,1,425.00,REPAIR & MAINTENANCE,01/11/12,433.89
221012C,TSI INSTRUMENTS LTD===========,90522470,2,8.89,REPAIR & MAINTENANCE,01/11/12,
800013997,REDFERN TRAVEL LTD,934322,1,328.70,PUBLIC TRANSPORT,01/11/12,328.70
800013998,REDFERN TRAVEL LTD,934433,1,328.70,PUBLIC TRANSPORT,01/11/12,328.70
800013999,REDFERN TRAVEL LTD,934476,1,328.70,PUBLIC TRANSPORT,01/11/12,328.70
800014000,REDFERN TRAVEL LTD,934483,1,328.70,PUBLIC TRANSPORT,01/11/12,328.70
800013993,REDFERN TRAVEL LTD,941287,1,"1,478.00",HIRE OF FACILITIES,01/11/12,"1,478.00"
800014021,REDFERN TRAVEL LTD,945939,1,272.28,PUBLIC TRANSPORT,01/11/12,272.28
800014005,REDFERN TRAVEL LTD,950103,1,"3,414.76",OVERSEAS TRAVEL,01/11/12,"3,414.76"
800013991,REDFERN TRAVEL LTD,951323,1,"1,847.18",OVERSEAS TRAVEL,01/11/12,"1,847.18"
800014034,REDFERN TRAVEL LTD,951327,1,266.10,PUBLIC TRANSPORT,01/11/12,266.10
800014035,REDFERN TRAVEL LTD,951539,1,"5,125.33",OVERSEAS TRAVEL,01/11/12,"5,125.33"
800013992,REDFERN TRAVEL LTD,951704,1,"1,407.00",OVERSEAS TRAVEL,01/11/12,"1,407.00"
161012E,*OFFICE DEPOT UK LTD,955174947,1,595.00,STATIONERY CONSUMABLES,01/11/12,595.00
181012E,*OFFICE DEPOT UK LTD,955191032,1,595.00,STATIONERY CONSUMABLES,01/11/12,595.00
241012C,*BANNER BUSINESS SUPPLIES LTD=,A-25362336,1,32.40,STATIONERY CONSUMABLES,01/11/12,"1,037.50"
241012C,*BANNER BUSINESS SUPPLIES LTD=,A-25362336,2,32.00,STATIONERY CONSUMABLES,01/11/12,
241012C,*BANNER BUSINESS SUPPLIES LTD=,A-25362336,3,24.85,STATIONERY CONSUMABLES,01/11/12,
241012C,*BANNER BUSINESS SUPPLIES LTD=,A-25362336,4,6.65,STATIONERY CONSUMABLES,01/11/12,
241012C,*BANNER BUSINESS SUPPLIES LTD=,A-25362336,5,9.80,STATIONERY CONSUMABLES,01/11/12,
241012C,*BANNER BUSINESS SUPPLIES LTD=,A-25362336,6,15.00,STATIONERY CONSUMABLES,01/11/12,
241012C,*BANNER BUSINESS SUPPLIES LTD=,A-25362336,7,15.00,STATIONERY CONSUMABLES,01/11/12,
241012C,*BANNER BUSINESS SUPPLIES LTD=,A-25362336,8,41.50,STATIONERY CONSUMABLES,01/11/12,
241012C,*BANNER BUSINESS SUPPLIES LTD=,A-25362336,9,41.50,STATIONERY CONSUMABLES,01/11/12,
241012C,*BANNER BUSINESS SUPPLIES LTD=,A-25362336,10,13.00,STATIONERY CONSUMABLES,01/11/12,
241012C,*BANNER BUSINESS SUPPLIES LTD=,A-25362336,11,173.00,STATIONERY CONSUMABLES,01/11/12,
241012C,*BANNER BUSINESS SUPPLIES LTD=,A-25362336,12,62.60,STATIONERY CONSUMABLES,01/11/12,
241012C,*BANNER BUSINESS SUPPLIES LTD=,A-25362336,13,74.00,STATIONERY CONSUMABLES,01/11/12,
241012C,*BANNER BUSINESS SUPPLIES LTD=,A-25362336,14,451.20,STATIONERY CONSUMABLES,01/11/12,
241012C,*BANNER BUSINESS SUPPLIES LTD=,A-25362336,15,45.00,STATIONERY CONSUMABLES,01/11/12,
139935,INFORMATION COMMISSIONER======,AD5732,1,500.00,CONSULTANTS,01/11/12,500.00
231012E,ASTEC SURVEYS LIMITED=========,ASL612,1,"5,425.00",DEVELOPMENT EXP - CONTRACTORS,01/11/12,"5,425.00"
261012E,PITNEY BOWES PURCHASE POWER,BA055393,1,"12,638.88",POSTAL SERVICES,01/11/12,"12,638.88"
291012C,BROADWAY MALYAN===============,BM00000904,1,647.00,DISPOSAL COSTS - ESTATE AGENTS,01/11/12,647.00
291012E,EQUIFAX LTD,C2091190,1,608.33,COMPANY & LOCAL AUTH SEARCHES,01/11/12,608.33
261012E,CFOA (SERVICES) LTD===========,CSL12497,1,345.00,TRAINING & CONFERENCES,01/11/12,345.00
301012F,ENVIRONMENT AGENCY============,HWAPPLFEPA09,1,126.00,TACTICAL DAY TO DAY,01/11/12,"2,142.00"
301012F,ENVIRONMENT AGENCY============,HWAPPLFEPA09,2,738.00,TACTICAL DAY TO DAY,01/11/12,
301012F,ENVIRONMENT AGENCY============,HWAPPLFEPA09,3,666.00,TACTICAL DAY TO DAY,01/11/12,
301012F,ENVIRONMENT AGENCY============,HWAPPLFEPA09,4,612.00,TACTICAL DAY TO DAY,01/11/12,
251012E,LEVEL 3 COMMUNICATIONS UK,IN005217,1,"5,350.06",ACQUISITIONS,01/11/12,"5,350.06"
181012E,DCB (KENT) LIMITED============,INV 584/003,1,932.22,STRATEGIC (NON CYCLICAL),01/11/12,932.22
261012E,PEGASUS ENVIRONMENTAL CONSULTA,INV/4985-12,1,625.00,STRATEGIC (CYCLICAL),01/11/12,625.00
139932,MR STEVEN SNOWDEN,LPI/6918/FC,1,"4,500.00",COUNSELS FEES,01/11/12,"4,500.00"
181012E,UBM INFORMATION LTD,N1/3793033,1,"6,497.39",BOOKS & JOURNALS,01/11/12,"6,497.39"
251012E,CANNONS MSA LTD,NV1052507,1,928.80,GENERAL CONSUMABLES,01/11/12,"1,823.80"
251012E,CANNONS MSA LTD,NV1052507,2,895.00,GENERAL CONSUMABLES,01/11/12,
161012C,ULTIMA RISK MANAGEMENT========,Q302546,1,"3,375.00",MAINTENANCE & SUPPORT,01/11/12,"3,375.00"
261012E,SURE CLINIC,SC130412BEATTIE301,1,300.00,OFFICE EQUIPMENT,01/11/12,300.00
251012E,FILING PLUS LIMITED==========,SI002098,1,270.00,STATIONERY CONSUMABLES,01/11/12,270.00
261012E,ADVANCED FURNITURE============,0000047187,1,270.00,OFFICE FURNITURE,05/11/12,270.00
301012C,GRANDSTANDS GB LTD,091012,1,"3,290.00",PUBLIC RELATIONS,05/11/12,"3,290.00"
011112G,UNIVERSITY OF ST ANDREWS,100022050,1,915.00,TRAINING & CONFERENCES,05/11/12,915.00
231012C,HAYS ACCOUNTANCY & FINANCE====,1002567205,1,696.00,FRS STAFF AGENCY,05/11/12,696.00
311012C,ALLSTAR BUSINESS SOLUTIONS LTD,1019388599,1,198.17,FUEL,05/11/12,"23,058.28"
311012C,ALLSTAR BUSINESS SOLUTIONS LTD,1019388599,2,110.52,FUEL,05/11/12,
311012C,ALLSTAR BUSINESS SOLUTIONS LTD,1019388599,3,123.65,FUEL,05/11/12,
311012C,ALLSTAR BUSINESS SOLUTIONS LTD,1019388599,4,221.23,FUEL,05/11/12,
311012C,ALLSTAR BUSINESS SOLUTIONS LTD,1019388599,5,191.55,FUEL,05/11/12,
311012C,ALLSTAR BUSINESS SOLUTIONS LTD,1019388599,6,126.28,FUEL,05/11/12,
311012C,ALLSTAR BUSINESS SOLUTIONS LTD,1019388599,7,50.38,FUEL,05/11/12,
311012C,ALLSTAR BUSINESS SOLUTIONS LTD,1019388599,8,204.74,FUEL,05/11/12,
311012C,ALLSTAR BUSINESS SOLUTIONS LTD,1019388599,9,98.97,FUEL,05/11/12,
311012C,ALLSTAR BUSINESS SOLUTIONS LTD,1019388599,10,187.19,FUEL,05/11/12,
311012C,ALLSTAR BUSINESS SOLUTIONS LTD,1019388599,11,241.14,FUEL,05/11/12,
311012C,ALLSTAR BUSINESS SOLUTIONS LTD,1019388599,12,305.81,FUEL,05/11/12,
311012C,ALLSTAR BUSINESS SOLUTIONS LTD,1019388599,13,302.77,FUEL,05/11/12,
311012C,ALLSTAR BUSINESS SOLUTIONS LTD,1019388599,14,297.13,FUEL,05/11/12,
311012C,ALLSTAR BUSINESS SOLUTIONS LTD,1019388599,15,165.37,FUEL,05/11/12,
311012C,ALLSTAR BUSINESS SOLUTIONS LTD,1019388599,16,410.83,FUEL,05/11/12,
311012C,ALLSTAR BUSINESS SOLUTIONS LTD,1019388599,17,287.04,FUEL,05/11/12,
311012C,ALLSTAR BUSINESS SOLUTIONS LTD,1019388599,18,121.58,FUEL,05/11/12,
311012C,ALLSTAR BUSINESS SOLUTIONS LTD,1019388599,19,84.34,FUEL,05/11/12,
311012C,ALLSTAR BUSINESS SOLUTIONS LTD,1019388599,20,85.78,FUEL,05/11/12,
311012C,ALLSTAR BUSINESS SOLUTIONS LTD,1019388599,21,82.52,FUEL,05/11/12,
311012C,ALLSTAR BUSINESS SOLUTIONS LTD,1019388599,22,313.25,FUEL,05/11/12,
311012C,ALLSTAR BUSINESS SOLUTIONS LTD,1019388599,23,179.86,FUEL,05/11/12,
311012C,ALLSTAR BUSINESS SOLUTIONS LTD,1019388599,24,111.97,FUEL,05/11/12,
311012C,ALLSTAR BUSINESS SOLUTIONS LTD,1019388599,25,308.57,FUEL,05/11/12,
311012C,ALLSTAR BUSINESS SOLUTIONS LTD,1019388599,26,258.89,FUEL,05/11/12,
311012C,ALLSTAR BUSINESS SOLUTIONS LTD,1019388599,27,187.87,FUEL,05/11/12,
311012C,ALLSTAR BUSINESS SOLUTIONS LTD,1019388599,28,231.38,FUEL,05/11/12,
311012C,ALLSTAR BUSINESS SOLUTIONS LTD,1019388599,29,276.05,FUEL,05/11/12,
311012C,ALLSTAR BUSINESS SOLUTIONS LTD,1019388599,30,399.64,FUEL,05/11/12,
311012C,ALLSTAR BUSINESS SOLUTIONS LTD,1019388599,31,439.62,FUEL,05/11/12,
311012C,ALLSTAR BUSINESS SOLUTIONS LTD,1019388599,32,338.80,FUEL,05/11/12,
311012C,ALLSTAR BUSINESS SOLUTIONS LTD,1019388599,33,315.51,FUEL,05/11/12,
311012C,ALLSTAR BUSINESS SOLUTIONS LTD,1019388599,34,280.56,FUEL,05/11/12,
311012C,ALLSTAR BUSINESS SOLUTIONS LTD,1019388599,35,506.52,FUEL,05/11/12,
311012C,ALLSTAR BUSINESS SOLUTIONS LTD,1019388599,36,100.99,FUEL,05/11/12,
311012C,ALLSTAR BUSINESS SOLUTIONS LTD,1019388599,37,244.30,FUEL,05/11/12,
311012C,ALLSTAR BUSINESS SOLUTIONS LTD,1019388599,38,68.82,FUEL,05/11/12,
311012C,ALLSTAR BUSINESS SOLUTIONS LTD,1019388599,39,169.77,FUEL,05/11/12,
311012C,ALLSTAR BUSINESS SOLUTIONS LTD,1019388599,40,751.96,FUEL,05/11/12,
311012C,ALLSTAR BUSINESS SOLUTIONS LTD,1019388599,41,173.11,FUEL,05/11/12,
311012C,ALLSTAR BUSINESS SOLUTIONS LTD,1019388599,42,221.33,FUEL,05/11/12,
311012C,ALLSTAR BUSINESS SOLUTIONS LTD,1019388599,43,268.94,FUEL,05/11/12,
311012C,ALLSTAR BUSINESS SOLUTIONS LTD,1019388599,44,207.38,FUEL,05/11/12,
311012C,ALLSTAR BUSINESS SOLUTIONS LTD,1019388599,45,121.92,FUEL,05/11/12,
311012C,ALLSTAR BUSINESS SOLUTIONS LTD,1019388599,46,329.23,FUEL,05/11/12,
311012C,ALLSTAR BUSINESS SOLUTIONS LTD,1019388599,47,381.67,FUEL,05/11/12,
311012C,ALLSTAR BUSINESS SOLUTIONS LTD,1019388599,48,142.23,FUEL,05/11/12,
311012C,ALLSTAR BUSINESS SOLUTIONS LTD,1019388599,49,176.11,FUEL,05/11/12,
311012C,ALLSTAR BUSINESS SOLUTIONS LTD,1019388599,50,214.28,FUEL,05/11/12,
311012C,ALLSTAR BUSINESS SOLUTIONS LTD,1019388599,51,58.51,FUEL,05/11/12,
311012C,ALLSTAR BUSINESS SOLUTIONS LTD,1019388599,52,164.19,FUEL,05/11/12,
311012C,ALLSTAR BUSINESS SOLUTIONS LTD,1019388599,53,627.31,FUEL,05/11/12,
311012C,ALLSTAR BUSINESS SOLUTIONS LTD,1019388599,54,441.04,FUEL,05/11/12,
311012C,ALLSTAR BUSINESS SOLUTIONS LTD,1019388599,55,220.68,FUEL,05/11/12,
311012C,ALLSTAR BUSINESS SOLUTIONS LTD,1019388599,56,205.35,FUEL,05/11/12,
311012C,ALLSTAR BUSINESS SOLUTIONS LTD,1019388599,57,261.54,FUEL,05/11/12,
311012C,ALLSTAR BUSINESS SOLUTIONS LTD,1019388599,58,390.84,FUEL,05/11/12,
311012C,ALLSTAR BUSINESS SOLUTIONS LTD,1019388599,59,113.14,FUEL,05/11/12,
311012C,ALLSTAR BUSINESS SOLUTIONS LTD,1019388599,60,216.11,FUEL,05/11/12,
311012C,ALLSTAR BUSINESS SOLUTIONS LTD,1019388599,61,131.45,FUEL,05/11/12,
311012C,ALLSTAR BUSINESS SOLUTIONS LTD,1019388599,62,191.37,FUEL,05/11/12,
311012C,ALLSTAR BUSINESS SOLUTIONS LTD,1019388599,63,164.65,FUEL,05/11/12,
311012C,ALLSTAR BUSINESS SOLUTIONS LTD,1019388599,64,131.87,FUEL,05/11/12,
311012C,ALLSTAR BUSINESS SOLUTIONS LTD,1019388599,65,121.74,FUEL,05/11/12,
311012C,ALLSTAR BUSINESS SOLUTIONS LTD,1019388599,66,95.72,FUEL,05/11/12,
311012C,ALLSTAR BUSINESS SOLUTIONS LTD,1019388599,67,125.39,FUEL,05/11/12,
311012C,ALLSTAR BUSINESS SOLUTIONS LTD,1019388599,68,105.89,FUEL,05/11/12,
311012C,ALLSTAR BUSINESS SOLUTIONS LTD,1019388599,69,156.72,FUEL,05/11/12,
311012C,ALLSTAR BUSINESS SOLUTIONS LTD,1019388599,70,41.35,FUEL,05/11/12,
311012C,ALLSTAR BUSINESS SOLUTIONS LTD,1019388599,71,103.34,FUEL,05/11/12,
311012C,ALLSTAR BUSINESS SOLUTIONS LTD,1019388599,72,78.34,FUEL,05/11/12,
311012C,ALLSTAR BUSINESS SOLUTIONS LTD,1019388599,73,244.73,FUEL,05/11/12,
311012C,ALLSTAR BUSINESS SOLUTIONS LTD,1019388599,74,"1,081.73",FUEL,05/11/12,
311012C,ALLSTAR BUSINESS SOLUTIONS LTD,1019388599,75,158.90,FUEL,05/11/12,
311012C,ALLSTAR BUSINESS SOLUTIONS LTD,1019388599,76,190.89,FUEL,05/11/12,
311012C,ALLSTAR BUSINESS SOLUTIONS LTD,1019388599,77,99.63,FUEL,05/11/12,
311012C,ALLSTAR BUSINESS SOLUTIONS LTD,1019388599,78,59.35,FUEL,05/11/12,
311012C,ALLSTAR BUSINESS SOLUTIONS LTD,1019388599,79,22.94,FUEL,05/11/12,
311012C,ALLSTAR BUSINESS SOLUTIONS LTD,1019388599,80,45.62,FUEL,05/11/12,
311012C,ALLSTAR BUSINESS SOLUTIONS LTD,1019388599,81,148.71,FUEL,05/11/12,
311012C,ALLSTAR BUSINESS SOLUTIONS LTD,1019388599,82,119.35,FUEL,05/11/12,
311012C,ALLSTAR BUSINESS SOLUTIONS LTD,1019388599,83,203.84,FUEL,05/11/12,
311012C,ALLSTAR BUSINESS SOLUTIONS LTD,1019388599,84,350.12,FUEL,05/11/12,
311012C,ALLSTAR BUSINESS SOLUTIONS LTD,1019388599,85,114.76,FUEL,05/11/12,
311012C,ALLSTAR BUSINESS SOLUTIONS LTD,1019388599,86,394.20,FUEL,05/11/12,
311012C,ALLSTAR BUSINESS SOLUTIONS LTD,1019388599,87,200.86,FUEL,05/11/12,
311012C,ALLSTAR BUSINESS SOLUTIONS LTD,1019388599,88,79.83,FUEL,05/11/12,
311012C,ALLSTAR BUSINESS SOLUTIONS LTD,1019388599,89,33.02,FUEL,05/11/12,
311012C,ALLSTAR BUSINESS SOLUTIONS LTD,1019388599,90,119.08,FUEL,05/11/12,
311012C,ALLSTAR BUSINESS SOLUTIONS LTD,1019388599,91,172.65,FUEL,05/11/12,
311012C,ALLSTAR BUSINESS SOLUTIONS LTD,1019388599,92,48.50,FUEL,05/11/12,
311012C,ALLSTAR BUSINESS SOLUTIONS LTD,1019388599,93,57.53,FUEL,05/11/12,
311012C,ALLSTAR BUSINESS SOLUTIONS LTD,1019388599,94,59.57,FUEL,05/11/12,
311012C,ALLSTAR BUSINESS SOLUTIONS LTD,1019388599,95,91.22,FUEL,05/11/12,
311012C,ALLSTAR BUSINESS SOLUTIONS LTD,1019388599,96,286.22,FUEL,05/11/12,
311012C,ALLSTAR BUSINESS SOLUTIONS LTD,1019388599,97,148.98,FUEL,05/11/12,
311012C,ALLSTAR BUSINESS SOLUTIONS LTD,1019388599,98,154.75,FUEL,05/11/12,
311012C,ALLSTAR BUSINESS SOLUTIONS LTD,1019388599,99,139.61,FUEL,05/11/12,
311012C,ALLSTAR BUSINESS SOLUTIONS LTD,1019388599,100,136.54,FUEL,05/11/12,
311012C,ALLSTAR BUSINESS SOLUTIONS LTD,1019388599,101,45.83,FUEL,05/11/12,
311012C,ALLSTAR BUSINESS SOLUTIONS LTD,1019388599,102,78.08,FUEL,05/11/12,
311012C,ALLSTAR BUSINESS SOLUTIONS LTD,1019388599,103,50.73,FUEL,05/11/12,
311012C,ALLSTAR BUSINESS SOLUTIONS LTD,1019388599,104,46.26,FUEL,05/11/12,
311012C,ALLSTAR BUSINESS SOLUTIONS LTD,1019388599,105,84.20,FUEL,05/11/12,
311012C,ALLSTAR BUSINESS SOLUTIONS LTD,1019388599,106,353.02,FUEL,05/11/12,
311012C,ALLSTAR BUSINESS SOLUTIONS LTD,1019388599,107,31.52,FUEL,05/11/12,
311012C,ALLSTAR BUSINESS SOLUTIONS LTD,1019388599,108,266.38,FUEL,05/11/12,
311012C,ALLSTAR BUSINESS SOLUTIONS LTD,1019388599,109,70.56,FUEL,05/11/12,
311012C,ALLSTAR BUSINESS SOLUTIONS LTD,1019388599,110,61.55,FUEL,05/11/12,
311012C,ALLSTAR BUSINESS SOLUTIONS LTD,1019388599,111,211.22,FUEL,05/11/12,
311012C,ALLSTAR BUSINESS SOLUTIONS LTD,1019388599,112,9.07,FUEL,05/11/12,
311012C,ALLSTAR BUSINESS SOLUTIONS LTD,1019388599,113,764.84,FUEL,05/11/12,
311012C,ALLSTAR BUSINESS SOLUTIONS LTD,1019388599,114,55.32,FUEL,05/11/12,
311012C,ALLSTAR BUSINESS SOLUTIONS LTD,1019388599,115,202.51,FUEL,05/11/12,
241012E,*SPRUE SAFETY PRODUCTS LTD====,1038746,1,"1,896.00",FIRE DETECTORS,05/11/12,"1,896.00"
800014195,*XMA LTD,134714,1,58.86,STATIONERY CONSUMABLES,05/11/12,283.56
800014195,*XMA LTD,134714,2,55.28,STATIONERY CONSUMABLES,05/11/12,
800014195,*XMA LTD,134714,3,55.28,STATIONERY CONSUMABLES,05/11/12,
800014195,*XMA LTD,134714,4,55.28,STATIONERY CONSUMABLES,05/11/12,
800014195,*XMA LTD,134714,5,58.86,STATIONERY CONSUMABLES,05/11/12,
800014196,*XMA LTD,134715,1,55.28,STATIONERY CONSUMABLES,05/11/12,439.23
800014196,*XMA LTD,134715,2,55.28,STATIONERY CONSUMABLES,05/11/12,
800014196,*XMA LTD,134715,3,58.86,STATIONERY CONSUMABLES,05/11/12,
800014196,*XMA LTD,134715,4,9.98,STATIONERY CONSUMABLES,05/11/12,
800014196,*XMA LTD,134715,5,9.98,STATIONERY CONSUMABLES,05/11/12,
800014196,*XMA LTD,134715,6,9.98,STATIONERY CONSUMABLES,05/11/12,
800014196,*XMA LTD,134715,7,15.17,STATIONERY CONSUMABLES,05/11/12,
800014196,*XMA LTD,134715,8,58.86,STATIONERY CONSUMABLES,05/11/12,
800014196,*XMA LTD,134715,9,55.28,STATIONERY CONSUMABLES,05/11/12,
800014196,*XMA LTD,134715,10,55.28,STATIONERY CONSUMABLES,05/11/12,
800014196,*XMA LTD,134715,11,55.28,STATIONERY CONSUMABLES,05/11/12,
139939,THAMES WATER UTILITIES LTD====,1375286795H,1,267.42,WATER & SEWERAGE RATES,05/11/12,267.42
301012C,ANED LTD======================,20120035S,1,295.00,TRAINING & CONFERENCES,05/11/12,295.00
181012E,UNDERSTANDING RECRUITMENT=====,2052,1,"8,120.00",MAINTENANCE & SUPPORT,05/11/12,"8,120.00"
181012E,UNDERSTANDING RECRUITMENT=====,2053,1,"5,940.00",ACQUISITIONS,05/11/12,"5,940.00"
181012E,UNDERSTANDING RECRUITMENT=====,2054,1,"9,200.00",FRS STAFF AGENCY,05/11/12,"9,200.00"
139939,THAMES WATER UTILITIES LTD====,21679-37404V,1,267.39,WATER & SEWERAGE RATES,05/11/12,267.39
800014311,ADECCO UK LIMITED=============,26180965,1,432.60,FRS STAFF AGENCY,05/11/12,432.60
800014312,ADECCO UK LIMITED=============,26180966,1,347.34,FRS STAFF AGENCY,05/11/12,347.34
800014409,ADECCO UK LIMITED=============,26189025,1,264.67,FRS STAFF AGENCY,05/11/12,264.67
800014412,ADECCO UK LIMITED=============,26189028,1,582.05,FRS STAFF AGENCY,05/11/12,582.05
800014413,ADECCO UK LIMITED=============,26189029,1,301.98,FRS STAFF AGENCY,05/11/12,301.98
800014414,ADECCO UK LIMITED=============,26189030,1,554.96,FRS STAFF AGENCY,05/11/12,554.96
800014415,ADECCO UK LIMITED=============,26189031,1,552.44,FRS STAFF AGENCY,05/11/12,552.44
800014416,ADECCO UK LIMITED=============,26189032,1,"1,277.33",FRS STAFF AGENCY,05/11/12,"1,277.33"
800014417,ADECCO UK LIMITED=============,26189033,1,"1,168.29",FRS STAFF AGENCY,05/11/12,"1,168.29"
800014418,ADECCO UK LIMITED=============,26189034,1,576.80,FRS STAFF AGENCY,05/11/12,576.80
800014420,ADECCO UK LIMITED=============,26189036,1,577.15,FRS STAFF AGENCY,05/11/12,577.15
800014421,ADECCO UK LIMITED=============,26189037,1,"1,426.25",FRS STAFF AGENCY,05/11/12,"1,426.25"
800014422,ADECCO UK LIMITED=============,26189038,1,465.08,FRS STAFF AGENCY,05/11/12,465.08
800014423,ADECCO UK LIMITED=============,26189039,1,299.88,FRS STAFF AGENCY,05/11/12,299.88
800014424,ADECCO UK LIMITED=============,26189040,1,953.02,FRS STAFF AGENCY,05/11/12,953.02
800014425,ADECCO UK LIMITED=============,26189041,1,898.65,FRS STAFF AGENCY,05/11/12,898.65
800014426,ADECCO UK LIMITED=============,26189042,1,461.44,FRS STAFF AGENCY,05/11/12,461.44
800014427,ADECCO UK LIMITED=============,26189043,1,346.08,FRS STAFF AGENCY,05/11/12,346.08
800014428,ADECCO UK LIMITED=============,26189044,1,347.34,FRS STAFF AGENCY,05/11/12,347.34
800014429,ADECCO UK LIMITED=============,26189045,1,499.80,FRS STAFF AGENCY,05/11/12,499.80
800014430,ADECCO UK LIMITED=============,26189046,1,576.45,FRS STAFF AGENCY,05/11/12,576.45
800014431,ADECCO UK LIMITED=============,26189047,1,959.26,FRS STAFF AGENCY,05/11/12,959.26
800014432,ADECCO UK LIMITED=============,26189048,1,963.60,FRS STAFF AGENCY,05/11/12,963.60
800014434,ADECCO UK LIMITED=============,26189050,1,905.28,FRS STAFF AGENCY,05/11/12,905.28
800014435,ADECCO UK LIMITED=============,26189051,1,436.45,FRS STAFF AGENCY,05/11/12,436.45
800014437,ADECCO UK LIMITED=============,26194048,1,"1,017.66",FRS STAFF AGENCY,05/11/12,"1,017.66"
800014438,ADECCO UK LIMITED=============,26194049,1,"1,017.66",FRS STAFF AGENCY,05/11/12,"1,017.66"
800014439,ADECCO UK LIMITED=============,26194050,1,"1,098.65",FRS STAFF AGENCY,05/11/12,"1,098.65"
800014440,ADECCO UK LIMITED=============,26194051,1,"1,098.65",FRS STAFF AGENCY,05/11/12,"1,098.65"
800014444,ADECCO UK LIMITED=============,26194052,1,650.72,FRS STAFF AGENCY,05/11/12,650.72
800014445,ADECCO UK LIMITED=============,26194053,1,650.72,FRS STAFF AGENCY,05/11/12,650.72
800014446,ADECCO UK LIMITED=============,26194054,1,650.72,FRS STAFF AGENCY,05/11/12,650.72
800014436,ADECCO UK LIMITED=============,26194055,1,"1,836.74",FRS STAFF AGENCY,05/11/12,"1,836.74"
800014441,ADECCO UK LIMITED=============,26194056,1,590.45,FRS STAFF AGENCY,05/11/12,590.45
800014442,ADECCO UK LIMITED=============,26194057,1,"1,296.75",FRS STAFF AGENCY,05/11/12,"1,296.75"
800014443,ADECCO UK LIMITED=============,26194058,1,"1,296.75",FRS STAFF AGENCY,05/11/12,"1,296.75"
311012E,SPECTRUM======================,2707,1,500.00,SPECIALIST EQUIPMENT,05/11/12,500.00
139934,REACTIVE ROOFING (UK) LIMITED,2720,1,"3,500.00",TACTICAL DAY TO DAY,05/11/12,"9,982.00"
139934,REACTIVE ROOFING (UK) LIMITED,2720,2,"6,482.00",TACTICAL DAY TO DAY,05/11/12,
301012F,S W BRUCE & CO LTD,27763,1,"24,088.03",DEVELOPMENT EX - CONTRACTOR,05/11/12,"24,088.03"
311012C,EXPRESS VENDING LIMITED=======,313540,1,884.00,CATERING EQUIPMENT,05/11/12,884.00
139939,THAMES WATER UTILITIES LTD====,3195811112H,1,342.88,WATER & SEWERAGE RATES,05/11/12,342.88
139939,THAMES WATER UTILITIES LTD====,3229800367J,1,671.36,WATER & SEWERAGE RATES,05/11/12,671.36
241012C,COMPUTACENTRE================,3804272289,1,"1,585.00",DEVELOPMENT EX - CONTRACTOR,05/11/12,"1,585.00"
139939,THAMES WATER UTILITIES LTD====,3999296402Y,1,875.35,WATER & SEWERAGE RATES,05/11/12,875.35
311012E,*BURLINGTON UNIFORMS LTD,412246 - 49 /412251,1,"4,947.00",CLOTHING,05/11/12,"4,947.00"
139939,THAMES WATER UTILITIES LTD====,54858-88145X,1,289.61,WATER & SEWERAGE RATES,05/11/12,289.61
261012E,KINGSWOOD CONSTRUCTION,5929,1,"3,861.00",DEVELOPMENT EXP - CONTRACTORS,05/11/12,"3,861.00"
311012E,MOORE STEPHENS CONSULTING LTD=,672906,1,"3,500.00",MAINTENANCE & SUPPORT,05/11/12,"3,500.00"
311012E,MOORE STEPHENS CONSULTING LTD=,672907,1,"1,500.00",CONSULTANTS,05/11/12,"1,786.00"
311012E,MOORE STEPHENS CONSULTING LTD=,672907,2,286.00,CONSULTANTS,05/11/12,
311012E,MOORE STEPHENS CONSULTING LTD=,672908,1,"1,000.00",CONSULTANTS,05/11/12,"1,000.00"
311012E,MOORE STEPHENS CONSULTING LTD=,672947,1,500.00,MAINTENANCE & SUPPORT,05/11/12,500.00
311012C,MAYORS OFF FOR POLICING&CRIME,6800083375,1,"9,000.00",CONTRACT HIRE,05/11/12,"9,000.00"
139938,MR JOHN CAVANAGH==============,75024D,1,"3,850.00",COUNSELS FEES,05/11/12,"3,850.00"
139939,THAMES WATER UTILITIES LTD====,8011125203J,1,343.39,WATER & SEWERAGE RATES,05/11/12,343.39
311012E,CPL PETROLEUM=================,8448293,1,"4,580.80",FUEL,05/11/12,"4,580.80"
261012E,DRAEGER SAFETY UK LIMITED=====,90392987,1,"1,160.92",PROTECTIVE EQUIPT - PARTS,05/11/12,"1,160.92"
301012C,DRAEGER SAFETY UK LIMITED=====,90393527,1,"1,228.73",PROTECTIVE EQUIPT - PARTS,05/11/12,"1,228.73"
231012E,THAMES WATER UTILITIES LTD====,CBA1212256,1,935.00,HYDRANTS,05/11/12,935.00
311012C,THAMES WATER UTILITIES LTD====,CBA1212506,1,"1,082.00",HYDRANTS,05/11/12,"1,082.00"
311012C,THAMES WATER UTILITIES LTD====,CBA1212508,1,"1,082.00",HYDRANTS,05/11/12,"1,082.00"
311012C,THAMES WATER UTILITIES LTD====,CBA1212512,1,"1,082.00",CURRENT HYDRANT COSTS,05/11/12,"1,082.00"
311012C,THAMES WATER UTILITIES LTD====,CBA1212515,1,"1,015.00",CURRENT HYDRANT COSTS,05/11/12,"1,015.00"
311012C,THAMES WATER UTILITIES LTD====,CBA1212523,1,"1,800.00",CURRENT HYDRANT COSTS,05/11/12,"1,800.00"
311012C,THAMES WATER UTILITIES LTD====,CBA1212524,1,"1,082.00",CURRENT HYDRANT COSTS,05/11/12,"1,082.00"
311012C,THAMES WATER UTILITIES LTD====,CBA1212526,1,"1,082.00",CURRENT HYDRANT COSTS,05/11/12,"1,082.00"
311012C,THAMES WATER UTILITIES LTD====,CBA1212532,1,"1,082.00",CURRENT HYDRANT COSTS,05/11/12,"1,082.00"
311012C,THAMES WATER UTILITIES LTD====,CBA1212535,1,"1,082.00",CURRENT HYDRANT COSTS,05/11/12,"1,082.00"
311012C,THAMES WATER UTILITIES LTD====,CBA1212539,1,"1,082.00",CURRENT HYDRANT COSTS,05/11/12,"1,082.00"
311012C,HUNTER APPAREL SOLUTIONS LTD==,CR2329/045049,1,"8,680.00",CLOTHING,05/11/12,"8,680.00"
139938,THOMPSONS=====================,DLPGRISTSI120009,1,"8,000.00",CLAIMANT COSTS AGREED,05/11/12,"8,000.00"
311012C,S W BRUCE & CO LTD,IMSC1922,1,"21,000.00",DEVELOPMENT EX - CONTRACTOR,05/11/12,"28,636.48"
311012C,S W BRUCE & CO LTD,IMSC1922,2,"7,636.48",DEVELOPMENT EX - CONTRACTOR,05/11/12,
311012C,JACKSON LIFT GROUP============,JS302744M,1,16.25,STRATEGIC (CYCLICAL),05/11/12,"2,506.09"
311012C,JACKSON LIFT GROUP============,JS302744M,2,85.92,STRATEGIC (CYCLICAL),05/11/12,
311012C,JACKSON LIFT GROUP============,JS302744M,3,32.92,STRATEGIC (CYCLICAL),05/11/12,
311012C,JACKSON LIFT GROUP============,JS302744M,4,32.92,STRATEGIC (CYCLICAL),05/11/12,
311012C,JACKSON LIFT GROUP============,JS302744M,5,32.92,STRATEGIC (CYCLICAL),05/11/12,
311012C,JACKSON LIFT GROUP============,JS302744M,6,82.92,STRATEGIC (CYCLICAL),05/11/12,
311012C,JACKSON LIFT GROUP============,JS302744M,7,82.92,STRATEGIC (CYCLICAL),05/11/12,
311012C,JACKSON LIFT GROUP============,JS302744M,8,82.92,STRATEGIC (CYCLICAL),05/11/12,
311012C,JACKSON LIFT GROUP============,JS302744M,9,82.92,STRATEGIC (CYCLICAL),05/11/12,
311012C,JACKSON LIFT GROUP============,JS302744M,10,82.92,STRATEGIC (CYCLICAL),05/11/12,
311012C,JACKSON LIFT GROUP============,JS302744M,11,82.92,STRATEGIC (CYCLICAL),05/11/12,
311012C,JACKSON LIFT GROUP============,JS302744M,12,82.92,STRATEGIC (CYCLICAL),05/11/12,
311012C,JACKSON LIFT GROUP============,JS302744M,13,82.92,STRATEGIC (CYCLICAL),05/11/12,
311012C,JACKSON LIFT GROUP============,JS302744M,14,108.92,STRATEGIC (CYCLICAL),05/11/12,
311012C,JACKSON LIFT GROUP============,JS302744M,15,41.25,STRATEGIC (CYCLICAL),05/11/12,
311012C,JACKSON LIFT GROUP============,JS302744M,16,41.25,STRATEGIC (CYCLICAL),05/11/12,
311012C,JACKSON LIFT GROUP============,JS302744M,17,104.17,STRATEGIC (CYCLICAL),05/11/12,
311012C,JACKSON LIFT GROUP============,JS302744M,18,104.17,STRATEGIC (CYCLICAL),05/11/12,
311012C,JACKSON LIFT GROUP============,JS302744M,19,104.17,STRATEGIC (CYCLICAL),05/11/12,
311012C,JACKSON LIFT GROUP============,JS302744M,20,104.17,STRATEGIC (CYCLICAL),05/11/12,
311012C,JACKSON LIFT GROUP============,JS302744M,21,104.17,STRATEGIC (CYCLICAL),05/11/12,
311012C,JACKSON LIFT GROUP============,JS302744M,22,104.17,STRATEGIC (CYCLICAL),05/11/12,
311012C,JACKSON LIFT GROUP============,JS302744M,23,41.25,STRATEGIC (CYCLICAL),05/11/12,
311012C,JACKSON LIFT GROUP============,JS302744M,24,82.92,STRATEGIC (CYCLICAL),05/11/12,
311012C,JACKSON LIFT GROUP============,JS302744M,25,41.25,STRATEGIC (CYCLICAL),05/11/12,
311012C,JACKSON LIFT GROUP============,JS302744M,26,82.92,STRATEGIC (CYCLICAL),05/11/12,
311012C,JACKSON LIFT GROUP============,JS302744M,27,41.25,STRATEGIC (CYCLICAL),05/11/12,
311012C,JACKSON LIFT GROUP============,JS302744M,28,82.92,STRATEGIC (CYCLICAL),05/11/12,
311012C,JACKSON LIFT GROUP============,JS302744M,29,82.92,STRATEGIC (CYCLICAL),05/11/12,
311012C,JACKSON LIFT GROUP============,JS302744M,30,82.92,STRATEGIC (CYCLICAL),05/11/12,
311012C,JACKSON LIFT GROUP============,JS302744M,31,82.92,STRATEGIC (CYCLICAL),05/11/12,
311012C,JACKSON LIFT GROUP============,JS302744M,32,41.25,STRATEGIC (CYCLICAL),05/11/12,
311012C,JACKSON LIFT GROUP============,JS302744M,33,82.92,STRATEGIC (CYCLICAL),05/11/12,
311012C,JACKSON LIFT GROUP============,JS302744M,34,79.92,STRATEGIC (CYCLICAL),05/11/12,
311012C,SUTTON & EAST SURREY WATER PLC,SI027216,1,312.00,CURRENT HYDRANT COSTS,05/11/12,312.00
301012F,UNIVERSITY OF CENT LANCASHIRE=,TUI176000019,1,"1,440.00",TRAINING & CONFERENCES,05/11/12,"1,440.00"
251012C,UNIVERSITY OF CENT LANCASHIRE=,TUI176000260,1,"2,250.00",TRAINING & CONFERENCES,05/11/12,"2,250.00"
251012C,UNIVERSITY OF CENT LANCASHIRE=,TUI176000261,1,"2,250.00",TRAINING & CONFERENCES,05/11/12,"2,250.00"
251012C,UNIVERSITY OF CENT LANCASHIRE=,TUI176000262,1,"2,250.00",TRAINING & CONFERENCES,05/11/12,"2,250.00"
251012E,UNIVERSITY OF CENT LANCASHIRE=,TUI176007591,1,"1,440.00",TRAINING & CONFERENCES,05/11/12,"1,440.00"
021112C,TURNER & TOWNSEND PROJECT MNGT,000533571,1,"26,804.96",PROFESSIONAL FEES - MISC,08/11/12,"26,804.96"
011112E,*PRINCIPAL CATERING CONSULTNTS,049437,1,58.00,REFRESHMENTS,08/11/12,365.50
011112E,*PRINCIPAL CATERING CONSULTNTS,049437,2,48.00,REFRESHMENTS,08/11/12,
011112E,*PRINCIPAL CATERING CONSULTNTS,049437,3,259.50,REFRESHMENTS,08/11/12,
011112C,G WORRALL & SON LIMITED=======,097165,1,55.00,GENERAL CONSUMABLES,08/11/12,607.00
011112C,G WORRALL & SON LIMITED=======,097165,2,33.00,GENERAL CONSUMABLES,08/11/12,
011112C,G WORRALL & SON LIMITED=======,097165,3,129.00,GENERAL CONSUMABLES,08/11/12,
011112C,G WORRALL & SON LIMITED=======,097165,4,129.00,GENERAL CONSUMABLES,08/11/12,
011112C,G WORRALL & SON LIMITED=======,097165,5,261.00,GENERAL CONSUMABLES,08/11/12,
051112E,*SPRUE SAFETY PRODUCTS LTD====,1037521,1,"1,264.00",FIRE DETECTORS,08/11/12,"1,264.00"
051112E,*SPRUE SAFETY PRODUCTS LTD====,1037523,1,632.00,FIRE DETECTORS,08/11/12,632.00
051112E,*SPRUE SAFETY PRODUCTS LTD====,1037527,1,"1,896.00",FIRE DETECTORS,08/11/12,"1,896.00"
051112E,*SPRUE SAFETY PRODUCTS LTD====,1037546,1,"1,264.00",FIRE DETECTORS,08/11/12,"1,264.00"
051112E,*SPRUE SAFETY PRODUCTS LTD====,1037625,1,632.00,FIRE DETECTORS,08/11/12,632.00
800014448,AZTEC COMPUTING LTD===========,10386,1,"2,100.00",TELECOMMUNICATIONS,08/11/12,"2,100.00"
800014449,AZTEC COMPUTING LTD===========,10387,1,"4,200.00",TELECOMMUNICATIONS,08/11/12,"4,200.00"
800014450,AZTEC COMPUTING LTD===========,10388,1,"10,500.00",MAINTENANCE & SUPPORT,08/11/12,"10,500.00"
800014451,AZTEC COMPUTING LTD===========,10389,1,"2,450.00",TELECOMMUNICATIONS,08/11/12,"2,450.00"
800014453,AZTEC COMPUTING LTD===========,10391,1,"2,800.00",MAINTENANCE & SUPPORT,08/11/12,"2,800.00"
800014447,*NPS (SHOES) LTD,10794,1,41.10,CLOTHING,08/11/12,"1,178.40"
800014447,*NPS (SHOES) LTD,10794,2,41.10,CLOTHING,08/11/12,
800014447,*NPS (SHOES) LTD,10794,3,41.10,CLOTHING,08/11/12,
800014447,*NPS (SHOES) LTD,10794,4,41.10,CLOTHING,08/11/12,
800014447,*NPS (SHOES) LTD,10794,5,41.10,CLOTHING,08/11/12,
800014447,*NPS (SHOES) LTD,10794,6,41.10,CLOTHING,08/11/12,
800014447,*NPS (SHOES) LTD,10794,7,41.10,CLOTHING,08/11/12,
800014447,*NPS (SHOES) LTD,10794,8,41.10,CLOTHING,08/11/12,
800014447,*NPS (SHOES) LTD,10794,9,41.10,CLOTHING,08/11/12,
800014447,*NPS (SHOES) LTD,10794,10,41.10,CLOTHING,08/11/12,
800014447,*NPS (SHOES) LTD,10794,11,41.10,CLOTHING,08/11/12,
800014447,*NPS (SHOES) LTD,10794,12,41.10,CLOTHING,08/11/12,
800014447,*NPS (SHOES) LTD,10794,13,41.10,CLOTHING,08/11/12,
800014447,*NPS (SHOES) LTD,10794,14,41.10,CLOTHING,08/11/12,
800014447,*NPS (SHOES) LTD,10794,15,41.10,CLOTHING,08/11/12,
800014447,*NPS (SHOES) LTD,10794,16,41.10,CLOTHING,08/11/12,
800014447,*NPS (SHOES) LTD,10794,17,41.10,CLOTHING,08/11/12,
800014447,*NPS (SHOES) LTD,10794,18,41.10,CLOTHING,08/11/12,
800014447,*NPS (SHOES) LTD,10794,19,41.10,CLOTHING,08/11/12,
800014447,*NPS (SHOES) LTD,10794,20,30.05,CLOTHING,08/11/12,
800014447,*NPS (SHOES) LTD,10794,21,30.05,CLOTHING,08/11/12,
800014447,*NPS (SHOES) LTD,10794,22,30.05,CLOTHING,08/11/12,
800014447,*NPS (SHOES) LTD,10794,23,30.05,CLOTHING,08/11/12,
800014447,*NPS (SHOES) LTD,10794,24,30.05,CLOTHING,08/11/12,
800014447,*NPS (SHOES) LTD,10794,25,29.45,CLOTHING,08/11/12,
800014447,*NPS (SHOES) LTD,10794,26,29.45,CLOTHING,08/11/12,
800014447,*NPS (SHOES) LTD,10794,27,29.45,CLOTHING,08/11/12,
800014447,*NPS (SHOES) LTD,10794,28,29.45,CLOTHING,08/11/12,
800014447,*NPS (SHOES) LTD,10794,29,29.45,CLOTHING,08/11/12,
800014447,*NPS (SHOES) LTD,10794,30,29.45,CLOTHING,08/11/12,
800014447,*NPS (SHOES) LTD,10794,31,29.45,CLOTHING,08/11/12,
800014447,*NPS (SHOES) LTD,10794,32,41.10,CLOTHING,08/11/12,
139941,GALLAGHER HEATH,10995100,1,318.00,FUEL,08/11/12,318.00
011112E,BT GLOBAL SERVICES============,1123113,1,541.66,TELECOMMUNICATIONS,08/11/12,541.66
061112C,TEAM KAIZEN TDS,1291,1,"1,440.00",PUBLIC RELATIONS,08/11/12,"1,440.00"
011112C,RESPIREX======================,139966,1,"7,500.00",PROTECTIVE EQUIPMENT,08/11/12,"7,500.00"
011112C,RESPIREX======================,139969,1,"12,500.00",PROTECTIVE EQUIPMENT,08/11/12,"12,500.00"
291012E,HIREMASTERS LTD,203122,1,"1,250.00",GENERAL,08/11/12,"1,250.00"
011112E,TRADE WINDS===================,20323,1,"3,105.00",PROTECTIVE EQUIPT - PARTS,08/11/12,"3,105.00"
021112C,PELI PRODUCTS (UK) LTD========,211775,1,671.54,PROTECTIVE EQUIPMENT,08/11/12,683.54
021112C,PELI PRODUCTS (UK) LTD========,211775,2,12.00,PROTECTIVE EQUIPMENT,08/11/12,
011112E,FALDER MATTHEWS T/A FM PRINT==,21314-1,1,946.00,PRINTING,08/11/12,946.00
021112C,CRISPIN HUGHES================,2152-B,1,452.00,GENERAL,08/11/12,452.00
011112C,MACE LIMITED,26915/1012727,1,"6,145.00",PROFESSIONAL FEES - MISC,08/11/12,"6,145.00"
231012C,OPEN UNIVERSITY===============,374244,1,965.00,TRAINING & CONFERENCES,08/11/12,965.00
251012E,OPEN UNIVERSITY===============,374306,1,735.00,TRAINING & CONFERENCES,08/11/12,735.00
051112E,OPEN UNIVERSITY===============,374307,1,965.00,TRAINING & CONFERENCES,08/11/12,965.00
221012C,W & E DERRICK BLDG. CONT.=====,4024,1,"3,385.00",DAY TO DAY MINOR IMPS,08/11/12,"3,385.00"
311012E,HEADCORN PARACHUTE CLUB,4138,1,"1,185.00",PUBLIC RELATIONS,08/11/12,"1,185.00"
051112E,MITIE SECURITY (LONDON) LTD===,44/491486,1,"1,632.70",PREMISES SECURITY,08/11/12,"1,632.70"
011112C,R J HOLLAND LTD===============,4617,1,"1,285.00",DAY TO DAY MINOR IMPS,08/11/12,"1,285.00"
051112E,EUROVIA INFRASTRUCTURE LIMITED,5055.2.0077000614,1,"47,269.15",STRATEGIC (NON CYCLICAL),08/11/12,"47,269.15"
021112C,FAHEY BUILDERS LTD============,5136*,1,"2,950.00",STRATEGIC (NON CYCLICAL),08/11/12,"2,950.00"
021112C,FAHEY BUILDERS LTD============,5137,1,"3,775.00",STRATEGIC (NON CYCLICAL),08/11/12,"3,775.00"
021112C,FAHEY BUILDERS LTD============,5138,1,"3,675.00",STRATEGIC (NON CYCLICAL),08/11/12,"3,675.00"
021112C,FAHEY BUILDERS LTD============,5139,1,"5,175.00",STRATEGIC (NON CYCLICAL),08/11/12,"5,175.00"
011112C,LAKEHOUSE CONTRACTS LTD=======,515964,1,"2,012.81",STRATEGIC (NON CYCLICAL),08/11/12,"2,012.81"
011112E,*SUPPLIES TEAM================,5384038,1,325.00,OPERATIONAL EQUIP-PURCHASE,08/11/12,325.00
241012C,SIEMENS ENTERPRISE COMM LTD===,549G6000837145,1,300.00,TELECOMMUNICATIONS,08/11/12,300.00
311012C,ROYAL DOCKS MGT AUTHORITY LTD=,6399,1,930.00,GENERAL,08/11/12,930.00
139941,THAMES WATER UTILITIES LTD====,7216970523E,1,485.86,WATER & SEWERAGE RATES,08/11/12,485.86
061112G,SHARPE PRITCHARD==============,74611,1,"1,125.00",CONSULTANTS,08/11/12,"1,125.00"
011112E,CPL PETROLEUM=================,8488408,1,"3,471.00",FUEL,08/11/12,"3,471.00"
011112E,CPL PETROLEUM=================,8510188,1,"3,558.49",FUEL,08/11/12,"3,558.49"
051112E,CPL PETROLEUM=================,8516842,1,"3,059.15",FUEL,08/11/12,"3,059.15"
011112E,A&A ELECTRICAL DISTRIBUTORS===,901979,1,"1,039.50",GENERAL CONSUMABLES,08/11/12,"1,039.50"
011112C,DRAEGER SAFETY UK LIMITED=====,90393715,1,324.20,PROTECTIVE EQUIPT - PARTS,08/11/12,324.20
011112E,DRAEGER SAFETY UK LIMITED=====,90393913,1,"2,700.00",TRAINING & CONFERENCES,08/11/12,"2,700.00"
241012E,*OFFICE DEPOT UK LTD,955276049,1,238.00,STATIONERY CONSUMABLES,08/11/12,440.68
241012E,*OFFICE DEPOT UK LTD,955276049,2,202.68,STATIONERY CONSUMABLES,08/11/12,
011112C,KIER BUILDING SERV ENGINEERS==,F00038195,1,510.40,STRATEGIC (NON CYCLICAL),08/11/12,"1,141.25"
011112C,KIER BUILDING SERV ENGINEERS==,F00038195,2,630.85,STRATEGIC (NON CYCLICAL),08/11/12,
011112E,DET NORSKE VERITAS LTD========,KEUUK222 1190531,1,"7,045.50",CONSULTANTS,08/11/12,"7,045.50"
051112E,SMITH O'SULLIVAN LTD.=========,LFB/HFS/003*,1,604.16,STRATEGIC (NON CYCLICAL),08/11/12,604.16
021112C,BALFOUR BEATTY WORKPLACE LTD,M116344,1,326.00,STRATEGIC (NON CYCLICAL),08/11/12,326.00
021112C,BALFOUR BEATTY WORKPLACE LTD,M116345,1,747.00,STRATEGIC (NON CYCLICAL),08/11/12,747.00
021112C,BALFOUR BEATTY WORKPLACE LTD,M116347,1,"2,500.00",STRATEGIC (NON CYCLICAL),08/11/12,"2,500.00"
021112C,BALFOUR BEATTY WORKPLACE LTD,M116348,1,583.00,STRATEGIC (NON CYCLICAL),08/11/12,583.00
021112C,BALFOUR BEATTY WORKPLACE LTD,M116678,1,"3,215.00",STRATEGIC (NON CYCLICAL),08/11/12,"3,215.00"
051112E,PHOENIX SOFTWARE LTD==========,OP/I680260,1,"4,700.00",CONSULTANTS,08/11/12,"4,700.00"
011112E,FIBERWEB GEOSYNTHETICS LTD,PSV87268,1,365.05,GENERAL CONSUMABLES,08/11/12,365.05
139936,MAYPLACE PROPERTY SERVICES LIM,SI-1003,1,"1,506.88",TACTICAL DAY TO DAY,08/11/12,"4,706.75"
139936,MAYPLACE PROPERTY SERVICES LIM,SI-1003,2,"3,199.87",TACTICAL DAY TO DAY,08/11/12,
051112E,OPENHOUSE PRODUCTS LTD========,SI010541,1,"1,828.19",GENERAL CONSUMABLES,08/11/12,"1,828.19"
021112C,SUTTON & EAST SURREY WATER PLC,SI027214,1,985.00,CURRENT HYDRANT COSTS,08/11/12,985.00
021112C,SUTTON & EAST SURREY WATER PLC,SI027219,1,384.00,CURRENT HYDRANT COSTS,08/11/12,384.00
021112C,SUTTON & EAST SURREY WATER PLC,SI027222,1,"1,071.00",CURRENT HYDRANT COSTS,08/11/12,"1,071.00"
011112C,CPC BATTERY SERVICES LTD.===,SIN/0028583,1,"2,070.60",TELECOMMUNICATIONS,08/11/12,"2,070.60"
011112E,FIRE SERVICE COLLEGE==========,SIN051025,1,"2,400.00",TRAINING & CONFERENCES,08/11/12,"2,400.00"
051112E,*THOMAS KNEALE & CO LTD,TK2531,1,346.55,OFFICE FURNITURE,08/11/12,346.55
061112G,THE GEOINFORMATION GROUP======,U121001,1,"7,500.00",CONSULTANTS,08/11/12,"7,500.00"
061112E,ASSETCO ENGINEERING===========,OP/I040930,1,"19,186.91",MODIFICATIONS,09/11/12,"19,186.91"
061112E,ASSETCO ENGINEERING===========,OP/I040932,1,"8,605.56",MODIFICATIONS,09/11/12,"8,605.56"
061112E,ASSETCO ENGINEERING===========,OP/I040933,1,"73,547.39",MODIFICATIONS,09/11/12,"73,547.39"
061112E,PREMIER FIRESERVE ENGINEERING,OP/I040942,1,608.13,ACCIDENT REPAIRS,09/11/12,608.13
061112E,PREMIER FIRESERVE ENGINEERING,OP/I040943,1,"25,068.30",VEHICLES NWFT,09/11/12,"28,688.45"
061112E,PREMIER FIRESERVE ENGINEERING,OP/I040943,2,"3,620.15",LOST & NFWT OPS EQUIPMENT,09/11/12,
061112E,PREMIER FIRESERVE ENGINEERING,OP/I040946,1,"8,452.89",ACCIDENT REPAIRS,09/11/12,"8,452.89"
061112E,PREMIER FIRESERVE ENGINEERING,OP/I040948,1,"1,015.00",MODIFICATIONS,09/11/12,"1,015.00"
061112E,PREMIER FIRESERVE ENGINEERING,OP/I040950,1,"18,988.45",MODIFICATIONS,09/11/12,"18,988.45"
061112E,PREMIER FIRESERVE ENGINEERING,OP/I040951,1,"15,738.90",MODIFICATIONS,09/11/12,"15,738.90"
061112E,PREMIER FIRESERVE ENGINEERING,OP/I040953,1,"3,595.26",ACCIDENT REPAIRS,09/11/12,"3,595.26"
081112F,"TOYE, KENNING & SPENCER LTD===",0010246494,1,410.00,UNIFORMS - POMS,12/11/12,410.00
081112F,"TOYE, KENNING & SPENCER LTD===",0010246495,1,397.50,UNIFORMS - POMS,12/11/12,397.50
139942,OGILVIE FLEET LTD=============,00212170,1,410.05,LEASE CAR CHARGES,12/11/12,410.05
139942,OGILVIE FLEET LTD=============,00212170,2,-36.61,VAT CAR LEASING,12/11/12,
139942,OGILVIE FLEET LTD=============,00212170,3,36.61,LEASE CAR CHARGES,12/11/12,
139942,OGILVIE FLEET LTD=============,00212171,1,317.64,LEASE CAR CHARGES,12/11/12,317.64
139942,OGILVIE FLEET LTD=============,00212171,2,-26.87,VAT CAR LEASING,12/11/12,
139942,OGILVIE FLEET LTD=============,00212171,3,26.87,LEASE CAR CHARGES,12/11/12,
139942,OGILVIE FLEET LTD=============,00212173,1,324.85,LEASE CAR CHARGES,12/11/12,324.85
139942,OGILVIE FLEET LTD=============,00212173,2,-26.39,VAT CAR LEASING,12/11/12,
139942,OGILVIE FLEET LTD=============,00212173,3,26.39,LEASE CAR CHARGES,12/11/12,
139942,OGILVIE FLEET LTD=============,00212174,1,316.42,LEASE CAR CHARGES,12/11/12,316.42
139942,OGILVIE FLEET LTD=============,00212174,2,-27.12,VAT CAR LEASING,12/11/12,
139942,OGILVIE FLEET LTD=============,00212174,3,27.12,LEASE CAR CHARGES,12/11/12,
139942,OGILVIE FLEET LTD=============,00212175,1,445.78,LEASE CAR CHARGES,12/11/12,445.78
139942,OGILVIE FLEET LTD=============,00212175,2,-38.44,VAT CAR LEASING,12/11/12,
139942,OGILVIE FLEET LTD=============,00212175,3,38.44,LEASE CAR CHARGES,12/11/12,
139942,OGILVIE FLEET LTD=============,00212176,1,446.63,LEASE CAR CHARGES,12/11/12,446.63
139942,OGILVIE FLEET LTD=============,00212176,2,-38.53,VAT CAR LEASING,12/11/12,
139942,OGILVIE FLEET LTD=============,00212176,3,38.53,LEASE CAR CHARGES,12/11/12,
139942,OGILVIE FLEET LTD=============,00212177,1,445.78,LEASE CAR CHARGES,12/11/12,445.78
139942,OGILVIE FLEET LTD=============,00212177,2,-38.44,VAT CAR LEASING,12/11/12,
139942,OGILVIE FLEET LTD=============,00212177,3,38.44,LEASE CAR CHARGES,12/11/12,
139942,OGILVIE FLEET LTD=============,00212178,1,388.56,LEASE CAR CHARGES,12/11/12,388.56
139942,OGILVIE FLEET LTD=============,00212178,2,-33.71,VAT CAR LEASING,12/11/12,
139942,OGILVIE FLEET LTD=============,00212178,3,33.71,LEASE CAR CHARGES,12/11/12,
139942,OGILVIE FLEET LTD=============,00212179,1,384.31,LEASE CAR CHARGES,12/11/12,384.31
139942,OGILVIE FLEET LTD=============,00212179,2,-33.29,VAT CAR LEASING,12/11/12,
139942,OGILVIE FLEET LTD=============,00212179,3,33.29,LEASE CAR CHARGES,12/11/12,
139942,OGILVIE FLEET LTD=============,00212181,1,468.02,LEASE CAR CHARGES,12/11/12,468.02
139942,OGILVIE FLEET LTD=============,00212181,2,-40.00,VAT CAR LEASING,12/11/12,
139942,OGILVIE FLEET LTD=============,00212181,3,40.00,LEASE CAR CHARGES,12/11/12,
139942,OGILVIE FLEET LTD=============,00212182,1,446.02,LEASE CAR CHARGES,12/11/12,446.02
139942,OGILVIE FLEET LTD=============,00212182,2,-39.74,VAT CAR LEASING,12/11/12,
139942,OGILVIE FLEET LTD=============,00212182,3,39.74,LEASE CAR CHARGES,12/11/12,
139942,OGILVIE FLEET LTD=============,00212183,1,345.62,LEASE CAR CHARGES,12/11/12,345.62
139942,OGILVIE FLEET LTD=============,00212183,2,-29.13,VAT CAR LEASING,12/11/12,
139942,OGILVIE FLEET LTD=============,00212183,3,29.13,LEASE CAR CHARGES,12/11/12,
139942,OGILVIE FLEET LTD=============,00212184,1,362.87,LEASE CAR CHARGES,12/11/12,362.87
139942,OGILVIE FLEET LTD=============,00212184,2,-28.72,VAT CAR LEASING,12/11/12,
139942,OGILVIE FLEET LTD=============,00212184,3,28.72,LEASE CAR CHARGES,12/11/12,
139942,OGILVIE FLEET LTD=============,00212185,1,318.19,LEASE CAR CHARGES,12/11/12,318.19
139942,OGILVIE FLEET LTD=============,00212185,2,-27.05,VAT CAR LEASING,12/11/12,
139942,OGILVIE FLEET LTD=============,00212185,3,27.05,LEASE CAR CHARGES,12/11/12,
139942,OGILVIE FLEET LTD=============,00213001,1,"1,397.08",LEASE CAR CHARGES,12/11/12,"3,377.04"
139942,OGILVIE FLEET LTD=============,00213001,2,"1,979.96",P/PAYMTS-CAR LEASG-RENTAL,12/11/12,
139942,OGILVIE FLEET LTD=============,00213001,3,-279.80,VAT CAR LEASING,12/11/12,
139942,OGILVIE FLEET LTD=============,00213001,4,279.80,LEASE CAR CHARGES,12/11/12,
071112C,REGENT OFFICE CARE LTD========,0040353,1,157.50,STRATEGIC (CYCLICAL),12/11/12,"6,504.75"
071112C,REGENT OFFICE CARE LTD========,0040353,2,189.00,STRATEGIC (CYCLICAL),12/11/12,
071112C,REGENT OFFICE CARE LTD========,0040353,3,189.00,STRATEGIC (CYCLICAL),12/11/12,
071112C,REGENT OFFICE CARE LTD========,0040353,4,157.50,STRATEGIC (CYCLICAL),12/11/12,
071112C,REGENT OFFICE CARE LTD========,0040353,5,189.00,STRATEGIC (CYCLICAL),12/11/12,
071112C,REGENT OFFICE CARE LTD========,0040353,6,157.50,STRATEGIC (CYCLICAL),12/11/12,
071112C,REGENT OFFICE CARE LTD========,0040353,7,189.00,STRATEGIC (CYCLICAL),12/11/12,
071112C,REGENT OFFICE CARE LTD========,0040353,8,157.50,STRATEGIC (CYCLICAL),12/11/12,
071112C,REGENT OFFICE CARE LTD========,0040353,9,157.50,STRATEGIC (CYCLICAL),12/11/12,
071112C,REGENT OFFICE CARE LTD========,0040353,10,189.00,STRATEGIC (CYCLICAL),12/11/12,
071112C,REGENT OFFICE CARE LTD========,0040353,11,189.00,STRATEGIC (CYCLICAL),12/11/12,
071112C,REGENT OFFICE CARE LTD========,0040353,12,157.50,STRATEGIC (CYCLICAL),12/11/12,
071112C,REGENT OFFICE CARE LTD========,0040353,13,157.50,STRATEGIC (CYCLICAL),12/11/12,
071112C,REGENT OFFICE CARE LTD========,0040353,14,157.50,STRATEGIC (CYCLICAL),12/11/12,
071112C,REGENT OFFICE CARE LTD========,0040353,15,157.50,STRATEGIC (CYCLICAL),12/11/12,
071112C,REGENT OFFICE CARE LTD========,0040353,16,189.00,STRATEGIC (CYCLICAL),12/11/12,
071112C,REGENT OFFICE CARE LTD========,0040353,17,157.50,STRATEGIC (CYCLICAL),12/11/12,
071112C,REGENT OFFICE CARE LTD========,0040353,18,189.00,STRATEGIC (CYCLICAL),12/11/12,
071112C,REGENT OFFICE CARE LTD========,0040353,19,157.50,STRATEGIC (CYCLICAL),12/11/12,
071112C,REGENT OFFICE CARE LTD========,0040353,20,189.00,STRATEGIC (CYCLICAL),12/11/12,
071112C,REGENT OFFICE CARE LTD========,0040353,21,189.00,STRATEGIC (CYCLICAL),12/11/12,
071112C,REGENT OFFICE CARE LTD========,0040353,22,157.50,STRATEGIC (CYCLICAL),12/11/12,
071112C,REGENT OFFICE CARE LTD========,0040353,23,189.00,STRATEGIC (CYCLICAL),12/11/12,
071112C,REGENT OFFICE CARE LTD========,0040353,24,189.00,STRATEGIC (CYCLICAL),12/11/12,
071112C,REGENT OFFICE CARE LTD========,0040353,25,189.00,STRATEGIC (CYCLICAL),12/11/12,
071112C,REGENT OFFICE CARE LTD========,0040353,26,173.25,STRATEGIC (CYCLICAL),12/11/12,
071112C,REGENT OFFICE CARE LTD========,0040353,27,157.50,STRATEGIC (CYCLICAL),12/11/12,
071112C,REGENT OFFICE CARE LTD========,0040353,28,189.00,STRATEGIC (CYCLICAL),12/11/12,
071112C,REGENT OFFICE CARE LTD========,0040353,29,157.50,STRATEGIC (CYCLICAL),12/11/12,
071112C,REGENT OFFICE CARE LTD========,0040353,30,189.00,STRATEGIC (CYCLICAL),12/11/12,
071112C,REGENT OFFICE CARE LTD========,0040353,31,252.00,STRATEGIC (CYCLICAL),12/11/12,
071112C,REGENT OFFICE CARE LTD========,0040353,32,189.00,STRATEGIC (CYCLICAL),12/11/12,
071112C,REGENT OFFICE CARE LTD========,0040353,33,157.50,STRATEGIC (CYCLICAL),12/11/12,
071112C,REGENT OFFICE CARE LTD========,0040353,34,157.50,STRATEGIC (CYCLICAL),12/11/12,
071112C,REGENT OFFICE CARE LTD========,0040353,35,189.00,STRATEGIC (CYCLICAL),12/11/12,
071112C,REGENT OFFICE CARE LTD========,0040353,36,189.00,STRATEGIC (CYCLICAL),12/11/12,
071112C,REGENT OFFICE CARE LTD========,0040353,37,157.50,STRATEGIC (CYCLICAL),12/11/12,
081112F,*PREMIER VANGUARD LTD,00641894,1,66.60,STATIONERY CONSUMABLES,12/11/12,342.60
081112F,*PREMIER VANGUARD LTD,00641894,2,276.00,STATIONERY CONSUMABLES,12/11/12,
139944,THAMES WATER UTILITIES LTD====,0705420579 Z,1,473.21,WATER & SEWERAGE RATES,12/11/12,473.21
061112C,AFFINITY WATER,101015692,1,818.00,CURRENT HYDRANT COSTS,12/11/12,818.00
061112C,AFFINITY WATER,101015695,1,359.00,CURRENT HYDRANT COSTS,12/11/12,359.00
061112C,AFFINITY WATER,101015696,1,359.00,CURRENT HYDRANT COSTS,12/11/12,359.00
061112C,AFFINITY WATER,101015698,1,359.00,CURRENT HYDRANT COSTS,12/11/12,359.00
139942,ARVAL UK LTD,1012117801,1,"1,963.35",LEASE CAR CHARGES,12/11/12,"2,889.61"
139942,ARVAL UK LTD,1012117801,2,926.26,P/PAYMTS-CAR LEASG-RENTAL,12/11/12,
139942,ARVAL UK LTD,1012117801,3,-235.66,VAT CAR LEASING,12/11/12,
139942,ARVAL UK LTD,1012117801,4,235.66,LEASE CAR CHARGES,12/11/12,
061112E,*SPRUE SAFETY PRODUCTS LTD====,1038132,1,"1,769.60",FIRE DETECTORS,12/11/12,"1,769.60"
061112E,*SPRUE SAFETY PRODUCTS LTD====,1038138,1,"1,011.20",FIRE DETECTORS,12/11/12,"1,011.20"
061112E,*SPRUE SAFETY PRODUCTS LTD====,1038139,1,"1,011.20",FIRE DETECTORS,12/11/12,"1,011.20"
061112E,*SPRUE SAFETY PRODUCTS LTD====,1038140,1,"1,011.20",FIRE DETECTORS,12/11/12,"1,011.20"
061112E,*SPRUE SAFETY PRODUCTS LTD====,1038142,1,"1,011.20",FIRE DETECTORS,12/11/12,"1,011.20"
800014452,AZTEC COMPUTING LTD===========,10390,1,700.00,CONSULTANTS,12/11/12,"2,100.00"
800014452,AZTEC COMPUTING LTD===========,10390,2,"1,400.00",CONSULTANTS,12/11/12,
061112C,IBM UK LIMITED================,105285204,1,"1,204.00",MAINTENANCE & SUPPORT,12/11/12,"1,204.00"
071112C,DELOITTE LLP,1110855996,1,"1,610.00",PROFESSIONAL SERVICES,12/11/12,"1,610.00"
800014619,PRIMEPEACE LTD================,121001,1,"9,845.00",MAINTENANCE & SUPPORT,12/11/12,"17,005.00"
800014619,PRIMEPEACE LTD================,121001,2,"2,685.00",MAINTENANCE & SUPPORT,12/11/12,
800014619,PRIMEPEACE LTD================,121001,3,"1,790.00",MAINTENANCE & SUPPORT,12/11/12,
800014619,PRIMEPEACE LTD================,121001,4,"2,685.00",MAINTENANCE & SUPPORT,12/11/12,
061112C,MARTIN LAVELL LTD=============,1212188,1,349.20,BOOKS & JOURNALS,12/11/12,349.20
071112C,CARPETS & FLOOR COVERS DIRECT=,1266,1,579.60,FIXTURES & FITTINGS,12/11/12,579.60
071112C,CARPETS & FLOOR COVERS DIRECT=,1281,1,550.00,TACTICAL DAY TO DAY,12/11/12,550.00
251012C,PRESSURE COOLERS LTD==========,137588,1,8.25,CATERING FIXTURES,12/11/12,"1,311.00"
251012C,PRESSURE COOLERS LTD==========,137588,2,8.25,CATERING FIXTURES,12/11/12,
251012C,PRESSURE COOLERS LTD==========,137588,3,8.25,CATERING FIXTURES,12/11/12,
251012C,PRESSURE COOLERS LTD==========,137588,4,8.25,CATERING FIXTURES,12/11/12,
251012C,PRESSURE COOLERS LTD==========,137588,5,8.00,CATERING FIXTURES,12/11/12,
251012C,PRESSURE COOLERS LTD==========,137588,6,8.25,CATERING FIXTURES,12/11/12,
251012C,PRESSURE COOLERS LTD==========,137588,7,8.00,CATERING FIXTURES,12/11/12,
251012C,PRESSURE COOLERS LTD==========,137588,8,8.25,CATERING FIXTURES,12/11/12,
251012C,PRESSURE COOLERS LTD==========,137588,9,8.25,CATERING FIXTURES,12/11/12,
251012C,PRESSURE COOLERS LTD==========,137588,10,8.25,CATERING FIXTURES,12/11/12,
251012C,PRESSURE COOLERS LTD==========,137588,11,8.25,CATERING EQUIPMENT,12/11/12,
251012C,PRESSURE COOLERS LTD==========,137588,12,8.00,CATERING FIXTURES,12/11/12,
251012C,PRESSURE COOLERS LTD==========,137588,13,8.25,CATERING FIXTURES,12/11/12,
251012C,PRESSURE COOLERS LTD==========,137588,14,8.25,CATERING FIXTURES,12/11/12,
251012C,PRESSURE COOLERS LTD==========,137588,15,8.25,CATERING FIXTURES,12/11/12,
251012C,PRESSURE COOLERS LTD==========,137588,16,8.25,CATERING FIXTURES,12/11/12,
251012C,PRESSURE COOLERS LTD==========,137588,17,8.00,CATERING FIXTURES,12/11/12,
251012C,PRESSURE COOLERS LTD==========,137588,18,8.25,CATERING FIXTURES,12/11/12,
251012C,PRESSURE COOLERS LTD==========,137588,19,8.00,CATERING FIXTURES,12/11/12,
251012C,PRESSURE COOLERS LTD==========,137588,20,8.25,CATERING FIXTURES,12/11/12,
251012C,PRESSURE COOLERS LTD==========,137588,21,8.25,CATERING FIXTURES,12/11/12,
251012C,PRESSURE COOLERS LTD==========,137588,22,8.00,CATERING FIXTURES,12/11/12,
251012C,PRESSURE COOLERS LTD==========,137588,23,8.25,CATERING FIXTURES,12/11/12,
251012C,PRESSURE COOLERS LTD==========,137588,24,8.25,CATERING FIXTURES,12/11/12,
251012C,PRESSURE COOLERS LTD==========,137588,26,8.00,CATERING FIXTURES,12/11/12,
251012C,PRESSURE COOLERS LTD==========,137588,27,8.25,CATERING FIXTURES,12/11/12,
251012C,PRESSURE COOLERS LTD==========,137588,28,8.25,CATERING FIXTURES,12/11/12,
251012C,PRESSURE COOLERS LTD==========,137588,29,8.00,CATERING FIXTURES,12/11/12,
251012C,PRESSURE COOLERS LTD==========,137588,30,8.25,CATERING FIXTURES,12/11/12,
251012C,PRESSURE COOLERS LTD==========,137588,31,8.25,CATERING FIXTURES,12/11/12,
251012C,PRESSURE COOLERS LTD==========,137588,32,8.25,CATERING EQUIPMENT,12/11/12,
251012C,PRESSURE COOLERS LTD==========,137588,33,8.25,CATERING FIXTURES,12/11/12,
251012C,PRESSURE COOLERS LTD==========,137588,34,8.25,CATERING EQUIPMENT,12/11/12,
251012C,PRESSURE COOLERS LTD==========,137588,35,8.25,CATERING FIXTURES,12/11/12,
251012C,PRESSURE COOLERS LTD==========,137588,36,8.25,CATERING EQUIPMENT,12/11/12,
251012C,PRESSURE COOLERS LTD==========,137588,37,8.25,CATERING FIXTURES,12/11/12,
251012C,PRESSURE COOLERS LTD==========,137588,38,8.25,CATERING FIXTURES,12/11/12,
251012C,PRESSURE COOLERS LTD==========,137588,39,8.00,OFFICE EQUIPMENT,12/11/12,
251012C,PRESSURE COOLERS LTD==========,137588,40,8.25,CATERING FIXTURES,12/11/12,
251012C,PRESSURE COOLERS LTD==========,137588,41,8.25,CATERING FIXTURES,12/11/12,
251012C,PRESSURE COOLERS LTD==========,137588,42,8.25,CATERING FIXTURES,12/11/12,
251012C,PRESSURE COOLERS LTD==========,137588,43,8.25,CATERING FIXTURES,12/11/12,
251012C,PRESSURE COOLERS LTD==========,137588,44,8.00,CATERING FIXTURES,12/11/12,
251012C,PRESSURE COOLERS LTD==========,137588,45,8.00,CATERING FIXTURES,12/11/12,
251012C,PRESSURE COOLERS LTD==========,137588,46,8.25,CATERING FIXTURES,12/11/12,
251012C,PRESSURE COOLERS LTD==========,137588,47,8.25,CATERING FIXTURES,12/11/12,
251012C,PRESSURE COOLERS LTD==========,137588,48,8.25,CATERING FIXTURES,12/11/12,
251012C,PRESSURE COOLERS LTD==========,137588,49,8.25,CATERING FIXTURES,12/11/12,
251012C,PRESSURE COOLERS LTD==========,137588,50,8.00,CATERING FIXTURES,12/11/12,
251012C,PRESSURE COOLERS LTD==========,137588,51,8.25,CATERING FIXTURES,12/11/12,
251012C,PRESSURE COOLERS LTD==========,137588,52,8.25,CATERING FIXTURES,12/11/12,
251012C,PRESSURE COOLERS LTD==========,137588,53,8.25,CATERING FIXTURES,12/11/12,
251012C,PRESSURE COOLERS LTD==========,137588,54,8.25,CATERING FIXTURES,12/11/12,
251012C,PRESSURE COOLERS LTD==========,137588,55,8.25,CATERING FIXTURES,12/11/12,
251012C,PRESSURE COOLERS LTD==========,137588,56,8.25,CATERING FIXTURES,12/11/12,
251012C,PRESSURE COOLERS LTD==========,137588,57,8.25,CATERING FIXTURES,12/11/12,
251012C,PRESSURE COOLERS LTD==========,137588,58,8.00,CATERING FIXTURES,12/11/12,
251012C,PRESSURE COOLERS LTD==========,137588,59,8.25,CATERING FIXTURES,12/11/12,
251012C,PRESSURE COOLERS LTD==========,137588,60,8.25,CATERING EQUIPMENT,12/11/12,
251012C,PRESSURE COOLERS LTD==========,137588,61,8.25,CATERING FIXTURES,12/11/12,
251012C,PRESSURE COOLERS LTD==========,137588,62,8.25,CATERING FIXTURES,12/11/12,
251012C,PRESSURE COOLERS LTD==========,137588,63,8.25,CATERING FIXTURES,12/11/12,
251012C,PRESSURE COOLERS LTD==========,137588,64,8.25,CATERING FIXTURES,12/11/12,
251012C,PRESSURE COOLERS LTD==========,137588,65,8.25,CATERING FIXTURES,12/11/12,
251012C,PRESSURE COOLERS LTD==========,137588,66,8.25,CATERING FIXTURES,12/11/12,
251012C,PRESSURE COOLERS LTD==========,137588,67,8.25,CATERING FIXTURES,12/11/12,
251012C,PRESSURE COOLERS LTD==========,137588,68,8.00,CATERING FIXTURES,12/11/12,
251012C,PRESSURE COOLERS LTD==========,137588,69,8.25,CATERING FIXTURES,12/11/12,
251012C,PRESSURE COOLERS LTD==========,137588,70,8.25,CATERING FIXTURES,12/11/12,
251012C,PRESSURE COOLERS LTD==========,137588,71,8.25,CATERING FIXTURES,12/11/12,
251012C,PRESSURE COOLERS LTD==========,137588,72,8.25,CATERING FIXTURES,12/11/12,
251012C,PRESSURE COOLERS LTD==========,137588,73,8.25,CATERING FIXTURES,12/11/12,
251012C,PRESSURE COOLERS LTD==========,137588,74,8.25,CATERING FIXTURES,12/11/12,
251012C,PRESSURE COOLERS LTD==========,137588,75,8.25,CATERING FIXTURES,12/11/12,
251012C,PRESSURE COOLERS LTD==========,137588,76,8.25,CATERING FIXTURES,12/11/12,
251012C,PRESSURE COOLERS LTD==========,137588,77,8.25,CATERING FIXTURES,12/11/12,
251012C,PRESSURE COOLERS LTD==========,137588,78,8.25,CATERING FIXTURES,12/11/12,
251012C,PRESSURE COOLERS LTD==========,137588,79,8.25,CATERING FIXTURES,12/11/12,
251012C,PRESSURE COOLERS LTD==========,137588,80,8.25,CATERING FIXTURES,12/11/12,
251012C,PRESSURE COOLERS LTD==========,137588,81,8.25,CATERING FIXTURES,12/11/12,
251012C,PRESSURE COOLERS LTD==========,137588,82,8.25,CATERING FIXTURES,12/11/12,
251012C,PRESSURE COOLERS LTD==========,137588,83,8.25,CATERING FIXTURES,12/11/12,
251012C,PRESSURE COOLERS LTD==========,137588,84,8.25,REFRESHMENTS,12/11/12,
251012C,PRESSURE COOLERS LTD==========,137588,85,8.25,CATERING FIXTURES,12/11/12,
251012C,PRESSURE COOLERS LTD==========,137588,86,8.00,CATERING FIXTURES,12/11/12,
251012C,PRESSURE COOLERS LTD==========,137588,87,8.00,CATERING FIXTURES,12/11/12,
251012C,PRESSURE COOLERS LTD==========,137588,88,8.25,CATERING FIXTURES,12/11/12,
251012C,PRESSURE COOLERS LTD==========,137588,89,8.00,CATERING FIXTURES,12/11/12,
251012C,PRESSURE COOLERS LTD==========,137588,90,8.00,OFFICE EQUIPMENT,12/11/12,
251012C,PRESSURE COOLERS LTD==========,137588,91,8.25,CATERING FIXTURES,12/11/12,
251012C,PRESSURE COOLERS LTD==========,137588,92,8.00,CATERING FIXTURES,12/11/12,
251012C,PRESSURE COOLERS LTD==========,137588,93,8.25,CATERING FIXTURES,12/11/12,
251012C,PRESSURE COOLERS LTD==========,137588,94,8.25,CATERING FIXTURES,12/11/12,
251012C,PRESSURE COOLERS LTD==========,137588,95,8.00,CATERING FIXTURES,12/11/12,
251012C,PRESSURE COOLERS LTD==========,137588,96,8.25,CATERING FIXTURES,12/11/12,
251012C,PRESSURE COOLERS LTD==========,137588,97,8.25,CATERING FIXTURES,12/11/12,
251012C,PRESSURE COOLERS LTD==========,137588,98,8.00,CATERING FIXTURES,12/11/12,
251012C,PRESSURE COOLERS LTD==========,137588,99,8.25,CATERING FIXTURES,12/11/12,
251012C,PRESSURE COOLERS LTD==========,137588,100,8.25,CATERING FIXTURES,12/11/12,
251012C,PRESSURE COOLERS LTD==========,137588,101,8.25,CATERING FIXTURES,12/11/12,
251012C,PRESSURE COOLERS LTD==========,137588,102,8.25,CATERING FIXTURES,12/11/12,
251012C,PRESSURE COOLERS LTD==========,137588,103,8.25,CATERING FIXTURES,12/11/12,
251012C,PRESSURE COOLERS LTD==========,137588,104,8.25,CATERING FIXTURES,12/11/12,
251012C,PRESSURE COOLERS LTD==========,137588,105,8.00,CATERING FIXTURES,12/11/12,
251012C,PRESSURE COOLERS LTD==========,137588,106,8.25,CATERING FIXTURES,12/11/12,
251012C,PRESSURE COOLERS LTD==========,137588,107,8.00,CATERING FIXTURES,12/11/12,
251012C,PRESSURE COOLERS LTD==========,137588,108,8.25,CATERING FIXTURES,12/11/12,
251012C,PRESSURE COOLERS LTD==========,137588,109,8.25,CATERING FIXTURES,12/11/12,
251012C,PRESSURE COOLERS LTD==========,137588,110,8.25,CATERING FIXTURES,12/11/12,
251012C,PRESSURE COOLERS LTD==========,137588,111,8.00,CATERING FIXTURES,12/11/12,
251012C,PRESSURE COOLERS LTD==========,137588,112,8.25,CATERING FIXTURES,12/11/12,
251012C,PRESSURE COOLERS LTD==========,137588,113,8.25,CATERING FIXTURES,12/11/12,
251012C,PRESSURE COOLERS LTD==========,137588,114,8.00,CATERING FIXTURES,12/11/12,
251012C,PRESSURE COOLERS LTD==========,137588,115,8.25,CATERING FIXTURES,12/11/12,
251012C,PRESSURE COOLERS LTD==========,137588,116,8.25,CATERING FIXTURES,12/11/12,
251012C,PRESSURE COOLERS LTD==========,137588,117,8.00,CATERING FIXTURES,12/11/12,
251012C,PRESSURE COOLERS LTD==========,137588,118,8.25,CATERING FIXTURES,12/11/12,
251012C,PRESSURE COOLERS LTD==========,137588,119,8.25,RADIO,12/11/12,
251012C,PRESSURE COOLERS LTD==========,137588,120,8.25,CATERING FIXTURES,12/11/12,
251012C,PRESSURE COOLERS LTD==========,137588,121,8.25,CATERING FIXTURES,12/11/12,
251012C,PRESSURE COOLERS LTD==========,137588,122,8.25,CATERING FIXTURES,12/11/12,
251012C,PRESSURE COOLERS LTD==========,137588,123,8.00,CATERING FIXTURES,12/11/12,
251012C,PRESSURE COOLERS LTD==========,137588,124,8.25,CATERING FIXTURES,12/11/12,
251012C,PRESSURE COOLERS LTD==========,137588,125,8.25,CATERING FIXTURES,12/11/12,
251012C,PRESSURE COOLERS LTD==========,137588,126,8.25,CATERING FIXTURES,12/11/12,
251012C,PRESSURE COOLERS LTD==========,137588,127,8.25,CATERING FIXTURES,12/11/12,
251012C,PRESSURE COOLERS LTD==========,137588,128,8.25,CATERING FIXTURES,12/11/12,
251012C,PRESSURE COOLERS LTD==========,137588,129,8.25,CATERING FIXTURES,12/11/12,
251012C,PRESSURE COOLERS LTD==========,137588,130,8.25,CATERING FIXTURES,12/11/12,
251012C,PRESSURE COOLERS LTD==========,137588,131,8.00,CATERING EQUIPMENT,12/11/12,
251012C,PRESSURE COOLERS LTD==========,137588,132,8.25,CATERING FIXTURES,12/11/12,
251012C,PRESSURE COOLERS LTD==========,137588,133,8.25,CATERING FIXTURES,12/11/12,
251012C,PRESSURE COOLERS LTD==========,137588,134,8.25,CATERING FIXTURES,12/11/12,
251012C,PRESSURE COOLERS LTD==========,137588,135,8.25,CATERING FIXTURES,12/11/12,
251012C,PRESSURE COOLERS LTD==========,137588,136,8.25,STATIONERY CONSUMABLES,12/11/12,
251012C,PRESSURE COOLERS LTD==========,137588,137,8.25,CATERING FIXTURES,12/11/12,
251012C,PRESSURE COOLERS LTD==========,137588,138,8.25,CATERING FIXTURES,12/11/12,
251012C,PRESSURE COOLERS LTD==========,137588,139,8.00,CATERING FIXTURES,12/11/12,
251012C,PRESSURE COOLERS LTD==========,137588,140,8.25,CATERING FIXTURES,12/11/12,
251012C,PRESSURE COOLERS LTD==========,137588,141,8.25,CATERING FIXTURES,12/11/12,
251012C,PRESSURE COOLERS LTD==========,137588,142,8.25,CATERING FIXTURES,12/11/12,
251012C,PRESSURE COOLERS LTD==========,137588,143,8.25,CATERING FIXTURES,12/11/12,
251012C,PRESSURE COOLERS LTD==========,137588,144,8.25,CATERING FIXTURES,12/11/12,
251012C,PRESSURE COOLERS LTD==========,137588,145,8.25,CATERING FIXTURES,12/11/12,
251012C,PRESSURE COOLERS LTD==========,137588,146,8.00,CATERING FIXTURES,12/11/12,
251012C,PRESSURE COOLERS LTD==========,137588,147,8.00,CATERING FIXTURES,12/11/12,
251012C,PRESSURE COOLERS LTD==========,137588,148,8.25,CATERING FIXTURES,12/11/12,
251012C,PRESSURE COOLERS LTD==========,137588,149,8.25,CATERING FIXTURES,12/11/12,
251012C,PRESSURE COOLERS LTD==========,137588,150,8.00,CATERING FIXTURES,12/11/12,
251012C,PRESSURE COOLERS LTD==========,137588,151,8.25,CATERING FIXTURES,12/11/12,
251012C,PRESSURE COOLERS LTD==========,137588,152,8.00,CATERING FIXTURES,12/11/12,
251012C,PRESSURE COOLERS LTD==========,137588,153,8.00,CATERING FIXTURES,12/11/12,
251012C,PRESSURE COOLERS LTD==========,137588,154,8.25,CATERING FIXTURES,12/11/12,
251012C,PRESSURE COOLERS LTD==========,137588,155,8.25,CATERING FIXTURES,12/11/12,
251012C,PRESSURE COOLERS LTD==========,137588,156,8.25,CATERING FIXTURES,12/11/12,
251012C,PRESSURE COOLERS LTD==========,137588,157,8.00,CATERING FIXTURES,12/11/12,
251012C,PRESSURE COOLERS LTD==========,137588,158,8.25,CATERING FIXTURES,12/11/12,
251012C,PRESSURE COOLERS LTD==========,137588,159,8.25,CATERING FIXTURES,12/11/12,
251012C,PRESSURE COOLERS LTD==========,137588,160,8.00,CATERING FIXTURES,12/11/12,
251012C,PRESSURE COOLERS LTD==========,137588,161,8.25,CATERING FIXTURES,12/11/12,
251012C,PRESSURE COOLERS LTD==========,137589,1,8.25,CATERING FIXTURES,12/11/12,"1,311.00"
251012C,PRESSURE COOLERS LTD==========,137589,2,8.25,CATERING FIXTURES,12/11/12,
251012C,PRESSURE COOLERS LTD==========,137589,3,8.25,CATERING FIXTURES,12/11/12,
251012C,PRESSURE COOLERS LTD==========,137589,4,8.25,CATERING FIXTURES,12/11/12,
251012C,PRESSURE COOLERS LTD==========,137589,5,8.00,CATERING FIXTURES,12/11/12,
251012C,PRESSURE COOLERS LTD==========,137589,6,8.25,CATERING FIXTURES,12/11/12,
251012C,PRESSURE COOLERS LTD==========,137589,7,8.00,CATERING FIXTURES,12/11/12,
251012C,PRESSURE COOLERS LTD==========,137589,8,8.25,CATERING FIXTURES,12/11/12,
251012C,PRESSURE COOLERS LTD==========,137589,9,8.25,CATERING FIXTURES,12/11/12,
251012C,PRESSURE COOLERS LTD==========,137589,10,8.25,CATERING FIXTURES,12/11/12,
251012C,PRESSURE COOLERS LTD==========,137589,11,8.25,CATERING EQUIPMENT,12/11/12,
251012C,PRESSURE COOLERS LTD==========,137589,12,8.00,CATERING FIXTURES,12/11/12,
251012C,PRESSURE COOLERS LTD==========,137589,13,8.25,CATERING FIXTURES,12/11/12,
251012C,PRESSURE COOLERS LTD==========,137589,14,8.25,CATERING FIXTURES,12/11/12,
251012C,PRESSURE COOLERS LTD==========,137589,15,8.25,CATERING FIXTURES,12/11/12,
251012C,PRESSURE COOLERS LTD==========,137589,16,8.25,CATERING FIXTURES,12/11/12,
251012C,PRESSURE COOLERS LTD==========,137589,17,8.00,CATERING FIXTURES,12/11/12,
251012C,PRESSURE COOLERS LTD==========,137589,18,8.25,CATERING FIXTURES,12/11/12,
251012C,PRESSURE COOLERS LTD==========,137589,19,8.00,CATERING FIXTURES,12/11/12,
251012C,PRESSURE COOLERS LTD==========,137589,20,8.25,CATERING FIXTURES,12/11/12,
251012C,PRESSURE COOLERS LTD==========,137589,21,8.25,CATERING FIXTURES,12/11/12,
251012C,PRESSURE COOLERS LTD==========,137589,22,8.00,CATERING FIXTURES,12/11/12,
251012C,PRESSURE COOLERS LTD==========,137589,23,8.25,CATERING FIXTURES,12/11/12,
251012C,PRESSURE COOLERS LTD==========,137589,24,8.25,CATERING FIXTURES,12/11/12,
251012C,PRESSURE COOLERS LTD==========,137589,25,8.25,CATERING FIXTURES,12/11/12,
251012C,PRESSURE COOLERS LTD==========,137589,26,8.00,CATERING FIXTURES,12/11/12,
251012C,PRESSURE COOLERS LTD==========,137589,27,8.25,CATERING FIXTURES,12/11/12,
251012C,PRESSURE COOLERS LTD==========,137589,28,8.25,CATERING FIXTURES,12/11/12,
251012C,PRESSURE COOLERS LTD==========,137589,29,8.00,CATERING FIXTURES,12/11/12,
251012C,PRESSURE COOLERS LTD==========,137589,30,8.25,CATERING FIXTURES,12/11/12,
251012C,PRESSURE COOLERS LTD==========,137589,31,8.25,CATERING FIXTURES,12/11/12,
251012C,PRESSURE COOLERS LTD==========,137589,32,8.25,CATERING EQUIPMENT,12/11/12,
251012C,PRESSURE COOLERS LTD==========,137589,33,8.25,CATERING FIXTURES,12/11/12,
251012C,PRESSURE COOLERS LTD==========,137589,34,8.25,CATERING EQUIPMENT,12/11/12,
251012C,PRESSURE COOLERS LTD==========,137589,35,8.25,CATERING FIXTURES,12/11/12,
251012C,PRESSURE COOLERS LTD==========,137589,36,8.25,CATERING EQUIPMENT,12/11/12,
251012C,PRESSURE COOLERS LTD==========,137589,37,8.25,CATERING FIXTURES,12/11/12,
251012C,PRESSURE COOLERS LTD==========,137589,38,8.25,CATERING FIXTURES,12/11/12,
251012C,PRESSURE COOLERS LTD==========,137589,39,8.00,OFFICE EQUIPMENT,12/11/12,
251012C,PRESSURE COOLERS LTD==========,137589,40,8.25,CATERING FIXTURES,12/11/12,
251012C,PRESSURE COOLERS LTD==========,137589,41,8.25,CATERING FIXTURES,12/11/12,
251012C,PRESSURE COOLERS LTD==========,137589,42,8.25,CATERING FIXTURES,12/11/12,
251012C,PRESSURE COOLERS LTD==========,137589,43,8.25,CATERING FIXTURES,12/11/12,
251012C,PRESSURE COOLERS LTD==========,137589,44,8.00,CATERING FIXTURES,12/11/12,
251012C,PRESSURE COOLERS LTD==========,137589,45,8.00,CATERING FIXTURES,12/11/12,
251012C,PRESSURE COOLERS LTD==========,137589,46,8.25,CATERING FIXTURES,12/11/12,
251012C,PRESSURE COOLERS LTD==========,137589,47,8.25,CATERING FIXTURES,12/11/12,
251012C,PRESSURE COOLERS LTD==========,137589,48,8.25,CATERING FIXTURES,12/11/12,
251012C,PRESSURE COOLERS LTD==========,137589,49,8.25,CATERING FIXTURES,12/11/12,
251012C,PRESSURE COOLERS LTD==========,137589,50,8.00,CATERING FIXTURES,12/11/12,
251012C,PRESSURE COOLERS LTD==========,137589,52,8.25,CATERING FIXTURES,12/11/12,
251012C,PRESSURE COOLERS LTD==========,137589,53,8.25,CATERING FIXTURES,12/11/12,
251012C,PRESSURE COOLERS LTD==========,137589,54,8.25,CATERING FIXTURES,12/11/12,
251012C,PRESSURE COOLERS LTD==========,137589,55,8.25,CATERING FIXTURES,12/11/12,
251012C,PRESSURE COOLERS LTD==========,137589,56,8.25,CATERING FIXTURES,12/11/12,
251012C,PRESSURE COOLERS LTD==========,137589,57,8.25,CATERING FIXTURES,12/11/12,
251012C,PRESSURE COOLERS LTD==========,137589,58,8.00,CATERING FIXTURES,12/11/12,
251012C,PRESSURE COOLERS LTD==========,137589,59,8.25,CATERING FIXTURES,12/11/12,
251012C,PRESSURE COOLERS LTD==========,137589,60,8.25,CATERING EQUIPMENT,12/11/12,
251012C,PRESSURE COOLERS LTD==========,137589,61,8.25,CATERING FIXTURES,12/11/12,
251012C,PRESSURE COOLERS LTD==========,137589,62,8.25,CATERING FIXTURES,12/11/12,
251012C,PRESSURE COOLERS LTD==========,137589,63,8.25,CATERING FIXTURES,12/11/12,
251012C,PRESSURE COOLERS LTD==========,137589,64,8.25,CATERING FIXTURES,12/11/12,
251012C,PRESSURE COOLERS LTD==========,137589,65,8.25,CATERING FIXTURES,12/11/12,
251012C,PRESSURE COOLERS LTD==========,137589,66,8.25,CATERING FIXTURES,12/11/12,
251012C,PRESSURE COOLERS LTD==========,137589,67,8.25,CATERING FIXTURES,12/11/12,
251012C,PRESSURE COOLERS LTD==========,137589,68,8.00,CATERING FIXTURES,12/11/12,
251012C,PRESSURE COOLERS LTD==========,137589,69,8.25,CATERING FIXTURES,12/11/12,
251012C,PRESSURE COOLERS LTD==========,137589,70,8.25,CATERING FIXTURES,12/11/12,
251012C,PRESSURE COOLERS LTD==========,137589,71,8.25,CATERING FIXTURES,12/11/12,
251012C,PRESSURE COOLERS LTD==========,137589,72,8.25,CATERING FIXTURES,12/11/12,
251012C,PRESSURE COOLERS LTD==========,137589,73,8.25,CATERING FIXTURES,12/11/12,
251012C,PRESSURE COOLERS LTD==========,137589,74,8.25,CATERING FIXTURES,12/11/12,
251012C,PRESSURE COOLERS LTD==========,137589,75,8.25,CATERING FIXTURES,12/11/12,
251012C,PRESSURE COOLERS LTD==========,137589,76,8.25,CATERING FIXTURES,12/11/12,
251012C,PRESSURE COOLERS LTD==========,137589,77,8.25,CATERING FIXTURES,12/11/12,
251012C,PRESSURE COOLERS LTD==========,137589,78,8.25,CATERING FIXTURES,12/11/12,
251012C,PRESSURE COOLERS LTD==========,137589,79,8.25,CATERING FIXTURES,12/11/12,
251012C,PRESSURE COOLERS LTD==========,137589,80,8.25,CATERING FIXTURES,12/11/12,
251012C,PRESSURE COOLERS LTD==========,137589,81,8.25,CATERING FIXTURES,12/11/12,
251012C,PRESSURE COOLERS LTD==========,137589,82,8.25,CATERING FIXTURES,12/11/12,
251012C,PRESSURE COOLERS LTD==========,137589,83,8.25,CATERING FIXTURES,12/11/12,
251012C,PRESSURE COOLERS LTD==========,137589,84,8.25,REFRESHMENTS,12/11/12,
251012C,PRESSURE COOLERS LTD==========,137589,85,8.25,CATERING FIXTURES,12/11/12,
251012C,PRESSURE COOLERS LTD==========,137589,86,8.00,CATERING FIXTURES,12/11/12,
251012C,PRESSURE COOLERS LTD==========,137589,87,8.00,CATERING FIXTURES,12/11/12,
251012C,PRESSURE COOLERS LTD==========,137589,88,8.25,CATERING FIXTURES,12/11/12,
251012C,PRESSURE COOLERS LTD==========,137589,89,8.00,CATERING FIXTURES,12/11/12,
251012C,PRESSURE COOLERS LTD==========,137589,90,8.00,OFFICE EQUIPMENT,12/11/12,
251012C,PRESSURE COOLERS LTD==========,137589,91,8.25,CATERING FIXTURES,12/11/12,
251012C,PRESSURE COOLERS LTD==========,137589,92,8.00,CATERING FIXTURES,12/11/12,
251012C,PRESSURE COOLERS LTD==========,137589,93,8.25,CATERING FIXTURES,12/11/12,
251012C,PRESSURE COOLERS LTD==========,137589,94,8.25,CATERING FIXTURES,12/11/12,
251012C,PRESSURE COOLERS LTD==========,137589,95,8.00,CATERING FIXTURES,12/11/12,
251012C,PRESSURE COOLERS LTD==========,137589,96,8.25,CATERING FIXTURES,12/11/12,
251012C,PRESSURE COOLERS LTD==========,137589,97,8.25,CATERING FIXTURES,12/11/12,
251012C,PRESSURE COOLERS LTD==========,137589,98,8.00,CATERING FIXTURES,12/11/12,
251012C,PRESSURE COOLERS LTD==========,137589,99,8.25,CATERING FIXTURES,12/11/12,
251012C,PRESSURE COOLERS LTD==========,137589,100,8.25,CATERING FIXTURES,12/11/12,
251012C,PRESSURE COOLERS LTD==========,137589,101,8.25,CATERING FIXTURES,12/11/12,
251012C,PRESSURE COOLERS LTD==========,137589,102,8.25,CATERING FIXTURES,12/11/12,
251012C,PRESSURE COOLERS LTD==========,137589,103,8.25,CATERING FIXTURES,12/11/12,
251012C,PRESSURE COOLERS LTD==========,137589,104,8.25,CATERING FIXTURES,12/11/12,
251012C,PRESSURE COOLERS LTD==========,137589,105,8.00,CATERING FIXTURES,12/11/12,
251012C,PRESSURE COOLERS LTD==========,137589,106,8.25,CATERING FIXTURES,12/11/12,
251012C,PRESSURE COOLERS LTD==========,137589,107,8.00,CATERING FIXTURES,12/11/12,
251012C,PRESSURE COOLERS LTD==========,137589,108,8.25,CATERING FIXTURES,12/11/12,
251012C,PRESSURE COOLERS LTD==========,137589,109,8.25,CATERING FIXTURES,12/11/12,
251012C,PRESSURE COOLERS LTD==========,137589,110,8.25,CATERING FIXTURES,12/11/12,
251012C,PRESSURE COOLERS LTD==========,137589,111,8.00,CATERING FIXTURES,12/11/12,
251012C,PRESSURE COOLERS LTD==========,137589,112,8.25,CATERING FIXTURES,12/11/12,
251012C,PRESSURE COOLERS LTD==========,137589,113,8.25,CATERING FIXTURES,12/11/12,
251012C,PRESSURE COOLERS LTD==========,137589,114,8.00,CATERING FIXTURES,12/11/12,
251012C,PRESSURE COOLERS LTD==========,137589,115,8.25,CATERING FIXTURES,12/11/12,
251012C,PRESSURE COOLERS LTD==========,137589,116,8.25,CATERING FIXTURES,12/11/12,
251012C,PRESSURE COOLERS LTD==========,137589,117,8.00,CATERING FIXTURES,12/11/12,
251012C,PRESSURE COOLERS LTD==========,137589,118,8.25,CATERING FIXTURES,12/11/12,
251012C,PRESSURE COOLERS LTD==========,137589,119,8.25,RADIO,12/11/12,
251012C,PRESSURE COOLERS LTD==========,137589,120,8.25,CATERING FIXTURES,12/11/12,
251012C,PRESSURE COOLERS LTD==========,137589,121,8.25,CATERING FIXTURES,12/11/12,
251012C,PRESSURE COOLERS LTD==========,137589,122,8.25,CATERING FIXTURES,12/11/12,
251012C,PRESSURE COOLERS LTD==========,137589,123,8.00,CATERING FIXTURES,12/11/12,
251012C,PRESSURE COOLERS LTD==========,137589,124,8.25,CATERING FIXTURES,12/11/12,
251012C,PRESSURE COOLERS LTD==========,137589,125,8.25,CATERING FIXTURES,12/11/12,
251012C,PRESSURE COOLERS LTD==========,137589,126,8.25,CATERING FIXTURES,12/11/12,
251012C,PRESSURE COOLERS LTD==========,137589,127,8.25,CATERING FIXTURES,12/11/12,
251012C,PRESSURE COOLERS LTD==========,137589,128,8.25,CATERING FIXTURES,12/11/12,
251012C,PRESSURE COOLERS LTD==========,137589,129,8.25,CATERING FIXTURES,12/11/12,
251012C,PRESSURE COOLERS LTD==========,137589,130,8.25,CATERING FIXTURES,12/11/12,
251012C,PRESSURE COOLERS LTD==========,137589,131,8.00,CATERING EQUIPMENT,12/11/12,
251012C,PRESSURE COOLERS LTD==========,137589,132,8.25,CATERING FIXTURES,12/11/12,
251012C,PRESSURE COOLERS LTD==========,137589,133,8.25,CATERING FIXTURES,12/11/12,
251012C,PRESSURE COOLERS LTD==========,137589,134,8.25,CATERING FIXTURES,12/11/12,
251012C,PRESSURE COOLERS LTD==========,137589,135,8.25,CATERING FIXTURES,12/11/12,
251012C,PRESSURE COOLERS LTD==========,137589,136,8.25,STATIONERY CONSUMABLES,12/11/12,
251012C,PRESSURE COOLERS LTD==========,137589,137,8.25,CATERING FIXTURES,12/11/12,
251012C,PRESSURE COOLERS LTD==========,137589,138,8.25,CATERING FIXTURES,12/11/12,
251012C,PRESSURE COOLERS LTD==========,137589,139,8.00,CATERING FIXTURES,12/11/12,
251012C,PRESSURE COOLERS LTD==========,137589,140,8.25,CATERING FIXTURES,12/11/12,
251012C,PRESSURE COOLERS LTD==========,137589,141,8.25,CATERING FIXTURES,12/11/12,
251012C,PRESSURE COOLERS LTD==========,137589,142,8.25,CATERING FIXTURES,12/11/12,
251012C,PRESSURE COOLERS LTD==========,137589,143,8.25,CATERING FIXTURES,12/11/12,
251012C,PRESSURE COOLERS LTD==========,137589,144,8.25,CATERING FIXTURES,12/11/12,
251012C,PRESSURE COOLERS LTD==========,137589,145,8.25,CATERING FIXTURES,12/11/12,
251012C,PRESSURE COOLERS LTD==========,137589,146,8.00,CATERING FIXTURES,12/11/12,
251012C,PRESSURE COOLERS LTD==========,137589,147,8.00,CATERING FIXTURES,12/11/12,
251012C,PRESSURE COOLERS LTD==========,137589,148,8.25,CATERING FIXTURES,12/11/12,
251012C,PRESSURE COOLERS LTD==========,137589,149,8.25,CATERING FIXTURES,12/11/12,
251012C,PRESSURE COOLERS LTD==========,137589,150,8.00,CATERING FIXTURES,12/11/12,
251012C,PRESSURE COOLERS LTD==========,137589,151,8.25,CATERING FIXTURES,12/11/12,
251012C,PRESSURE COOLERS LTD==========,137589,152,8.00,CATERING FIXTURES,12/11/12,
251012C,PRESSURE COOLERS LTD==========,137589,153,8.00,CATERING FIXTURES,12/11/12,
251012C,PRESSURE COOLERS LTD==========,137589,154,8.25,CATERING FIXTURES,12/11/12,
251012C,PRESSURE COOLERS LTD==========,137589,155,8.25,CATERING FIXTURES,12/11/12,
251012C,PRESSURE COOLERS LTD==========,137589,156,8.25,CATERING FIXTURES,12/11/12,
251012C,PRESSURE COOLERS LTD==========,137589,157,8.00,CATERING FIXTURES,12/11/12,
251012C,PRESSURE COOLERS LTD==========,137589,158,8.25,CATERING FIXTURES,12/11/12,
251012C,PRESSURE COOLERS LTD==========,137589,159,8.25,CATERING FIXTURES,12/11/12,
251012C,PRESSURE COOLERS LTD==========,137589,160,8.00,CATERING FIXTURES,12/11/12,
251012C,PRESSURE COOLERS LTD==========,137589,161,8.25,CATERING FIXTURES,12/11/12,
061112C,RESPIREX======================,140114,1,"7,500.00",PROTECTIVE EQUIPMENT,12/11/12,"7,500.00"
800014321,*XMA LTD,163109,1,333.80,STATIONERY CONSUMABLES,12/11/12,333.80
800014340,*XMA LTD,163384,1,58.86,STATIONERY CONSUMABLES,12/11/12,449.40
800014340,*XMA LTD,163384,2,58.86,STATIONERY CONSUMABLES,12/11/12,
800014340,*XMA LTD,163384,3,55.28,STATIONERY CONSUMABLES,12/11/12,
800014340,*XMA LTD,163384,4,55.28,STATIONERY CONSUMABLES,12/11/12,
800014340,*XMA LTD,163384,5,55.28,STATIONERY CONSUMABLES,12/11/12,
800014340,*XMA LTD,163384,6,55.28,STATIONERY CONSUMABLES,12/11/12,
800014340,*XMA LTD,163384,7,55.28,STATIONERY CONSUMABLES,12/11/12,
800014340,*XMA LTD,163384,8,55.28,STATIONERY CONSUMABLES,12/11/12,
800014341,*XMA LTD,163390,1,55.28,STATIONERY CONSUMABLES,12/11/12,390.54
800014341,*XMA LTD,163390,2,58.86,STATIONERY CONSUMABLES,12/11/12,
800014341,*XMA LTD,163390,3,55.28,STATIONERY CONSUMABLES,12/11/12,
800014341,*XMA LTD,163390,4,55.28,STATIONERY CONSUMABLES,12/11/12,
800014341,*XMA LTD,163390,5,55.28,STATIONERY CONSUMABLES,12/11/12,
800014341,*XMA LTD,163390,6,55.28,STATIONERY CONSUMABLES,12/11/12,
800014341,*XMA LTD,163390,7,55.28,STATIONERY CONSUMABLES,12/11/12,
061112E,GRADIENT CONSULTANTS LLP======,1751,1,144.35,PROFESSIONAL FEES - MISC,12/11/12,"14,522.82"
061112E,GRADIENT CONSULTANTS LLP======,1751,2,242.54,DEVELOPMENT EXP - CONTRACTORS,12/11/12,
061112E,GRADIENT CONSULTANTS LLP======,1751,3,342.76,DEVELOPMENT EXP - CONTRACTORS,12/11/12,
061112E,GRADIENT CONSULTANTS LLP======,1751,4,104.41,DEVELOPMENT EXP - CONTRACTORS,12/11/12,
061112E,GRADIENT CONSULTANTS LLP======,1751,5,290.02,DEVELOPMENT EXP - CONTRACTORS,12/11/12,
061112E,GRADIENT CONSULTANTS LLP======,1751,6,334.85,DEVELOPMENT EXP - CONTRACTORS,12/11/12,
061112E,GRADIENT CONSULTANTS LLP======,1751,7,290.02,PROFESSIONAL FEES - MISC,12/11/12,
061112E,GRADIENT CONSULTANTS LLP======,1751,8,243.62,PROFESSIONAL FEES - MISC,12/11/12,
061112E,GRADIENT CONSULTANTS LLP======,1751,9,104.41,PROFESSIONAL FEES - MISC,12/11/12,
061112E,GRADIENT CONSULTANTS LLP======,1751,10,295.31,DEVELOPMENT EXP - CONTRACTORS,12/11/12,
061112E,GRADIENT CONSULTANTS LLP======,1751,11,0.01,PROFESSIONAL FEES - MISC,12/11/12,
061112E,GRADIENT CONSULTANTS LLP======,1751,12,290.02,PROFESSIONAL FEES - MISC,12/11/12,
061112E,GRADIENT CONSULTANTS LLP======,1751,13,243.62,PROFESSIONAL FEES - MISC,12/11/12,
061112E,GRADIENT CONSULTANTS LLP======,1751,14,0.01,DEVELOPMENT EXP - CONTRACTORS,12/11/12,
061112E,GRADIENT CONSULTANTS LLP======,1751,15,295.30,DEVELOPMENT EXP - CONTRACTORS,12/11/12,
061112E,GRADIENT CONSULTANTS LLP======,1751,16,79.10,DEVELOPMENT EXP - CONTRACTORS,12/11/12,
061112E,GRADIENT CONSULTANTS LLP======,1751,17,52.74,DEVELOPMENT EXP - CONTRACTORS,12/11/12,
061112E,GRADIENT CONSULTANTS LLP======,1751,18,243.62,DEVELOPMENT EXP - CONTRACTORS,12/11/12,
061112E,GRADIENT CONSULTANTS LLP======,1751,19,243.62,PROFESSIONAL FEES - MISC,12/11/12,
061112E,GRADIENT CONSULTANTS LLP======,1751,20,290.02,PROFESSIONAL FEES - MISC,12/11/12,
061112E,GRADIENT CONSULTANTS LLP======,1751,21,290.02,DEVELOPMENT EXP - CONTRACTORS,12/11/12,
061112E,GRADIENT CONSULTANTS LLP======,1751,22,52.09,DEVELOPMENT EXP - CONTRACTORS,12/11/12,
061112E,GRADIENT CONSULTANTS LLP======,1751,23,479.86,PROFESSIONAL FEES - MISC,12/11/12,
061112E,GRADIENT CONSULTANTS LLP======,1751,24,532.59,DEVELOPMENT EXP - CONTRACTORS,12/11/12,
061112E,GRADIENT CONSULTANTS LLP======,1751,25,173.92,DEVELOPMENT EXP - CONTRACTORS,12/11/12,
061112E,GRADIENT CONSULTANTS LLP======,1751,26,243.62,DEVELOPMENT EXP - CONTRACTORS,12/11/12,
061112E,GRADIENT CONSULTANTS LLP======,1751,27,290.02,DEVELOPMENT EXP - CONTRACTORS,12/11/12,
061112E,GRADIENT CONSULTANTS LLP======,1751,28,399.71,DEVELOPMENT EXP - CONTRACTORS,12/11/12,
061112E,GRADIENT CONSULTANTS LLP======,1751,29,399.71,DEVELOPMENT EXP - CONTRACTORS,12/11/12,
061112E,GRADIENT CONSULTANTS LLP======,1751,30,47.75,DEVELOPMENT EXP - CONTRACTORS,12/11/12,
061112E,GRADIENT CONSULTANTS LLP======,1751,31,"1,624.11",PROFESSIONAL FEES - MISC,12/11/12,
061112E,GRADIENT CONSULTANTS LLP======,1751,32,290.02,PROFESSIONAL FEES - MISC,12/11/12,
061112E,GRADIENT CONSULTANTS LLP======,1751,33,295.30,PROFESSIONAL FEES - MISC,12/11/12,
061112E,GRADIENT CONSULTANTS LLP======,1751,34,243.62,DEVELOPMENT EXP - CONTRACTORS,12/11/12,
061112E,GRADIENT CONSULTANTS LLP======,1751,35,290.02,DEVELOPMENT EXP - CONTRACTORS,12/11/12,
061112E,GRADIENT CONSULTANTS LLP======,1751,36,487.24,PROFESSIONAL FEES - MISC,12/11/12,
061112E,GRADIENT CONSULTANTS LLP======,1751,37,346.98,PROFESSIONAL FEES - MISC,12/11/12,
061112E,GRADIENT CONSULTANTS LLP======,1751,38,290.02,DEVELOPMENT EXP - CONTRACTORS,12/11/12,
061112E,GRADIENT CONSULTANTS LLP======,1751,39,290.02,DEVELOPMENT EXP - CONTRACTORS,12/11/12,
061112E,GRADIENT CONSULTANTS LLP======,1751,40,290.02,DEVELOPMENT EXP - CONTRACTORS,12/11/12,
061112E,GRADIENT CONSULTANTS LLP======,1751,41,104.41,PROFESSIONAL FEES - MISC,12/11/12,
061112E,GRADIENT CONSULTANTS LLP======,1751,42,203.02,DEVELOPMENT EXP - CONTRACTORS,12/11/12,
061112E,GRADIENT CONSULTANTS LLP======,1751,43,243.62,PROFESSIONAL FEES - MISC,12/11/12,
061112E,GRADIENT CONSULTANTS LLP======,1751,44,221.47,DEVELOPMENT EXP - CONTRACTORS,12/11/12,
061112E,GRADIENT CONSULTANTS LLP======,1751,45,394.43,DEVELOPMENT EXP - CONTRACTORS,12/11/12,
061112E,GRADIENT CONSULTANTS LLP======,1751,46,39.55,PROFESSIONAL FEES - MISC,12/11/12,
061112E,GRADIENT CONSULTANTS LLP======,1751,47,243.62,PROFESSIONAL FEES - MISC,12/11/12,
061112E,GRADIENT CONSULTANTS LLP======,1751,48,104.41,PROFESSIONAL FEES - MISC,12/11/12,
061112E,GRADIENT CONSULTANTS LLP======,1751,49,243.62,DEVELOPMENT EXP - CONTRACTORS,12/11/12,
061112E,GRADIENT CONSULTANTS LLP======,1751,50,295.30,PROFESSIONAL FEES - MISC,12/11/12,
061112E,GRADIENT CONSULTANTS LLP======,1751,51,100.00,PROFESSIONAL FEES - MISC,12/11/12,
061112E,GRADIENT CONSULTANTS LLP======,1751,52,842.38,PROFESSIONAL FEES - MISC,12/11/12,
139944,EDF ENERGY===================,1786209526,1,"9,456.58",ELECTRICITY,12/11/12,"9,456.58"
139944,EDF ENERGY===================,1786484426,1,406.59,ELECTRICITY,12/11/12,"4,065.87"
139944,EDF ENERGY===================,1786484426,2,"3,659.28",ELECTRICITY,12/11/12,
139944,EDF ENERGY===================,1793376223,1,"11,080.10",ELECTRICITY,12/11/12,"11,080.10"
291012C,SAFEGUARD PEST CON. & ENV.LTD,209168,1,"1,680.00",PEST CONTROL,12/11/12,"1,680.00"
061112E,B & A TEXTILES LTD===========,2323,1,270.00,UNIFORMS - POMS,12/11/12,359.50
061112E,B & A TEXTILES LTD===========,2323,2,45.00,UNIFORMS - POMS,12/11/12,
061112E,B & A TEXTILES LTD===========,2323,3,44.50,UNIFORMS - POMS,12/11/12,
071112C,DRAIN CONTROL=================,23961,1,895.00,STRATEGIC (CYCLICAL),12/11/12,895.00
139934,REACTIVE ROOFING (UK) LIMITED,2750,1,"2,468.00",STRATEGIC (NON CYCLICAL),12/11/12,"4,468.00"
139934,REACTIVE ROOFING (UK) LIMITED,2750,2,"2,000.00",STRATEGIC (NON CYCLICAL),12/11/12,
061112C,CAMPBELL REITH HILL LLP=======,28128,1,"1,300.00",PUBLIC RELATIONS,12/11/12,"1,300.00"
071112C,KNIGHTON CLEANING SERVICES LTD,31922,1,"2,581.33",GENERAL CLEANS,12/11/12,"105,550.41"
071112C,KNIGHTON CLEANING SERVICES LTD,31922,2,"2,289.72",GENERAL CLEANS,12/11/12,
071112C,KNIGHTON CLEANING SERVICES LTD,31922,3,"1,732.86",GENERAL CLEANS,12/11/12,
071112C,KNIGHTON CLEANING SERVICES LTD,31922,4,"1,155.69",GENERAL CLEANS,12/11/12,
071112C,KNIGHTON CLEANING SERVICES LTD,31922,5,"1,379.62",GENERAL CLEANS,12/11/12,
071112C,KNIGHTON CLEANING SERVICES LTD,31922,6,940.90,GENERAL CLEANS,12/11/12,
071112C,KNIGHTON CLEANING SERVICES LTD,31922,7,"1,400.94",GENERAL CLEANS,12/11/12,
071112C,KNIGHTON CLEANING SERVICES LTD,31922,8,"1,266.84",GENERAL CLEANS,12/11/12,
071112C,KNIGHTON CLEANING SERVICES LTD,31922,9,910.42,GENERAL CLEANS,12/11/12,
071112C,KNIGHTON CLEANING SERVICES LTD,31922,10,962.77,GENERAL CLEANS,12/11/12,
071112C,KNIGHTON CLEANING SERVICES LTD,31922,11,"2,243.51",GENERAL CLEANS,12/11/12,
071112C,KNIGHTON CLEANING SERVICES LTD,31922,12,"1,407.56",GENERAL CLEANS,12/11/12,
071112C,KNIGHTON CLEANING SERVICES LTD,31922,13,"1,514.77",GENERAL CLEANS,12/11/12,
071112C,KNIGHTON CLEANING SERVICES LTD,31922,14,"1,276.42",GENERAL CLEANS,12/11/12,
071112C,KNIGHTON CLEANING SERVICES LTD,31922,15,"2,306.76",GENERAL CLEANS,12/11/12,
071112C,KNIGHTON CLEANING SERVICES LTD,31922,16,"2,771.22",GENERAL CLEANS,12/11/12,
071112C,KNIGHTON CLEANING SERVICES LTD,31922,17,915.16,GENERAL CLEANS,12/11/12,
071112C,KNIGHTON CLEANING SERVICES LTD,31922,18,"1,752.23",GENERAL CLEANS,12/11/12,
071112C,KNIGHTON CLEANING SERVICES LTD,31922,19,914.58,GENERAL CLEANS,12/11/12,
071112C,KNIGHTON CLEANING SERVICES LTD,31922,20,"1,816.79",GENERAL CLEANS,12/11/12,
071112C,KNIGHTON CLEANING SERVICES LTD,31922,21,"2,165.07",GENERAL CLEANS,12/11/12,
071112C,KNIGHTON CLEANING SERVICES LTD,31922,22,898.83,GENERAL CLEANS,12/11/12,
071112C,KNIGHTON CLEANING SERVICES LTD,31922,23,"2,814.27",GENERAL CLEANS,12/11/12,
071112C,KNIGHTON CLEANING SERVICES LTD,31922,24,"2,235.16",GENERAL CLEANS,12/11/12,
071112C,KNIGHTON CLEANING SERVICES LTD,31922,25,"1,136.33",GENERAL CLEANS,12/11/12,
071112C,KNIGHTON CLEANING SERVICES LTD,31922,26,"1,137.72",GENERAL CLEANS,12/11/12,
071112C,KNIGHTON CLEANING SERVICES LTD,31922,27,"1,281.29",GENERAL CLEANS,12/11/12,
071112C,KNIGHTON CLEANING SERVICES LTD,31922,28,"2,119.50",GENERAL CLEANS,12/11/12,
071112C,KNIGHTON CLEANING SERVICES LTD,31922,29,"1,280.70",GENERAL CLEANS,12/11/12,
071112C,KNIGHTON CLEANING SERVICES LTD,31922,30,974.14,GENERAL CLEANS,12/11/12,
071112C,KNIGHTON CLEANING SERVICES LTD,31922,31,"1,174.56",GENERAL CLEANS,12/11/12,
071112C,KNIGHTON CLEANING SERVICES LTD,31922,32,"1,644.19",GENERAL CLEANS,12/11/12,
071112C,KNIGHTON CLEANING SERVICES LTD,31922,33,922.90,GENERAL CLEANS,12/11/12,
071112C,KNIGHTON CLEANING SERVICES LTD,31922,34,"1,680.97",GENERAL CLEANS,12/11/12,
071112C,KNIGHTON CLEANING SERVICES LTD,31922,35,"1,524.10",GENERAL CLEANS,12/11/12,
071112C,KNIGHTON CLEANING SERVICES LTD,31922,36,"1,702.92",GENERAL CLEANS,12/11/12,
071112C,KNIGHTON CLEANING SERVICES LTD,31922,37,934.81,GENERAL CLEANS,12/11/12,
071112C,KNIGHTON CLEANING SERVICES LTD,31922,38,"1,028.50",GENERAL CLEANS,12/11/12,
071112C,KNIGHTON CLEANING SERVICES LTD,31922,39,"1,030.04",GENERAL CLEANS,12/11/12,
071112C,KNIGHTON CLEANING SERVICES LTD,31922,40,"1,143.64",GENERAL CLEANS,12/11/12,
071112C,KNIGHTON CLEANING SERVICES LTD,31922,41,"1,162.33",GENERAL CLEANS,12/11/12,
071112C,KNIGHTON CLEANING SERVICES LTD,31922,42,792.08,GENERAL CLEANS,12/11/12,
071112C,KNIGHTON CLEANING SERVICES LTD,31922,43,"1,815.00",GENERAL CLEANS,12/11/12,
071112C,KNIGHTON CLEANING SERVICES LTD,31922,44,"1,646.06",GENERAL CLEANS,12/11/12,
071112C,KNIGHTON CLEANING SERVICES LTD,31922,45,"1,155.16",GENERAL CLEANS,12/11/12,
071112C,KNIGHTON CLEANING SERVICES LTD,31922,46,"3,380.88",GENERAL CLEANS,12/11/12,
071112C,KNIGHTON CLEANING SERVICES LTD,31922,47,"1,265.06",GENERAL CLEANS,12/11/12,
071112C,KNIGHTON CLEANING SERVICES LTD,31922,48,"1,736.30",GENERAL CLEANS,12/11/12,
071112C,KNIGHTON CLEANING SERVICES LTD,31922,49,"1,279.97",GENERAL CLEANS,12/11/12,
071112C,KNIGHTON CLEANING SERVICES LTD,31922,50,"1,246.08",GENERAL CLEANS,12/11/12,
071112C,KNIGHTON CLEANING SERVICES LTD,31922,51,"1,153.76",GENERAL CLEANS,12/11/12,
071112C,KNIGHTON CLEANING SERVICES LTD,31922,52,"1,382.19",GENERAL CLEANS,12/11/12,
071112C,KNIGHTON CLEANING SERVICES LTD,31922,53,"2,674.18",GENERAL CLEANS,12/11/12,
071112C,KNIGHTON CLEANING SERVICES LTD,31922,54,"1,026.34",GENERAL CLEANS,12/11/12,
071112C,KNIGHTON CLEANING SERVICES LTD,31922,55,"2,264.70",GENERAL CLEANS,12/11/12,
071112C,KNIGHTON CLEANING SERVICES LTD,31922,56,"1,243.90",GENERAL CLEANS,12/11/12,
071112C,KNIGHTON CLEANING SERVICES LTD,31922,57,813.57,GENERAL CLEANS,12/11/12,
071112C,KNIGHTON CLEANING SERVICES LTD,31922,58,805.25,GENERAL CLEANS,12/11/12,
071112C,KNIGHTON CLEANING SERVICES LTD,31922,59,941.48,GENERAL CLEANS,12/11/12,
071112C,KNIGHTON CLEANING SERVICES LTD,31922,60,"2,831.29",GENERAL CLEANS,12/11/12,
071112C,KNIGHTON CLEANING SERVICES LTD,31922,61,"1,094.28",GENERAL CLEANS,12/11/12,
071112C,KNIGHTON CLEANING SERVICES LTD,31922,62,"1,681.08",GENERAL CLEANS,12/11/12,
071112C,KNIGHTON CLEANING SERVICES LTD,31922,63,"3,184.58",GENERAL CLEANS,12/11/12,
071112C,KNIGHTON CLEANING SERVICES LTD,31922,64,920.28,GENERAL CLEANS,12/11/12,
071112C,KNIGHTON CLEANING SERVICES LTD,31922,65,936.67,GENERAL CLEANS,12/11/12,
071112C,KNIGHTON CLEANING SERVICES LTD,31922,66,"1,747.95",GENERAL CLEANS,12/11/12,
071112C,KNIGHTON CLEANING SERVICES LTD,31922,67,"1,267.13",GENERAL CLEANS,12/11/12,
071112C,KNIGHTON CLEANING SERVICES LTD,31922,68,961.70,GENERAL CLEANS,12/11/12,
071112C,KNIGHTON CLEANING SERVICES LTD,31922,69,"1,239.88",GENERAL CLEANS,12/11/12,
071112C,KNIGHTON CLEANING SERVICES LTD,31922,70,"1,531.55",GENERAL CLEANS,12/11/12,
071112C,KNIGHTON CLEANING SERVICES LTD,31923,1,"1,159.15",GENERAL CLEANS,12/11/12,"88,084.19"
071112C,KNIGHTON CLEANING SERVICES LTD,31923,2,"1,256.77",GENERAL CLEANS,12/11/12,
071112C,KNIGHTON CLEANING SERVICES LTD,31923,3,"1,192.06",GENERAL CLEANS,12/11/12,
071112C,KNIGHTON CLEANING SERVICES LTD,31923,4,"1,432.68",GENERAL CLEANS,12/11/12,
071112C,KNIGHTON CLEANING SERVICES LTD,31923,5,679.24,GENERAL CLEANS,12/11/12,
071112C,KNIGHTON CLEANING SERVICES LTD,31923,6,"1,634.76",GENERAL CLEANS,12/11/12,
071112C,KNIGHTON CLEANING SERVICES LTD,31923,7,"2,386.68",GENERAL CLEANS,12/11/12,
071112C,KNIGHTON CLEANING SERVICES LTD,31923,8,"2,223.81",GENERAL CLEANS,12/11/12,
071112C,KNIGHTON CLEANING SERVICES LTD,31923,9,"3,768.61",GENERAL CLEANS,12/11/12,
071112C,KNIGHTON CLEANING SERVICES LTD,31923,10,"1,181.45",GENERAL CLEANS,12/11/12,
071112C,KNIGHTON CLEANING SERVICES LTD,31923,11,"1,016.09",GENERAL CLEANS,12/11/12,
071112C,KNIGHTON CLEANING SERVICES LTD,31923,12,"1,297.70",GENERAL CLEANS,12/11/12,
071112C,KNIGHTON CLEANING SERVICES LTD,31923,13,"1,441.58",GENERAL CLEANS,12/11/12,
071112C,KNIGHTON CLEANING SERVICES LTD,31923,14,"1,188.89",GENERAL CLEANS,12/11/12,
071112C,KNIGHTON CLEANING SERVICES LTD,31923,15,"1,233.66",GENERAL CLEANS,12/11/12,
071112C,KNIGHTON CLEANING SERVICES LTD,31923,16,"1,255.31",GENERAL CLEANS,12/11/12,
071112C,KNIGHTON CLEANING SERVICES LTD,31923,17,"1,676.35",GENERAL CLEANS,12/11/12,
071112C,KNIGHTON CLEANING SERVICES LTD,31923,18,"1,343.82",GENERAL CLEANS,12/11/12,
071112C,KNIGHTON CLEANING SERVICES LTD,31923,19,673.87,GENERAL CLEANS,12/11/12,
071112C,KNIGHTON CLEANING SERVICES LTD,31923,20,"13,681.29",GENERAL CLEANS,12/11/12,
071112C,KNIGHTON CLEANING SERVICES LTD,31923,21,"1,349.12",GENERAL CLEANS,12/11/12,
071112C,KNIGHTON CLEANING SERVICES LTD,31923,22,485.71,GENERAL CLEANS,12/11/12,
071112C,KNIGHTON CLEANING SERVICES LTD,31923,23,"1,785.33",GENERAL CLEANS,12/11/12,
071112C,KNIGHTON CLEANING SERVICES LTD,31923,24,"3,713.63",GENERAL CLEANS,12/11/12,
071112C,KNIGHTON CLEANING SERVICES LTD,31923,25,711.13,GENERAL CLEANS,12/11/12,
071112C,KNIGHTON CLEANING SERVICES LTD,31923,26,"2,021.05",GENERAL CLEANS,12/11/12,
071112C,KNIGHTON CLEANING SERVICES LTD,31923,27,974.76,GENERAL CLEANS,12/11/12,
071112C,KNIGHTON CLEANING SERVICES LTD,31923,28,"1,508.95",GENERAL CLEANS,12/11/12,
071112C,KNIGHTON CLEANING SERVICES LTD,31923,29,"1,541.10",GENERAL CLEANS,12/11/12,
071112C,KNIGHTON CLEANING SERVICES LTD,31923,30,"1,049.89",GENERAL CLEANS,12/11/12,
071112C,KNIGHTON CLEANING SERVICES LTD,31923,31,"2,309.31",GENERAL CLEANS,12/11/12,
071112C,KNIGHTON CLEANING SERVICES LTD,31923,32,"1,451.49",GENERAL CLEANS,12/11/12,
071112C,KNIGHTON CLEANING SERVICES LTD,31923,33,"1,072.57",GENERAL CLEANS,12/11/12,
071112C,KNIGHTON CLEANING SERVICES LTD,31923,34,"1,359.11",GENERAL CLEANS,12/11/12,
071112C,KNIGHTON CLEANING SERVICES LTD,31923,35,"1,436.46",GENERAL CLEANS,12/11/12,
071112C,KNIGHTON CLEANING SERVICES LTD,31923,36,"9,185.68",GENERAL CLEANS,12/11/12,
071112C,KNIGHTON CLEANING SERVICES LTD,31923,37,858.79,GENERAL CLEANS,12/11/12,
071112C,KNIGHTON CLEANING SERVICES LTD,31923,38,"1,085.29",GENERAL CLEANS,12/11/12,
071112C,KNIGHTON CLEANING SERVICES LTD,31923,39,"2,182.38",GENERAL CLEANS,12/11/12,
071112C,KNIGHTON CLEANING SERVICES LTD,31923,40,"1,234.73",GENERAL CLEANS,12/11/12,
071112C,KNIGHTON CLEANING SERVICES LTD,31923,41,945.62,GENERAL CLEANS,12/11/12,
071112C,KNIGHTON CLEANING SERVICES LTD,31923,42,"1,861.31",GENERAL CLEANS,12/11/12,
071112C,KNIGHTON CLEANING SERVICES LTD,31923,43,"1,519.80",GENERAL CLEANS,12/11/12,
071112C,KNIGHTON CLEANING SERVICES LTD,31923,44,"1,514.75",GENERAL CLEANS,12/11/12,
071112C,KNIGHTON CLEANING SERVICES LTD,31923,45,"1,421.86",GENERAL CLEANS,12/11/12,
071112C,KNIGHTON CLEANING SERVICES LTD,31923,46,"1,188.29",GENERAL CLEANS,12/11/12,
071112C,KNIGHTON CLEANING SERVICES LTD,31923,47,592.31,GENERAL CLEANS,12/11/12,
061112E,CANON (UK) LTD===============,401282663,1,354.85,OFFICE EQUIPMENT,12/11/12,"15,718.78"
061112E,CANON (UK) LTD===============,401282663,2,"10,383.06",OFFICE EQUIPMENT,12/11/12,
061112E,CANON (UK) LTD===============,401282663,3,261.55,OFFICE EQUIPMENT,12/11/12,
061112E,CANON (UK) LTD===============,401282663,4,"4,719.32",OFFICE EQUIPMENT,12/11/12,
071112C,CITY OF LONDON,4081892,1,"1,500.00",CATERING EQUIPMENT,12/11/12,"1,500.00"
139943,LONDON PENSIONS FUND AUTHORITY,5501,1,"84,968.33",LOCAL GOVT PENSION SCHEME PAYM,12/11/12,"84,968.33"
800014366,*GREENHAM TRADING LTD=========,5555422,1,20.40,OPERATIONAL EQUIP-PURCHASE,12/11/12,422.02
800014366,*GREENHAM TRADING LTD=========,5555422,2,3.02,CLOTHING,12/11/12,
800014366,*GREENHAM TRADING LTD=========,5555422,3,44.16,OPERATIONAL EQUIP-PURCHASE,12/11/12,
800014366,*GREENHAM TRADING LTD=========,5555422,4,6.80,OPERATIONAL EQUIP-PURCHASE,12/11/12,
800014366,*GREENHAM TRADING LTD=========,5555422,5,41.77,HYGIENE,12/11/12,
800014366,*GREENHAM TRADING LTD=========,5555422,6,20.76,HYGIENE,12/11/12,
800014366,*GREENHAM TRADING LTD=========,5555422,7,41.77,HYGIENE,12/11/12,
800014366,*GREENHAM TRADING LTD=========,5555422,8,20.76,HYGIENE,12/11/12,
800014366,*GREENHAM TRADING LTD=========,5555422,9,1.63,HYGIENE,12/11/12,
800014366,*GREENHAM TRADING LTD=========,5555422,10,19.92,HYGIENE,12/11/12,
800014366,*GREENHAM TRADING LTD=========,5555422,11,10.30,HYGIENE,12/11/12,
800014366,*GREENHAM TRADING LTD=========,5555422,12,1.03,HYGIENE,12/11/12,
800014366,*GREENHAM TRADING LTD=========,5555422,13,30.78,CLOTHING,12/11/12,
800014366,*GREENHAM TRADING LTD=========,5555422,14,43.06,CLOTHING,12/11/12,
800014366,*GREENHAM TRADING LTD=========,5555422,15,43.06,CLOTHING,12/11/12,
800014366,*GREENHAM TRADING LTD=========,5555422,16,24.02,OPERATIONAL EQUIP-PURCHASE,12/11/12,
800014366,*GREENHAM TRADING LTD=========,5555422,17,48.78,HYGIENE,12/11/12,
800014367,*GREENHAM TRADING LTD=========,5555423,1,9.12,HYGIENE,12/11/12,256.10
800014367,*GREENHAM TRADING LTD=========,5555423,2,7.92,HYGIENE,12/11/12,
800014367,*GREENHAM TRADING LTD=========,5555423,3,110.40,OPERATIONAL EQUIP-PURCHASE,12/11/12,
800014367,*GREENHAM TRADING LTD=========,5555423,4,123.20,HYGIENE,12/11/12,
800014367,*GREENHAM TRADING LTD=========,5555423,5,5.46,HYGIENE,12/11/12,
139943,GVA GRIMLEY===================,6040-333994,1,"1,170.94",RENTS,12/11/12,"1,170.94"
139944,AFFINITY WATER,63110231-1W,1,679.08,WATER & SEWERAGE RATES,12/11/12,679.08
139935,STONEDALE PROPERTY MANAGEMENT,67218,1,"6,059.74",RENTS,12/11/12,"6,059.74"
061112E,TWO SERVICES LTD==============,67293,1,645.50,CATERING EQUIPMENT,12/11/12,645.50
061112C,HEWLETT - PACKARD LTD=========,6763373,1,111.38,MAINTENANCE & SUPPORT,12/11/12,"3,399.38"
061112C,HEWLETT - PACKARD LTD=========,6763373,2,"3,288.00",MAINTENANCE & SUPPORT,12/11/12,
291012C,SWEETT  UK LTD,7017520,1,"1,500.00",STRATEGIC (NON CYCLICAL),12/11/12,"1,500.00"
071112C,NEXUS PROPERTY SERVICES,79595,1,"3,031.76",GENERAL,12/11/12,"3,031.76"
139943,THOMPSONS=====================,8284*,1,"25,833.04",CLAIMANT COSTS AGREED,12/11/12,"25,833.04"
061112E,CPL PETROLEUM=================,8504157,1,"2,318.00",FUEL,12/11/12,"2,318.00"
071112C,ALLSTAR BUSINESS SOLUTIONS LTD,90237494/1019428382,1,296.22,FUEL,12/11/12,"21,557.78"
071112C,ALLSTAR BUSINESS SOLUTIONS LTD,90237494/1019428382,2,107.71,FUEL,12/11/12,
071112C,ALLSTAR BUSINESS SOLUTIONS LTD,90237494/1019428382,3,118.37,FUEL,12/11/12,
071112C,ALLSTAR BUSINESS SOLUTIONS LTD,90237494/1019428382,4,209.16,FUEL,12/11/12,
071112C,ALLSTAR BUSINESS SOLUTIONS LTD,90237494/1019428382,5,331.81,FUEL,12/11/12,
071112C,ALLSTAR BUSINESS SOLUTIONS LTD,90237494/1019428382,6,70.07,FUEL,12/11/12,
071112C,ALLSTAR BUSINESS SOLUTIONS LTD,90237494/1019428382,7,123.67,FUEL,12/11/12,
071112C,ALLSTAR BUSINESS SOLUTIONS LTD,90237494/1019428382,8,179.59,FUEL,12/11/12,
071112C,ALLSTAR BUSINESS SOLUTIONS LTD,90237494/1019428382,9,129.15,FUEL,12/11/12,
071112C,ALLSTAR BUSINESS SOLUTIONS LTD,90237494/1019428382,10,223.04,FUEL,12/11/12,
071112C,ALLSTAR BUSINESS SOLUTIONS LTD,90237494/1019428382,11,346.18,FUEL,12/11/12,
071112C,ALLSTAR BUSINESS SOLUTIONS LTD,90237494/1019428382,12,358.72,FUEL,12/11/12,
071112C,ALLSTAR BUSINESS SOLUTIONS LTD,90237494/1019428382,13,341.22,FUEL,12/11/12,
071112C,ALLSTAR BUSINESS SOLUTIONS LTD,90237494/1019428382,14,312.04,FUEL,12/11/12,
071112C,ALLSTAR BUSINESS SOLUTIONS LTD,90237494/1019428382,15,87.43,FUEL,12/11/12,
071112C,ALLSTAR BUSINESS SOLUTIONS LTD,90237494/1019428382,16,247.14,FUEL,12/11/12,
071112C,ALLSTAR BUSINESS SOLUTIONS LTD,90237494/1019428382,17,133.33,FUEL,12/11/12,
071112C,ALLSTAR BUSINESS SOLUTIONS LTD,90237494/1019428382,18,102.34,FUEL,12/11/12,
071112C,ALLSTAR BUSINESS SOLUTIONS LTD,90237494/1019428382,19,171.29,FUEL,12/11/12,
071112C,ALLSTAR BUSINESS SOLUTIONS LTD,90237494/1019428382,20,139.13,FUEL,12/11/12,
071112C,ALLSTAR BUSINESS SOLUTIONS LTD,90237494/1019428382,21,159.05,FUEL,12/11/12,
071112C,ALLSTAR BUSINESS SOLUTIONS LTD,90237494/1019428382,22,144.30,FUEL,12/11/12,
071112C,ALLSTAR BUSINESS SOLUTIONS LTD,90237494/1019428382,23,229.38,FUEL,12/11/12,
071112C,ALLSTAR BUSINESS SOLUTIONS LTD,90237494/1019428382,24,194.74,FUEL,12/11/12,
071112C,ALLSTAR BUSINESS SOLUTIONS LTD,90237494/1019428382,25,195.41,FUEL,12/11/12,
071112C,ALLSTAR BUSINESS SOLUTIONS LTD,90237494/1019428382,26,203.61,FUEL,12/11/12,
071112C,ALLSTAR BUSINESS SOLUTIONS LTD,90237494/1019428382,27,188.58,FUEL,12/11/12,
071112C,ALLSTAR BUSINESS SOLUTIONS LTD,90237494/1019428382,28,257.92,FUEL,12/11/12,
071112C,ALLSTAR BUSINESS SOLUTIONS LTD,90237494/1019428382,29,243.43,FUEL,12/11/12,
071112C,ALLSTAR BUSINESS SOLUTIONS LTD,90237494/1019428382,30,230.02,FUEL,12/11/12,
071112C,ALLSTAR BUSINESS SOLUTIONS LTD,90237494/1019428382,31,295.54,FUEL,12/11/12,
071112C,ALLSTAR BUSINESS SOLUTIONS LTD,90237494/1019428382,32,333.36,FUEL,12/11/12,
071112C,ALLSTAR BUSINESS SOLUTIONS LTD,90237494/1019428382,33,268.73,FUEL,12/11/12,
071112C,ALLSTAR BUSINESS SOLUTIONS LTD,90237494/1019428382,34,206.93,FUEL,12/11/12,
071112C,ALLSTAR BUSINESS SOLUTIONS LTD,90237494/1019428382,35,426.57,FUEL,12/11/12,
071112C,ALLSTAR BUSINESS SOLUTIONS LTD,90237494/1019428382,36,107.25,FUEL,12/11/12,
071112C,ALLSTAR BUSINESS SOLUTIONS LTD,90237494/1019428382,37,374.96,FUEL,12/11/12,
071112C,ALLSTAR BUSINESS SOLUTIONS LTD,90237494/1019428382,38,99.37,FUEL,12/11/12,
071112C,ALLSTAR BUSINESS SOLUTIONS LTD,90237494/1019428382,39,114.37,FUEL,12/11/12,
071112C,ALLSTAR BUSINESS SOLUTIONS LTD,90237494/1019428382,40,726.81,FUEL,12/11/12,
071112C,ALLSTAR BUSINESS SOLUTIONS LTD,90237494/1019428382,41,138.64,FUEL,12/11/12,
071112C,ALLSTAR BUSINESS SOLUTIONS LTD,90237494/1019428382,42,201.44,FUEL,12/11/12,
071112C,ALLSTAR BUSINESS SOLUTIONS LTD,90237494/1019428382,43,165.95,FUEL,12/11/12,
071112C,ALLSTAR BUSINESS SOLUTIONS LTD,90237494/1019428382,44,279.36,FUEL,12/11/12,
071112C,ALLSTAR BUSINESS SOLUTIONS LTD,90237494/1019428382,45,91.25,FUEL,12/11/12,
071112C,ALLSTAR BUSINESS SOLUTIONS LTD,90237494/1019428382,46,239.11,FUEL,12/11/12,
071112C,ALLSTAR BUSINESS SOLUTIONS LTD,90237494/1019428382,47,280.44,FUEL,12/11/12,
071112C,ALLSTAR BUSINESS SOLUTIONS LTD,90237494/1019428382,48,150.66,FUEL,12/11/12,
071112C,ALLSTAR BUSINESS SOLUTIONS LTD,90237494/1019428382,49,164.59,FUEL,12/11/12,
071112C,ALLSTAR BUSINESS SOLUTIONS LTD,90237494/1019428382,50,146.84,FUEL,12/11/12,
071112C,ALLSTAR BUSINESS SOLUTIONS LTD,90237494/1019428382,51,87.61,FUEL,12/11/12,
071112C,ALLSTAR BUSINESS SOLUTIONS LTD,90237494/1019428382,52,861.99,FUEL,12/11/12,
071112C,ALLSTAR BUSINESS SOLUTIONS LTD,90237494/1019428382,53,520.90,FUEL,12/11/12,
071112C,ALLSTAR BUSINESS SOLUTIONS LTD,90237494/1019428382,54,310.63,FUEL,12/11/12,
071112C,ALLSTAR BUSINESS SOLUTIONS LTD,90237494/1019428382,55,235.02,FUEL,12/11/12,
071112C,ALLSTAR BUSINESS SOLUTIONS LTD,90237494/1019428382,56,208.14,FUEL,12/11/12,
071112C,ALLSTAR BUSINESS SOLUTIONS LTD,90237494/1019428382,57,365.40,FUEL,12/11/12,
071112C,ALLSTAR BUSINESS SOLUTIONS LTD,90237494/1019428382,58,186.43,FUEL,12/11/12,
071112C,ALLSTAR BUSINESS SOLUTIONS LTD,90237494/1019428382,59,168.86,FUEL,12/11/12,
071112C,ALLSTAR BUSINESS SOLUTIONS LTD,90237494/1019428382,60,173.79,FUEL,12/11/12,
071112C,ALLSTAR BUSINESS SOLUTIONS LTD,90237494/1019428382,61,163.49,FUEL,12/11/12,
071112C,ALLSTAR BUSINESS SOLUTIONS LTD,90237494/1019428382,62,198.45,FUEL,12/11/12,
071112C,ALLSTAR BUSINESS SOLUTIONS LTD,90237494/1019428382,63,163.59,FUEL,12/11/12,
071112C,ALLSTAR BUSINESS SOLUTIONS LTD,90237494/1019428382,64,70.65,FUEL,12/11/12,
071112C,ALLSTAR BUSINESS SOLUTIONS LTD,90237494/1019428382,65,169.27,FUEL,12/11/12,
071112C,ALLSTAR BUSINESS SOLUTIONS LTD,90237494/1019428382,66,95.37,FUEL,12/11/12,
071112C,ALLSTAR BUSINESS SOLUTIONS LTD,90237494/1019428382,67,172.68,FUEL,12/11/12,
071112C,ALLSTAR BUSINESS SOLUTIONS LTD,90237494/1019428382,68,121.35,FUEL,12/11/12,
071112C,ALLSTAR BUSINESS SOLUTIONS LTD,90237494/1019428382,69,230.39,FUEL,12/11/12,
071112C,ALLSTAR BUSINESS SOLUTIONS LTD,90237494/1019428382,70,865.23,FUEL,12/11/12,
071112C,ALLSTAR BUSINESS SOLUTIONS LTD,90237494/1019428382,71,120.86,FUEL,12/11/12,
071112C,ALLSTAR BUSINESS SOLUTIONS LTD,90237494/1019428382,72,146.93,FUEL,12/11/12,
071112C,ALLSTAR BUSINESS SOLUTIONS LTD,90237494/1019428382,73,98.51,FUEL,12/11/12,
071112C,ALLSTAR BUSINESS SOLUTIONS LTD,90237494/1019428382,74,75.62,FUEL,12/11/12,
071112C,ALLSTAR BUSINESS SOLUTIONS LTD,90237494/1019428382,75,146.53,FUEL,12/11/12,
071112C,ALLSTAR BUSINESS SOLUTIONS LTD,90237494/1019428382,76,100.64,FUEL,12/11/12,
071112C,ALLSTAR BUSINESS SOLUTIONS LTD,90237494/1019428382,77,126.11,FUEL,12/11/12,
071112C,ALLSTAR BUSINESS SOLUTIONS LTD,90237494/1019428382,78,75.13,FUEL,12/11/12,
071112C,ALLSTAR BUSINESS SOLUTIONS LTD,90237494/1019428382,79,209.56,FUEL,12/11/12,
071112C,ALLSTAR BUSINESS SOLUTIONS LTD,90237494/1019428382,80,216.74,FUEL,12/11/12,
071112C,ALLSTAR BUSINESS SOLUTIONS LTD,90237494/1019428382,81,56.15,FUEL,12/11/12,
071112C,ALLSTAR BUSINESS SOLUTIONS LTD,90237494/1019428382,82,343.67,FUEL,12/11/12,
071112C,ALLSTAR BUSINESS SOLUTIONS LTD,90237494/1019428382,83,71.12,FUEL,12/11/12,
071112C,ALLSTAR BUSINESS SOLUTIONS LTD,90237494/1019428382,84,140.54,FUEL,12/11/12,
071112C,ALLSTAR BUSINESS SOLUTIONS LTD,90237494/1019428382,85,29.17,FUEL,12/11/12,
071112C,ALLSTAR BUSINESS SOLUTIONS LTD,90237494/1019428382,86,81.69,FUEL,12/11/12,
071112C,ALLSTAR BUSINESS SOLUTIONS LTD,90237494/1019428382,87,75.01,FUEL,12/11/12,
071112C,ALLSTAR BUSINESS SOLUTIONS LTD,90237494/1019428382,88,97.07,FUEL,12/11/12,
071112C,ALLSTAR BUSINESS SOLUTIONS LTD,90237494/1019428382,89,82.86,FUEL,12/11/12,
071112C,ALLSTAR BUSINESS SOLUTIONS LTD,90237494/1019428382,90,67.63,FUEL,12/11/12,
071112C,ALLSTAR BUSINESS SOLUTIONS LTD,90237494/1019428382,91,59.57,FUEL,12/11/12,
071112C,ALLSTAR BUSINESS SOLUTIONS LTD,90237494/1019428382,92,262.86,FUEL,12/11/12,
071112C,ALLSTAR BUSINESS SOLUTIONS LTD,90237494/1019428382,93,333.15,FUEL,12/11/12,
071112C,ALLSTAR BUSINESS SOLUTIONS LTD,90237494/1019428382,94,201.37,FUEL,12/11/12,
071112C,ALLSTAR BUSINESS SOLUTIONS LTD,90237494/1019428382,95,49.75,FUEL,12/11/12,
071112C,ALLSTAR BUSINESS SOLUTIONS LTD,90237494/1019428382,96,66.26,FUEL,12/11/12,
071112C,ALLSTAR BUSINESS SOLUTIONS LTD,90237494/1019428382,97,91.65,FUEL,12/11/12,
071112C,ALLSTAR BUSINESS SOLUTIONS LTD,90237494/1019428382,98,73.04,FUEL,12/11/12,
071112C,ALLSTAR BUSINESS SOLUTIONS LTD,90237494/1019428382,99,25.77,FUEL,12/11/12,
071112C,ALLSTAR BUSINESS SOLUTIONS LTD,90237494/1019428382,100,117.86,FUEL,12/11/12,
071112C,ALLSTAR BUSINESS SOLUTIONS LTD,90237494/1019428382,101,42.55,FUEL,12/11/12,
071112C,ALLSTAR BUSINESS SOLUTIONS LTD,90237494/1019428382,102,83.29,FUEL,12/11/12,
071112C,ALLSTAR BUSINESS SOLUTIONS LTD,90237494/1019428382,103,364.36,FUEL,12/11/12,
071112C,ALLSTAR BUSINESS SOLUTIONS LTD,90237494/1019428382,104,287.69,FUEL,12/11/12,
071112C,ALLSTAR BUSINESS SOLUTIONS LTD,90237494/1019428382,105,20.34,FUEL,12/11/12,
071112C,ALLSTAR BUSINESS SOLUTIONS LTD,90237494/1019428382,106,74.79,FUEL,12/11/12,
071112C,ALLSTAR BUSINESS SOLUTIONS LTD,90237494/1019428382,107,86.95,FUEL,12/11/12,
071112C,ALLSTAR BUSINESS SOLUTIONS LTD,90237494/1019428382,108,29.35,FUEL,12/11/12,
071112C,ALLSTAR BUSINESS SOLUTIONS LTD,90237494/1019428382,109,156.40,FUEL,12/11/12,
071112C,ALLSTAR BUSINESS SOLUTIONS LTD,90237494/1019428382,110,78.45,FUEL,12/11/12,
071112C,ALLSTAR BUSINESS SOLUTIONS LTD,90237494/1019428382,111,261.38,FUEL,12/11/12,
071112C,ALLSTAR BUSINESS SOLUTIONS LTD,90237494/1019428382,112,50.00,FUEL,12/11/12,
071112C,ALLSTAR BUSINESS SOLUTIONS LTD,90237494/1019428382,113,123.95,FUEL,12/11/12,
061112C,DRAEGER SAFETY UK LIMITED=====,90394085,1,967.33,PROTECTIVE EQUIPT - PARTS,12/11/12,967.33
061112C,DRAEGER SAFETY UK LIMITED=====,90394159,1,13.20,PROTECTIVE EQUIPT - PARTS,12/11/12,930.80
061112C,DRAEGER SAFETY UK LIMITED=====,90394159,2,41.60,PROTECTIVE EQUIPT - PARTS,12/11/12,
061112C,DRAEGER SAFETY UK LIMITED=====,90394159,3,876.00,PROTECTIVE EQUIPT - PARTS,12/11/12,
139944,THAMES WATER UTILITIES LTD====,97652-75302,1,"1,153.37",WATER & SEWERAGE RATES,12/11/12,"1,153.37"
061112C,THAMES WATER UTILITIES LTD====,CBA1212874,1,"1,800.00",HYDRANTS,12/11/12,"1,800.00"
061112C,THAMES WATER UTILITIES LTD====,CBA1212875,1,"1,082.00",HYDRANTS,12/11/12,"1,082.00"
061112C,THAMES WATER UTILITIES LTD====,CBA1212876,1,"1,015.00",CURRENT HYDRANT COSTS,12/11/12,"1,015.00"
061112C,THAMES WATER UTILITIES LTD====,CBA1212879,1,"1,082.00",HYDRANTS,12/11/12,"1,082.00"
061112C,THAMES WATER UTILITIES LTD====,CBA1212880,1,"1,082.00",CURRENT HYDRANT COSTS,12/11/12,"1,082.00"
061112C,THAMES WATER UTILITIES LTD====,CBA1212881,1,"1,082.00",CURRENT HYDRANT COSTS,12/11/12,"1,082.00"
061112C,THAMES WATER UTILITIES LTD====,CBA1212882,1,"1,082.00",CURRENT HYDRANT COSTS,12/11/12,"1,082.00"
061112C,THAMES WATER UTILITIES LTD====,CBA1212883,1,"1,082.00",CURRENT HYDRANT COSTS,12/11/12,"1,082.00"
061112C,THAMES WATER UTILITIES LTD====,CBA1212884,1,"1,082.00",CURRENT HYDRANT COSTS,12/11/12,"1,082.00"
061112C,THAMES WATER UTILITIES LTD====,CBA1212888,1,"1,082.00",CURRENT HYDRANT COSTS,12/11/12,"1,082.00"
061112C,THAMES WATER UTILITIES LTD====,CBA1212892,1,"1,082.00",CURRENT HYDRANT COSTS,12/11/12,"1,082.00"
061112C,THAMES WATER UTILITIES LTD====,CBA1212893,1,"1,082.00",CURRENT HYDRANT COSTS,12/11/12,"1,082.00"
061112C,THAMES WATER UTILITIES LTD====,CBA1212895,1,"1,082.00",CURRENT HYDRANT COSTS,12/11/12,"1,082.00"
061112C,THAMES WATER UTILITIES LTD====,CBA1212896,1,"1,082.00",CURRENT HYDRANT COSTS,12/11/12,"1,082.00"
061112C,THAMES WATER UTILITIES LTD====,CBA1212898,1,"1,082.00",CURRENT HYDRANT COSTS,12/11/12,"1,082.00"
061112C,THAMES WATER UTILITIES LTD====,CBA1212899,1,"1,082.00",CURRENT HYDRANT COSTS,12/11/12,"1,082.00"
061112C,THAMES WATER UTILITIES LTD====,CBA1212902,1,"1,082.00",CURRENT HYDRANT COSTS,12/11/12,"1,082.00"
061112C,THAMES WATER UTILITIES LTD====,CBA1212908,1,511.50,CURRENT HYDRANT COSTS,12/11/12,511.50
061112C,E&S B DAVIS LTD===============,DAV/38179,1,360.00,OPERATIONAL EQUIP-PURCHASE,12/11/12,360.00
061112C,WM ENGINEERING SERVICES LTD===,I-4372,1,266.00,TACTICAL DAY TO DAY,12/11/12,266.00
071112C,PULSE FITNESS LTD,IN014941,1,"3,147.54",DEVELOPMENT EXP - CONTRACTORS,12/11/12,"5,532.69"
071112C,PULSE FITNESS LTD,IN014941,2,528.19,DEVELOPMENT EXP - CONTRACTORS,12/11/12,
071112C,PULSE FITNESS LTD,IN014941,3,"1,756.96",DEVELOPMENT EXP - CONTRACTORS,12/11/12,
071112C,PULSE FITNESS LTD,IN014941,4,100.00,DEVELOPMENT EXP - CONTRACTORS,12/11/12,
071112C,PULSE FITNESS LTD,IN014942,1,307.37,DEVELOPMENT EXP - CONTRACTORS,12/11/12,307.37
071112C,PULSE FITNESS LTD,IN014943,1,307.37,DEVELOPMENT EXP - CONTRACTORS,12/11/12,635.83
071112C,PULSE FITNESS LTD,IN014943,2,328.46,DEVELOPMENT EXP - CONTRACTORS,12/11/12,
011112C,PURDY CONTRACTS LTD,IN225122,1,"4,752.09",STRATEGIC (NON CYCLICAL),12/11/12,"4,752.09"
021112C,PURDY CONTRACTS LTD,IN225123,1,"9,622.39",STRATEGIC (NON CYCLICAL),12/11/12,"9,622.39"
301012C,LEARNING TREE INTERNATIONAL LT,IN492352,1,"1,787.00",TRAINING & CONFERENCES,12/11/12,"1,787.00"
139942,JCT600 CONTRACTS LIMITED======,INV00021026,1,"2,598.68",LEASE CAR CHARGES,12/11/12,"6,281.58"
139942,JCT600 CONTRACTS LIMITED======,INV00021026,2,"3,682.90",P/PAYMTS-CAR LEASG-RENTAL,12/11/12,
139942,JCT600 CONTRACTS LIMITED======,INV00021026,3,-557.73,VAT CAR LEASING,12/11/12,
139942,JCT600 CONTRACTS LIMITED======,INV00021026,4,557.73,LEASE CAR CHARGES,12/11/12,
139942,JCT600 CONTRACTS LIMITED======,INV00021027,1,"1,727.78",LEASE CAR CHARGES,12/11/12,"4,176.42"
139942,JCT600 CONTRACTS LIMITED======,INV00021027,2,"2,448.64",P/PAYMTS-CAR LEASG-RENTAL,12/11/12,
139942,JCT600 CONTRACTS LIMITED======,INV00021027,3,-370.01,VAT CAR LEASING,12/11/12,
139942,JCT600 CONTRACTS LIMITED======,INV00021027,4,370.01,LEASE CAR CHARGES,12/11/12,
139944,JCT600 CONTRACTS LIMITED======,INV00021028,1,"3,183.14",LEASE CAR CHARGES,12/11/12,"7,694.34"
139944,JCT600 CONTRACTS LIMITED======,INV00021028,2,"4,511.20",P/PAYMTS-CAR LEASG-RENTAL,12/11/12,
139944,JCT600 CONTRACTS LIMITED======,INV00021028,3,-707.57,VAT CAR LEASING,12/11/12,
139944,JCT600 CONTRACTS LIMITED======,INV00021028,4,707.57,LEASE CAR CHARGES,12/11/12,
139942,JCT600 CONTRACTS LIMITED======,INV00021029,1,"2,584.80",LEASE CAR CHARGES,12/11/12,"6,248.02"
139942,JCT600 CONTRACTS LIMITED======,INV00021029,2,"3,663.22",P/PAYMTS-CAR LEASG-RENTAL,12/11/12,
139942,JCT600 CONTRACTS LIMITED======,INV00021029,3,-562.85,VAT CAR LEASING,12/11/12,
139942,JCT600 CONTRACTS LIMITED======,INV00021029,4,562.85,LEASE CAR CHARGES,12/11/12,
061112C,LONDON YOUTH GOSPEL CHOIR,LYGC/LFB/01,1,350.00,PUBLIC RELATIONS,12/11/12,350.00
301012C,DOCKLANDS RESTAURANTS AND BARS,MW2012/0283,1,450.00,PUBLIC RELATIONS,12/11/12,450.00
051112E,MTI TECHNOLOGY LTD,OP/I351549,1,"69,917.40",ACQUISITIONS,12/11/12,"108,714.76"
051112E,MTI TECHNOLOGY LTD,OP/I351549,2,"22,770.00",ACQUISITIONS,12/11/12,
051112E,MTI TECHNOLOGY LTD,OP/I351549,3,"10,707.66",ACQUISITIONS,12/11/12,
051112E,MTI TECHNOLOGY LTD,OP/I351549,4,"5,000.00",ACQUISITIONS,12/11/12,
051112E,MTI TECHNOLOGY LTD,OP/I351549,5,319.70,ACQUISITIONS,12/11/12,
061112C,PHOENIX SOFTWARE LTD==========,OP/I680759,1,"14,820.00",MAINTENANCE & SUPPORT,12/11/12,"25,974.00"
061112C,PHOENIX SOFTWARE LTD==========,OP/I680759,2,"3,575.00",MAINTENANCE & SUPPORT,12/11/12,
061112C,PHOENIX SOFTWARE LTD==========,OP/I680759,3,"7,579.00",MAINTENANCE & SUPPORT,12/11/12,
301012F,PAUL DEAN LYTTLE==============,SDSA-N001,1,500.00,COMMUNITY RELATIONS,12/11/12,500.00
061112E,FIRE SERVICE COLLEGE==========,SIN051135,1,"1,550.00",TRAINING & CONFERENCES,12/11/12,"1,550.00"
071112C,SPENCER RHODES GRAPHICS,SRG2238LFB,1,396.00,COMMUNITY RELATIONS,12/11/12,396.00
061112C,CIBSE=========================,T38243,1,285.00,TRAINING & CONFERENCES,12/11/12,285.00
061112C,MOTOROLA LTD==================,UK9000773,1,"128,718.27",MAINTENANCE & SUPPORT,12/11/12,"128,718.27"
139949,DEPARTMENT FOR WORK & PENSIONS,8744,1,781.00,DOCTORS/MEDICAL FEES,13/11/12,781.00
139947,BABCOCK TRAINING LTD,IN024266,1,"1,605.78",SECONDMENTS,13/11/12,"1,605.78"
021112C,HEALTH MANAGEMENT LIMITED=====,0000089570,1,"6,461.00",MEDICAL APPEALS,15/11/12,"6,461.00"
091112E,ENTEL UK LTD==================,0000119861,1,630.00,RADIO,15/11/12,845.35
091112E,ENTEL UK LTD==================,0000119861,2,145.00,RADIO,15/11/12,
091112E,ENTEL UK LTD==================,0000119861,3,2.40,RADIO,15/11/12,
091112E,ENTEL UK LTD==================,0000119861,4,25.25,RADIO,15/11/12,
091112E,ENTEL UK LTD==================,0000119861,5,33.70,RADIO,15/11/12,
091112E,ENTEL UK LTD==================,0000119861,6,9.00,RADIO,15/11/12,
091112E,ENTEL UK LTD==================,0000120553,1,36.43,RADIO,15/11/12,463.48
091112E,ENTEL UK LTD==================,0000120553,2,94.20,RADIO,15/11/12,
091112E,ENTEL UK LTD==================,0000120553,3,52.10,RADIO,15/11/12,
091112E,ENTEL UK LTD==================,0000120553,4,165.09,RADIO,15/11/12,
091112E,ENTEL UK LTD==================,0000120553,5,106.66,RADIO,15/11/12,
091112E,ENTEL UK LTD==================,0000120553,7,9.00,RADIO,15/11/12,
091112E,"TOYE, KENNING & SPENCER LTD===",0010246036,1,"6,700.00",OFFICE EQUIPMENT,15/11/12,"6,700.00"
071112C,OGILVIE FLEET LTD=============,00211580,1,"2,152.00","INSPECTION,ROAD TAX & EXCESS MILEAGE",15/11/12,"2,152.00"
121112E,*SPRUE SAFETY PRODUCTS LTD====,1039011,1,"1,950.00",FIRE DETECTORS,15/11/12,"5,255.00"
121112E,*SPRUE SAFETY PRODUCTS LTD====,1039011,2,"1,905.00",FIRE DETECTORS,15/11/12,
121112E,*SPRUE SAFETY PRODUCTS LTD====,1039011,3,"1,400.00",FIRE DETECTORS,15/11/12,
121112E,*SPRUE SAFETY PRODUCTS LTD====,1039012,1,"1,896.00",FIRE DETECTORS,15/11/12,"1,896.00"
121112E,*SPRUE SAFETY PRODUCTS LTD====,1039013,1,"1,560.00",FIRE DETECTORS,15/11/12,"1,560.00"
139949,MISS NATASHA JOFFE============,106339F,1,"1,166.67",COUNSELS FEES,15/11/12,"1,166.67"
139949,MISS NATASHA JOFFE============,107336*,1,400.00,COUNSELS FEES,15/11/12,400.00
139949,MISS NATASHA JOFFE============,108235A,1,604.17,COUNSELS FEES,15/11/12,604.17
091112E,DELOITTE LLP,110857195,1,"1,266.38",PROFESSIONAL SERVICES,15/11/12,"1,266.38"
091112E,DELOITTE LLP,110857201,1,"1,445.32",PROFESSIONAL SERVICES,15/11/12,"1,445.32"
091112E,DELOITTE LLP,110857216,1,"4,886.57",PROFESSIONAL SERVICES,15/11/12,"4,886.57"
091112E,DELOITTE LLP,1110857185,1,"4,514.92",PROFESSIONAL SERVICES,15/11/12,"4,514.92"
091112E,SILVERSANDS LIMITED===========,118759,1,"1,900.00",MAINTENANCE & SUPPORT,15/11/12,"1,900.00"
139943,SILVERSANDS LIMITED===========,118760,1,"1,900.00",PURCHASES - SOFTWARE,15/11/12,"1,900.00"
091112E,SILVERSANDS LIMITED===========,118780,1,475.00,MAINTENANCE & SUPPORT,15/11/12,475.00
139946,BOURNE CONSTRUCTION COMPANY,12/393,1,450.00,TACTICAL DAY TO DAY,15/11/12,575.00
139946,BOURNE CONSTRUCTION COMPANY,12/393,2,125.00,TACTICAL DAY TO DAY,15/11/12,
139946,BOURNE CONSTRUCTION COMPANY,12/394,1,"5,500.00",STRATEGIC (NON CYCLICAL),15/11/12,"9,750.00"
139946,BOURNE CONSTRUCTION COMPANY,12/394,2,"4,250.00",STRATEGIC (NON CYCLICAL),15/11/12,
139946,BOURNE CONSTRUCTION COMPANY,12/395,1,450.00,TACTICAL DAY TO DAY,15/11/12,600.00
139946,BOURNE CONSTRUCTION COMPANY,12/395,2,150.00,TACTICAL DAY TO DAY,15/11/12,
121112C,FURNELLS======================,13490,1,43.00,PUBLIC RELATIONS,15/11/12,298.00
121112C,FURNELLS======================,13490,2,255.00,PUBLIC RELATIONS,15/11/12,
121112C,ABARIS INTERNATIONAL LIMITED==,13911,1,56.68,CLOTHING,15/11/12,304.06
121112C,ABARIS INTERNATIONAL LIMITED==,13911,2,76.68,CLOTHING,15/11/12,
121112C,ABARIS INTERNATIONAL LIMITED==,13911,3,85.02,CLOTHING,15/11/12,
121112C,ABARIS INTERNATIONAL LIMITED==,13911,4,76.68,CLOTHING,15/11/12,
121112C,ABARIS INTERNATIONAL LIMITED==,13911,5,9.00,CLOTHING,15/11/12,
139946,B NOKES CONTRACTS LTD,1561,1,747.50,STRATEGIC (NON CYCLICAL),15/11/12,"3,267.50"
139946,B NOKES CONTRACTS LTD,1561,2,"2,520.00",STRATEGIC (NON CYCLICAL),15/11/12,
139946,B NOKES CONTRACTS LTD,1562,1,"1,161.50",DAY TO DAY MINOR IMPS,15/11/12,"1,581.50"
139946,B NOKES CONTRACTS LTD,1562,2,420.00,DAY TO DAY MINOR IMPS,15/11/12,
139946,B NOKES CONTRACTS LTD,1563,1,851.00,DAY TO DAY MINOR IMPS,15/11/12,"1,691.00"
139946,B NOKES CONTRACTS LTD,1563,2,840.00,DAY TO DAY MINOR IMPS,15/11/12,
139946,B NOKES CONTRACTS LTD,1564,1,"1,702.00",STRATEGIC (NON CYCLICAL),15/11/12,"2,542.00"
139946,B NOKES CONTRACTS LTD,1564,2,840.00,STRATEGIC (NON CYCLICAL),15/11/12,
139946,B NOKES CONTRACTS LTD,1566,1,160.00,DAY TO DAY MINOR IMPS,15/11/12,370.00
139946,B NOKES CONTRACTS LTD,1566,2,210.00,DAY TO DAY MINOR IMPS,15/11/12,
139949,MR JAMES TODD=================,161253D,1,625.00,COUNSELS FEES,15/11/12,625.00
071112C,PKF===========================,1706867,1,"3,429.00",PROFESSIONAL SERVICES,15/11/12,"3,429.00"
139947,EDF ENERGY===================,1785907925,1,"3,188.28",ELECTRICITY,15/11/12,"3,188.28"
051112E,*LOCKHART CATERING EQUIPMENT,1851720,1,347.65,CATERING EQUIPMENT,15/11/12,347.65
091112C,AUTOGLASS LIMITED=============,20142302,1,808.15,WINDSCREEN & TYRE CHARGES,15/11/12,808.15
131112G,INFIGO LTD====================,21837,1,497.50,STATIONERY CONSUMABLES,15/11/12,497.50
139949,MISS SABA NAQSHBANDI==========,224754K,1,"1,610.00",PROFESSIONAL FEES ENFORCEMENT,15/11/12,"1,610.00"
139949,MISS SARAH LE FEVRE===========,227643,1,562.50,PROFESSIONAL FEES ENFORCEMENT,15/11/12,562.50
139949,MISS SARAH LE FEVRE===========,227833*,1,850.00,PROFESSIONAL FEES ENFORCEMENT,15/11/12,850.00
121112E,BUNZL SAFETY & WORKWEAR SOLUTI,23/061934,1,559.80,UNIFORMS - POMS,15/11/12,"1,399.50"
121112E,BUNZL SAFETY & WORKWEAR SOLUTI,23/061934,2,839.70,UNIFORMS - POMS,15/11/12,
139949,MISS SARAH LE FEVRE===========,230683,1,700.00,PROFESSIONAL FEES ENFORCEMENT,15/11/12,700.00
121112C,DRAIN CONTROL=================,23364,1,895.00,STRATEGIC (CYCLICAL),15/11/12,895.00
121112E,SCOTT MERRICK ASSOCIATES======,24936,1,"5,640.00",MAINTENANCE & SUPPORT,15/11/12,"16,920.00"
121112E,SCOTT MERRICK ASSOCIATES======,24936,2,"11,280.00",MAINTENANCE & SUPPORT,15/11/12,
121112C,MACE LIMITED,26915/1012510,1,962.12,PROFESSIONAL FEES - MISC,15/11/12,962.12
121112C,THE HEIGHTEC GROUP LTD========,30713/31347,1,42.30,OPERATIONAL EQUIP-PURCHASE,15/11/12,"3,377.20"
121112C,THE HEIGHTEC GROUP LTD========,30713/31347,2,"1,607.63",OPERATIONAL EQUIP-PURCHASE,15/11/12,
121112C,THE HEIGHTEC GROUP LTD========,30713/31347,3,183.53,OPERATIONAL EQUIP-PURCHASE,15/11/12,
121112C,THE HEIGHTEC GROUP LTD========,30713/31347,4,"1,308.71",OPERATIONAL EQUIP-PURCHASE,15/11/12,
121112C,THE HEIGHTEC GROUP LTD========,30713/31347,5,202.39,OPERATIONAL EQUIP-PURCHASE,15/11/12,
121112C,THE HEIGHTEC GROUP LTD========,30713/31347,6,32.64,OPERATIONAL EQUIP-PURCHASE,15/11/12,
121112E,CIPFA BUSINESS,3073902,1,295.00,TRAINING & CONFERENCES,15/11/12,295.00
311012C,INFORMATION FACILITIES MGT LTD,3085,1,445.00,TRAINING & CONFERENCES,15/11/12,445.00
121112E,EXPRESS VENDING LIMITED=======,314727/ 314728,1,280.08,CATERING EQUIPMENT,15/11/12,280.08
139947,OPHTHALMIC TECHNOLOGIES LTD,32931,1,"4,252.58",MEDICAL EXPENSES,15/11/12,"4,252.58"
051112E,COMPUTACENTRE================,3804291786,1,425.00,ACQUISITIONS,15/11/12,425.00
139949,MR DAVID MYHILL===============,400647C,1,400.00,COUNSELS FEES,15/11/12,400.00
091112C,*BURLINGTON UNIFORMS LTD,412568,1,784.80,UNIFORMS - POMS,15/11/12,"2,140.20"
091112C,*BURLINGTON UNIFORMS LTD,412568,2,"1,355.40",UNIFORMS - POMS,15/11/12,
051112E,*BURLINGTON UNIFORMS LTD,412939,1,34.60,CLOTHING,15/11/12,405.17
051112E,*BURLINGTON UNIFORMS LTD,412939,2,34.60,CLOTHING,15/11/12,
051112E,*BURLINGTON UNIFORMS LTD,412939,3,20.15,CLOTHING,15/11/12,
051112E,*BURLINGTON UNIFORMS LTD,412939,4,20.15,CLOTHING,15/11/12,
051112E,*BURLINGTON UNIFORMS LTD,412939,5,34.60,CLOTHING,15/11/12,
051112E,*BURLINGTON UNIFORMS LTD,412939,6,34.60,CLOTHING,15/11/12,
051112E,*BURLINGTON UNIFORMS LTD,412939,7,34.60,CLOTHING,15/11/12,
051112E,*BURLINGTON UNIFORMS LTD,412939,8,191.87,CLOTHING,15/11/12,
121112E,URS SCOTT WILSON LIMITED,5119723,1,961.43,PROFESSIONA FEES - CLERK OF WORKS,15/11/12,961.43
121112C,URS SCOTT WILSON LIMITED,5294637,1,"4,582.00",PROFESSIONAL FEES - MISC,15/11/12,"4,582.00"
091112E,SIEMENS ENTERPRISE COMM LTD===,549G 6000837451,1,"3,500.00",PURCHASES - COMPUTERS,15/11/12,"4,250.00"
091112E,SIEMENS ENTERPRISE COMM LTD===,549G 6000837451,2,750.00,PURCHASES - COMPUTERS,15/11/12,
091112C,GAS & AIR SERVICES (UK)=======,5935,1,533.11,REPAIR & MAINTENANCE,15/11/12,533.11
121112C,LIEC PLC======================,65785,1,806.00,PUBLIC RELATIONS,15/11/12,806.00
131112G,*SP SERVICES,669387,1,395.00,OPERATIONAL EQUIP-PURCHASE,15/11/12,395.00
121112E,TWO SERVICES LTD==============,67602,1,336.50,CATERING EQUIPMENT,15/11/12,336.50
121112C,H & V HEATING & VENTILATING==,6920/0771/JE,1,758.93,STRATEGIC (NON CYCLICAL),15/11/12,"2,415.64"
121112C,H & V HEATING & VENTILATING==,6920/0771/JE,2,890.90,DEVELOPMENT EXP - CONTRACTORS,15/11/12,
121112C,H & V HEATING & VENTILATING==,6920/0771/JE,3,352.26,STRATEGIC (NON CYCLICAL),15/11/12,
121112C,H & V HEATING & VENTILATING==,6920/0771/JE,4,413.55,DEVELOPMENT EXP - CONTRACTORS,15/11/12,
131112G,SHARPE PRITCHARD==============,74911,1,"1,080.00",CONSULTANTS,15/11/12,"1,080.00"
011112E,NISBETS=======================,7940250,1,529.99,CATERING EQUIPMENT,15/11/12,529.99
139950,DEPARTMENT FOR WORK & PENSIONS,8424DWP,1,762.00,DOCTORS/MEDICAL FEES,15/11/12,762.00
800014287,*GET YOURSELF NOTICED LTD,8961,1,386.00,PUBLIC RELATIONS,15/11/12,386.00
800014290,*GET YOURSELF NOTICED LTD,8971,1,352.08,OPERATIONAL EQUIP-PURCHASE,15/11/12,996.10
800014290,*GET YOURSELF NOTICED LTD,8971,2,328.02,OPERATIONAL EQUIP-PURCHASE,15/11/12,
800014290,*GET YOURSELF NOTICED LTD,8971,3,316.00,OPERATIONAL EQUIP-PURCHASE,15/11/12,
800014288,*GET YOURSELF NOTICED LTD,8972,1,700.00,OPERATIONAL EQUIP-PURCHASE,15/11/12,700.00
091112C,DRAEGER SAFETY UK LIMITED=====,90394514,1,831.00,PROTECTIVE EQUIPT - PARTS,15/11/12,"2,120.80"
091112C,DRAEGER SAFETY UK LIMITED=====,90394514,2,"1,289.80",PROTECTIVE EQUIPT - PARTS,15/11/12,
091112C,CAPITAL CAPTURE LTD===========,9152,1,"4,603.20",MAINTENANCE & SUPPORT,15/11/12,"11,548.20"
091112C,CAPITAL CAPTURE LTD===========,9152,2,"2,700.00",MAINTENANCE & SUPPORT,15/11/12,
091112C,CAPITAL CAPTURE LTD===========,9152,3,800.00,MAINTENANCE & SUPPORT,15/11/12,
091112C,CAPITAL CAPTURE LTD===========,9152,4,"3,445.00",MAINTENANCE & SUPPORT,15/11/12,
121112E,OPERATIONAL RESEARCH IN HEALTH,94W/LFB1/26,1,"12,366.67",CONSULTANTS,15/11/12,"12,366.67"
139947,THAMES WATER UTILITIES LTD====,95240-85193P,1,843.19,WATER & SEWERAGE RATES,15/11/12,843.19
291012C,*OFFICE DEPOT UK LTD,955340169,1,595.00,STATIONERY CONSUMABLES,15/11/12,595.00
081112E,THAMES WATER UTILITIES LTD====,CBA1212877,1,"1,082.00",HYDRANTS,15/11/12,"1,082.00"
081112E,THAMES WATER UTILITIES LTD====,CBA1212885,1,436.00,CURRENT HYDRANT COSTS,15/11/12,436.00
121112C,COOPER CLARKE CONSTRUCTION LTD,CLA1/4/5138,1,753.73,STRATEGIC (NON CYCLICAL),15/11/12,753.73
121112E,LAKEHOUSE CONTRACTS LTD=======,CSINV11085,1,"143,386.15",DEVELOPMENT EXP - CONTRACTORS,15/11/12,"143,386.15"
091112E,THALES SECURITY LIMITED,EI004499,1,"2,270.00",MAINTENANCE & SUPPORT,15/11/12,"5,727.00"
091112E,THALES SECURITY LIMITED,EI004499,2,"3,457.00",MAINTENANCE & SUPPORT,15/11/12,
081112E,KCOM GROUP====================,INV0211710,1,270.00,TELECOMMUNICATIONS,15/11/12,270.00
091112C,SOCITM LIMITED===============,INV0637,1,"1,330.00",TRAINING & CONFERENCES,15/11/12,"1,330.00"
139950,THE LAW SOCIETY===============,LEXCEL*,1,300.00,PROFESSIONAL FEES GENERAL,15/11/12,300.00
121112C,BALFOUR BEATTY WORKPLACE LTD,M116317,1,355.00,STRATEGIC (NON CYCLICAL),15/11/12,355.00
121112E,RADIOCOMS SYSTEMS LIMITED=====,OP/I009148,1,750.00,RADIO,15/11/12,"1,891.85"
121112E,RADIOCOMS SYSTEMS LIMITED=====,OP/I009148,2,180.00,RADIO,15/11/12,
121112E,RADIOCOMS SYSTEMS LIMITED=====,OP/I009148,3,846.75,RADIO,15/11/12,
121112E,RADIOCOMS SYSTEMS LIMITED=====,OP/I009148,4,105.10,RADIO,15/11/12,
121112E,RADIOCOMS SYSTEMS LIMITED=====,OP/I009148,5,10.00,RADIO,15/11/12,
081112E,PILLINGER CONTROLS LTD========,PI70693,1,525.00,STRATEGIC (NON CYCLICAL),15/11/12,525.00
011112E,FIBERWEB GEOSYNTHETICS LTD,PSV87268,1,365.05,GENERAL CONSUMABLES,15/11/12,365.05
011112C,SKYGUARD LTD,SI01120060,1,"1,870.00",GENERAL,15/11/12,"1,870.00"
121112E,BRITISH TELECOM===============,VP 71178070M18301 9D,1,"3,191.28",CALL CHARGES,15/11/12,"22,075.90"
121112E,BRITISH TELECOM===============,VP 71178070M18301 9D,2,"18,884.62",TELECOMMUNICATIONS,15/11/12,
091112C,HEALTH MANAGEMENT LIMITED=====,0000089930,1,200.00,THIRD PARTY REPORTS,19/11/12,"3,284.10"
091112C,HEALTH MANAGEMENT LIMITED=====,0000089930,2,250.00,THIRD PARTY REPORTS,19/11/12,
091112C,HEALTH MANAGEMENT LIMITED=====,0000089930,3,350.00,THIRD PARTY REPORTS,19/11/12,
091112C,HEALTH MANAGEMENT LIMITED=====,0000089930,4,250.00,THIRD PARTY REPORTS,19/11/12,
091112C,HEALTH MANAGEMENT LIMITED=====,0000089930,5,250.00,THIRD PARTY REPORTS,19/11/12,
091112C,HEALTH MANAGEMENT LIMITED=====,0000089930,6,220.00,THIRD PARTY REPORTS,19/11/12,
091112C,HEALTH MANAGEMENT LIMITED=====,0000089930,7,"1,764.10",THIRD PARTY REPORTS,19/11/12,
071112C,HEALTH MANAGEMENT LIMITED=====,0000089931,1,600.00,OHS CONTRACT,19/11/12,"4,200.00"
071112C,HEALTH MANAGEMENT LIMITED=====,0000089931,2,600.00,OHS CONTRACT,19/11/12,
071112C,HEALTH MANAGEMENT LIMITED=====,0000089931,3,600.00,OHS CONTRACT,19/11/12,
071112C,HEALTH MANAGEMENT LIMITED=====,0000089931,4,600.00,OHS CONTRACT,19/11/12,
071112C,HEALTH MANAGEMENT LIMITED=====,0000089931,5,600.00,OHS CONTRACT,19/11/12,
071112C,HEALTH MANAGEMENT LIMITED=====,0000089931,6,600.00,OHS CONTRACT,19/11/12,
071112C,HEALTH MANAGEMENT LIMITED=====,0000089931,7,600.00,OHS CONTRACT,19/11/12,
121112E,HEALTH MANAGEMENT LIMITED=====,0000090136,1,557.49,DRUG & ALCOHOL TESTS,19/11/12,557.49
131112C,HEALTH MANAGEMENT LIMITED=====,0000090161,1,"1,005.30",THIRD PARTY REPORTS,19/11/12,"1,005.30"
131112E,EDWARDES BROS (DULWICH) LTD,0000776979,1,349.00,CATERING EQUIPMENT,19/11/12,349.00
141112C,FAITHORN FARRELL TIMMS========,008068,1,100.80,STRATEGIC (NON CYCLICAL),19/11/12,504.00
141112C,FAITHORN FARRELL TIMMS========,008068,2,100.80,STRATEGIC (NON CYCLICAL),19/11/12,
141112C,FAITHORN FARRELL TIMMS========,008068,3,100.80,STRATEGIC (NON CYCLICAL),19/11/12,
141112C,FAITHORN FARRELL TIMMS========,008068,4,100.80,STRATEGIC (NON CYCLICAL),19/11/12,
141112C,FAITHORN FARRELL TIMMS========,008068,5,100.80,STRATEGIC (NON CYCLICAL),19/11/12,
131112E,FAITHORN FARRELL TIMMS========,008257,1,126.00,STRATEGIC (NON CYCLICAL),19/11/12,504.00
131112E,FAITHORN FARRELL TIMMS========,008257,2,126.00,STRATEGIC (NON CYCLICAL),19/11/12,
131112E,FAITHORN FARRELL TIMMS========,008257,3,126.00,STRATEGIC (NON CYCLICAL),19/11/12,
131112E,FAITHORN FARRELL TIMMS========,008257,4,126.00,STRATEGIC (NON CYCLICAL),19/11/12,
141112C,FAITHORN FARRELL TIMMS========,008465,1,866.40,STRATEGIC (NON CYCLICAL),19/11/12,866.40
151112G,*PRINCIPAL CATERING CONSULTNTS,049339,1,198.95,REFRESHMENTS,19/11/12,272.55
151112G,*PRINCIPAL CATERING CONSULTNTS,049339,2,73.60,REFRESHMENTS,19/11/12,
151112G,SOUTHWARK COUNCIL=============,1000612131 3,1,"21,062.50",COMMUNITY RELATIONS,19/11/12,"21,062.50"
141112C,HAYS ACCOUNTANCY & FINANCE====,1002587595,1,696.00,FRS STAFF AGENCY,19/11/12,696.00
141112C,HAYS ACCOUNTANCY & FINANCE====,1002609007,1,696.00,FRS STAFF AGENCY,19/11/12,696.00
021112C,CARILLION COMMUNICATIONS LTD==,1011252,1,858.00,TACTICAL DAY TO DAY,19/11/12,858.00
161112C,ALLSTAR BUSINESS SOLUTIONS LTD,1019474594,1,211.52,FUEL,19/11/12,"22,718.23"
161112C,ALLSTAR BUSINESS SOLUTIONS LTD,1019474594,2,196.53,FUEL,19/11/12,
161112C,ALLSTAR BUSINESS SOLUTIONS LTD,1019474594,3,106.47,FUEL,19/11/12,
161112C,ALLSTAR BUSINESS SOLUTIONS LTD,1019474594,4,114.39,FUEL,19/11/12,
161112C,ALLSTAR BUSINESS SOLUTIONS LTD,1019474594,5,135.28,FUEL,19/11/12,
161112C,ALLSTAR BUSINESS SOLUTIONS LTD,1019474594,6,98.80,FUEL,19/11/12,
161112C,ALLSTAR BUSINESS SOLUTIONS LTD,1019474594,7,56.77,FUEL,19/11/12,
161112C,ALLSTAR BUSINESS SOLUTIONS LTD,1019474594,8,225.79,FUEL,19/11/12,
161112C,ALLSTAR BUSINESS SOLUTIONS LTD,1019474594,9,137.20,FUEL,19/11/12,
161112C,ALLSTAR BUSINESS SOLUTIONS LTD,1019474594,10,181.50,FUEL,19/11/12,
161112C,ALLSTAR BUSINESS SOLUTIONS LTD,1019474594,11,195.34,FUEL,19/11/12,
161112C,ALLSTAR BUSINESS SOLUTIONS LTD,1019474594,12,364.90,FUEL,19/11/12,
161112C,ALLSTAR BUSINESS SOLUTIONS LTD,1019474594,13,171.90,FUEL,19/11/12,
161112C,ALLSTAR BUSINESS SOLUTIONS LTD,1019474594,14,265.51,FUEL,19/11/12,
161112C,ALLSTAR BUSINESS SOLUTIONS LTD,1019474594,15,163.16,FUEL,19/11/12,
161112C,ALLSTAR BUSINESS SOLUTIONS LTD,1019474594,16,380.80,FUEL,19/11/12,
161112C,ALLSTAR BUSINESS SOLUTIONS LTD,1019474594,17,88.53,FUEL,19/11/12,
161112C,ALLSTAR BUSINESS SOLUTIONS LTD,1019474594,18,75.21,FUEL,19/11/12,
161112C,ALLSTAR BUSINESS SOLUTIONS LTD,1019474594,19,83.42,FUEL,19/11/12,
161112C,ALLSTAR BUSINESS SOLUTIONS LTD,1019474594,20,98.47,FUEL,19/11/12,
161112C,ALLSTAR BUSINESS SOLUTIONS LTD,1019474594,21,150.39,FUEL,19/11/12,
161112C,ALLSTAR BUSINESS SOLUTIONS LTD,1019474594,22,198.96,FUEL,19/11/12,
161112C,ALLSTAR BUSINESS SOLUTIONS LTD,1019474594,23,243.11,FUEL,19/11/12,
161112C,ALLSTAR BUSINESS SOLUTIONS LTD,1019474594,24,333.42,FUEL,19/11/12,
161112C,ALLSTAR BUSINESS SOLUTIONS LTD,1019474594,25,286.35,FUEL,19/11/12,
161112C,ALLSTAR BUSINESS SOLUTIONS LTD,1019474594,26,211.67,FUEL,19/11/12,
161112C,ALLSTAR BUSINESS SOLUTIONS LTD,1019474594,27,295.72,FUEL,19/11/12,
161112C,ALLSTAR BUSINESS SOLUTIONS LTD,1019474594,28,207.91,FUEL,19/11/12,
161112C,ALLSTAR BUSINESS SOLUTIONS LTD,1019474594,29,186.17,FUEL,19/11/12,
161112C,ALLSTAR BUSINESS SOLUTIONS LTD,1019474594,30,574.99,FUEL,19/11/12,
161112C,ALLSTAR BUSINESS SOLUTIONS LTD,1019474594,31,333.71,FUEL,19/11/12,
161112C,ALLSTAR BUSINESS SOLUTIONS LTD,1019474594,32,385.19,FUEL,19/11/12,
161112C,ALLSTAR BUSINESS SOLUTIONS LTD,1019474594,33,271.32,FUEL,19/11/12,
161112C,ALLSTAR BUSINESS SOLUTIONS LTD,1019474594,34,467.86,FUEL,19/11/12,
161112C,ALLSTAR BUSINESS SOLUTIONS LTD,1019474594,35,193.55,FUEL,19/11/12,
161112C,ALLSTAR BUSINESS SOLUTIONS LTD,1019474594,36,315.09,FUEL,19/11/12,
161112C,ALLSTAR BUSINESS SOLUTIONS LTD,1019474594,37,93.72,FUEL,19/11/12,
161112C,ALLSTAR BUSINESS SOLUTIONS LTD,1019474594,38,136.08,FUEL,19/11/12,
161112C,ALLSTAR BUSINESS SOLUTIONS LTD,1019474594,39,578.13,FUEL,19/11/12,
161112C,ALLSTAR BUSINESS SOLUTIONS LTD,1019474594,40,179.23,FUEL,19/11/12,
161112C,ALLSTAR BUSINESS SOLUTIONS LTD,1019474594,41,167.62,FUEL,19/11/12,
161112C,ALLSTAR BUSINESS SOLUTIONS LTD,1019474594,42,203.37,FUEL,19/11/12,
161112C,ALLSTAR BUSINESS SOLUTIONS LTD,1019474594,43,187.06,FUEL,19/11/12,
161112C,ALLSTAR BUSINESS SOLUTIONS LTD,1019474594,44,130.09,FUEL,19/11/12,
161112C,ALLSTAR BUSINESS SOLUTIONS LTD,1019474594,45,239.23,FUEL,19/11/12,
161112C,ALLSTAR BUSINESS SOLUTIONS LTD,1019474594,46,249.06,FUEL,19/11/12,
161112C,ALLSTAR BUSINESS SOLUTIONS LTD,1019474594,47,212.43,FUEL,19/11/12,
161112C,ALLSTAR BUSINESS SOLUTIONS LTD,1019474594,48,175.36,FUEL,19/11/12,
161112C,ALLSTAR BUSINESS SOLUTIONS LTD,1019474594,49,72.57,FUEL,19/11/12,
161112C,ALLSTAR BUSINESS SOLUTIONS LTD,1019474594,50,264.52,FUEL,19/11/12,
161112C,ALLSTAR BUSINESS SOLUTIONS LTD,1019474594,51,690.62,FUEL,19/11/12,
161112C,ALLSTAR BUSINESS SOLUTIONS LTD,1019474594,52,640.45,FUEL,19/11/12,
161112C,ALLSTAR BUSINESS SOLUTIONS LTD,1019474594,53,299.95,FUEL,19/11/12,
161112C,ALLSTAR BUSINESS SOLUTIONS LTD,1019474594,54,230.08,FUEL,19/11/12,
161112C,ALLSTAR BUSINESS SOLUTIONS LTD,1019474594,55,281.39,FUEL,19/11/12,
161112C,ALLSTAR BUSINESS SOLUTIONS LTD,1019474594,56,542.59,FUEL,19/11/12,
161112C,ALLSTAR BUSINESS SOLUTIONS LTD,1019474594,57,82.13,FUEL,19/11/12,
161112C,ALLSTAR BUSINESS SOLUTIONS LTD,1019474594,58,296.96,FUEL,19/11/12,
161112C,ALLSTAR BUSINESS SOLUTIONS LTD,1019474594,59,178.01,FUEL,19/11/12,
161112C,ALLSTAR BUSINESS SOLUTIONS LTD,1019474594,60,177.76,FUEL,19/11/12,
161112C,ALLSTAR BUSINESS SOLUTIONS LTD,1019474594,61,337.79,FUEL,19/11/12,
161112C,ALLSTAR BUSINESS SOLUTIONS LTD,1019474594,62,70.75,FUEL,19/11/12,
161112C,ALLSTAR BUSINESS SOLUTIONS LTD,1019474594,63,140.45,FUEL,19/11/12,
161112C,ALLSTAR BUSINESS SOLUTIONS LTD,1019474594,64,142.80,FUEL,19/11/12,
161112C,ALLSTAR BUSINESS SOLUTIONS LTD,1019474594,65,41.46,FUEL,19/11/12,
161112C,ALLSTAR BUSINESS SOLUTIONS LTD,1019474594,66,115.13,FUEL,19/11/12,
161112C,ALLSTAR BUSINESS SOLUTIONS LTD,1019474594,67,149.97,FUEL,19/11/12,
161112C,ALLSTAR BUSINESS SOLUTIONS LTD,1019474594,68,58.62,FUEL,19/11/12,
161112C,ALLSTAR BUSINESS SOLUTIONS LTD,1019474594,69,152.87,FUEL,19/11/12,
161112C,ALLSTAR BUSINESS SOLUTIONS LTD,1019474594,70,170.06,FUEL,19/11/12,
161112C,ALLSTAR BUSINESS SOLUTIONS LTD,1019474594,71,217.35,FUEL,19/11/12,
161112C,ALLSTAR BUSINESS SOLUTIONS LTD,1019474594,72,815.74,FUEL,19/11/12,
161112C,ALLSTAR BUSINESS SOLUTIONS LTD,1019474594,73,170.21,FUEL,19/11/12,
161112C,ALLSTAR BUSINESS SOLUTIONS LTD,1019474594,74,150.54,FUEL,19/11/12,
161112C,ALLSTAR BUSINESS SOLUTIONS LTD,1019474594,75,70.90,FUEL,19/11/12,
161112C,ALLSTAR BUSINESS SOLUTIONS LTD,1019474594,76,68.25,FUEL,19/11/12,
161112C,ALLSTAR BUSINESS SOLUTIONS LTD,1019474594,77,158.15,FUEL,19/11/12,
161112C,ALLSTAR BUSINESS SOLUTIONS LTD,1019474594,78,148.10,FUEL,19/11/12,
161112C,ALLSTAR BUSINESS SOLUTIONS LTD,1019474594,79,291.15,FUEL,19/11/12,
161112C,ALLSTAR BUSINESS SOLUTIONS LTD,1019474594,80,295.23,FUEL,19/11/12,
161112C,ALLSTAR BUSINESS SOLUTIONS LTD,1019474594,81,116.66,FUEL,19/11/12,
161112C,ALLSTAR BUSINESS SOLUTIONS LTD,1019474594,82,276.97,FUEL,19/11/12,
161112C,ALLSTAR BUSINESS SOLUTIONS LTD,1019474594,83,288.49,FUEL,19/11/12,
161112C,ALLSTAR BUSINESS SOLUTIONS LTD,1019474594,84,113.32,FUEL,19/11/12,
161112C,ALLSTAR BUSINESS SOLUTIONS LTD,1019474594,85,219.19,FUEL,19/11/12,
161112C,ALLSTAR BUSINESS SOLUTIONS LTD,1019474594,86,65.62,FUEL,19/11/12,
161112C,ALLSTAR BUSINESS SOLUTIONS LTD,1019474594,87,189.21,FUEL,19/11/12,
161112C,ALLSTAR BUSINESS SOLUTIONS LTD,1019474594,88,86.55,FUEL,19/11/12,
161112C,ALLSTAR BUSINESS SOLUTIONS LTD,1019474594,89,137.40,FUEL,19/11/12,
161112C,ALLSTAR BUSINESS SOLUTIONS LTD,1019474594,90,106.29,FUEL,19/11/12,
161112C,ALLSTAR BUSINESS SOLUTIONS LTD,1019474594,91,53.36,FUEL,19/11/12,
161112C,ALLSTAR BUSINESS SOLUTIONS LTD,1019474594,92,308.81,FUEL,19/11/12,
161112C,ALLSTAR BUSINESS SOLUTIONS LTD,1019474594,93,259.40,FUEL,19/11/12,
161112C,ALLSTAR BUSINESS SOLUTIONS LTD,1019474594,94,77.72,FUEL,19/11/12,
161112C,ALLSTAR BUSINESS SOLUTIONS LTD,1019474594,95,32.50,FUEL,19/11/12,
161112C,ALLSTAR BUSINESS SOLUTIONS LTD,1019474594,96,73.66,FUEL,19/11/12,
161112C,ALLSTAR BUSINESS SOLUTIONS LTD,1019474594,97,59.78,FUEL,19/11/12,
161112C,ALLSTAR BUSINESS SOLUTIONS LTD,1019474594,98,55.79,FUEL,19/11/12,
161112C,ALLSTAR BUSINESS SOLUTIONS LTD,1019474594,99,271.75,FUEL,19/11/12,
161112C,ALLSTAR BUSINESS SOLUTIONS LTD,1019474594,100,81.40,FUEL,19/11/12,
161112C,ALLSTAR BUSINESS SOLUTIONS LTD,1019474594,101,302.56,FUEL,19/11/12,
161112C,ALLSTAR BUSINESS SOLUTIONS LTD,1019474594,102,28.20,FUEL,19/11/12,
161112C,ALLSTAR BUSINESS SOLUTIONS LTD,1019474594,103,35.02,FUEL,19/11/12,
161112C,ALLSTAR BUSINESS SOLUTIONS LTD,1019474594,104,90.52,FUEL,19/11/12,
161112C,ALLSTAR BUSINESS SOLUTIONS LTD,1019474594,105,55.53,FUEL,19/11/12,
161112C,ALLSTAR BUSINESS SOLUTIONS LTD,1019474594,106,10.60,FUEL,19/11/12,
161112C,ALLSTAR BUSINESS SOLUTIONS LTD,1019474594,107,10.07,FUEL,19/11/12,
161112C,ALLSTAR BUSINESS SOLUTIONS LTD,1019474594,108,175.49,FUEL,19/11/12,
161112C,ALLSTAR BUSINESS SOLUTIONS LTD,1019474594,109,46.08,FUEL,19/11/12,
161112C,ALLSTAR BUSINESS SOLUTIONS LTD,1019474594,110,58.37,FUEL,19/11/12,
161112C,ALLSTAR BUSINESS SOLUTIONS LTD,1019474594,111,904.37,FUEL,19/11/12,
161112C,ALLSTAR BUSINESS SOLUTIONS LTD,1019474594,112,46.72,FUEL,19/11/12,
151112G,*SPRUE SAFETY PRODUCTS LTD====,1037539,1,"1,264.00",FIRE DETECTORS,19/11/12,"1,264.00"
151112G,*SPRUE SAFETY PRODUCTS LTD====,1037630,1,632.00,FIRE DETECTORS,19/11/12,632.00
139947,ARVAL UK LTD,1045239,1,312.02,LEASE CAR CHARGES,19/11/12,312.02
139947,ARVAL UK LTD,1045239,2,-23.94,VAT CAR LEASING,19/11/12,
139947,ARVAL UK LTD,1045239,3,23.94,LEASE CAR CHARGES,19/11/12,
139947,ARVAL UK LTD,1045240,1,388.52,LEASE CAR CHARGES,19/11/12,388.52
139947,ARVAL UK LTD,1045240,2,-31.53,VAT CAR LEASING,19/11/12,
139947,ARVAL UK LTD,1045240,3,31.53,LEASE CAR CHARGES,19/11/12,
139947,ARVAL UK LTD,1045241,1,486.46,LEASE CAR CHARGES,19/11/12,486.46
139947,ARVAL UK LTD,1045241,2,-39.79,VAT CAR LEASING,19/11/12,
139947,ARVAL UK LTD,1045241,3,39.79,LEASE CAR CHARGES,19/11/12,
139947,ARVAL UK LTD,1045242,1,322.12,LEASE CAR CHARGES,19/11/12,322.12
139947,ARVAL UK LTD,1045242,2,-26.46,VAT CAR LEASING,19/11/12,
139947,ARVAL UK LTD,1045242,3,26.46,LEASE CAR CHARGES,19/11/12,
139947,ARVAL UK LTD,1045243,1,522.45,LEASE CAR CHARGES,19/11/12,522.45
139947,ARVAL UK LTD,1045243,2,-43.72,VAT CAR LEASING,19/11/12,
139947,ARVAL UK LTD,1045243,3,43.72,LEASE CAR CHARGES,19/11/12,
139947,ARVAL UK LTD,1045244,1,336.37,LEASE CAR CHARGES,19/11/12,336.37
139947,ARVAL UK LTD,1045244,2,-26.83,VAT CAR LEASING,19/11/12,
139947,ARVAL UK LTD,1045244,3,26.83,LEASE CAR CHARGES,19/11/12,
139950,MISS NATASHA JOFFE============,107336A,1,900.00,COUNSELS FEES,19/11/12,900.00
131112C,VISTA LANDSCAPE MANAGEMENT LTD,117394,1,422.00,GROUNDS MAINTENANCE,19/11/12,852.00
131112C,VISTA LANDSCAPE MANAGEMENT LTD,117394,2,215.00,GROUNDS MAINTENANCE,19/11/12,
131112C,VISTA LANDSCAPE MANAGEMENT LTD,117394,3,155.00,GROUNDS MAINTENANCE,19/11/12,
131112C,VISTA LANDSCAPE MANAGEMENT LTD,117394,4,60.00,GROUNDS MAINTENANCE,19/11/12,
131112C,VISTA LANDSCAPE MANAGEMENT LTD,117400,1,245.00,GROUNDS MAINTENANCE,19/11/12,613.00
131112C,VISTA LANDSCAPE MANAGEMENT LTD,117400,2,245.00,GROUNDS MAINTENANCE,19/11/12,
131112C,VISTA LANDSCAPE MANAGEMENT LTD,117400,3,123.00,GROUNDS MAINTENANCE,19/11/12,
011112E,SILVERSANDS LIMITED===========,118854,1,475.00,MAINTENANCE & SUPPORT,19/11/12,475.00
091112E,SILVERSANDS LIMITED===========,118913,1,"16,449.00",MAINTENANCE & SUPPORT,19/11/12,"48,766.00"
091112E,SILVERSANDS LIMITED===========,118913,2,"6,376.00",MAINTENANCE & SUPPORT,19/11/12,
091112E,SILVERSANDS LIMITED===========,118913,3,"11,978.00",MAINTENANCE & SUPPORT,19/11/12,
091112E,SILVERSANDS LIMITED===========,118913,4,"10,087.00",MAINTENANCE & SUPPORT,19/11/12,
091112E,SILVERSANDS LIMITED===========,118913,5,855.00,MAINTENANCE & SUPPORT,19/11/12,
091112E,SILVERSANDS LIMITED===========,118913,6,"3,021.00",MAINTENANCE & SUPPORT,19/11/12,
131112E,BUREAU VERITAS UK LIMITED=====,12021024,1,938.00,CONSULTANTS,19/11/12,938.00
141112C,RESPIREX======================,140219,1,82.67,REPAIR & MAINTENANCE,19/11/12,324.99
141112C,RESPIREX======================,140219,2,48.67,REPAIR & MAINTENANCE,19/11/12,
141112C,RESPIREX======================,140219,3,171.98,REPAIR & MAINTENANCE,19/11/12,
141112C,RESPIREX======================,140219,4,21.67,REPAIR & MAINTENANCE,19/11/12,
131112E,BRITISH TELECOMMUNICATIONS PLC,141274,1,175.00,TELECOMMUNICATIONS,19/11/12,"23,508.14"
131112E,BRITISH TELECOMMUNICATIONS PLC,141274,2,"2,800.00",TELECOMMUNICATIONS,19/11/12,
131112E,BRITISH TELECOMMUNICATIONS PLC,141274,3,"20,533.14",TELECOMMUNICATIONS,19/11/12,
141112C,DRON & WRIGHT=================,16068,1,745.00,PROFESSIONAL SERVICES,19/11/12,745.00
091112E,IRON MOUNTAIN (UK) LTD========,16170354,1,"2,545.89",MAINTENANCE & SUPPORT,19/11/12,"2,545.89"
051112E,GREATER LONDON AUTHORITY======,1800002748,1,"5,738.00",GLA GROUP SHARED SERVICES,19/11/12,"5,738.00"
131112E,EXCEL GROUP SERVICES LIMITED,188990,1,302.83,POSTAL SERVICES,19/11/12,302.83
800014607,*XMA LTD,193468,1,58.86,STATIONERY CONSUMABLES,19/11/12,341.29
800014607,*XMA LTD,193468,2,55.28,STATIONERY CONSUMABLES,19/11/12,
800014607,*XMA LTD,193468,3,55.28,STATIONERY CONSUMABLES,19/11/12,
800014607,*XMA LTD,193468,4,171.87,STATIONERY CONSUMABLES,19/11/12,
131112E,STORM TECHNOLOGIES============,199840,1,750.00,ACQUISITIONS,19/11/12,"3,000.00"
131112E,STORM TECHNOLOGIES============,199840,2,750.00,ACQUISITIONS,19/11/12,
131112E,STORM TECHNOLOGIES============,199840,3,750.00,ACQUISITIONS,19/11/12,
131112E,STORM TECHNOLOGIES============,199840,4,750.00,ACQUISITIONS,19/11/12,
081112F,CODEGATE LIMITED==============,200109,1,690.00,REPAIR & MAINTENANCE,19/11/12,700.00
081112F,CODEGATE LIMITED==============,200109,2,10.00,REPAIR & MAINTENANCE,19/11/12,
141112C,AUTOGLASS LIMITED=============,20175525,1,827.18,WINDSCREEN & TYRE CHARGES,19/11/12,827.18
131112E,CRISPIN HUGHES================,2152-A,1,"1,491.00",PRINTING,19/11/12,"1,491.00"
071112C,PRECISE MEDIA MONITORING LTD==,221998,1,958.67,PRESS OFFICE,19/11/12,958.67
091112C,VODAFONE LIMITED==============,222914,1,"1,015.00",RADIO,19/11/12,"1,231.72"
091112C,VODAFONE LIMITED==============,222914,2,216.72,RADIO,19/11/12,
139950,MISS SARAH LE FEVRE===========,230685,1,548.33,PROFESSIONAL FEES ENFORCEMENT,19/11/12,548.33
139950,MISS SARAH LE FEVRE===========,230694,1,630.00,PROFESSIONAL FEES ENFORCEMENT,19/11/12,630.00
139950,MISS SARAH LE FEVRE===========,230713,1,513.33,PROFESSIONAL FEES ENFORCEMENT,19/11/12,513.33
131112E,PROJECTION ADVERTISING LTD,2362,1,"4,900.00",FILM & VIDEO,19/11/12,"4,900.00"
131112E,THE UTILITIES EXCHANGE LTD====,2367,1,"4,487.50",CONSULTANTS,19/11/12,"4,487.50"
141112C,MCGRATH BROS (WASTE CONTROL) L,271820,1,9.67,REFUSE COLLECTION,19/11/12,"16,497.57"
141112C,MCGRATH BROS (WASTE CONTROL) L,271820,2,271.80,REFUSE COLLECTION,19/11/12,
141112C,MCGRATH BROS (WASTE CONTROL) L,271820,3,89.20,REFUSE COLLECTION,19/11/12,
141112C,MCGRATH BROS (WASTE CONTROL) L,271820,4,214.20,REFUSE COLLECTION,19/11/12,
141112C,MCGRATH BROS (WASTE CONTROL) L,271820,5,75.50,REFUSE COLLECTION,19/11/12,
141112C,MCGRATH BROS (WASTE CONTROL) L,271820,6,111.50,REFUSE COLLECTION,19/11/12,
141112C,MCGRATH BROS (WASTE CONTROL) L,271820,7,75.50,REFUSE COLLECTION,19/11/12,
141112C,MCGRATH BROS (WASTE CONTROL) L,271820,8,120.80,REFUSE COLLECTION,19/11/12,
141112C,MCGRATH BROS (WASTE CONTROL) L,271820,9,151.00,REFUSE COLLECTION,19/11/12,
141112C,MCGRATH BROS (WASTE CONTROL) L,271820,10,89.20,REFUSE COLLECTION,19/11/12,
141112C,MCGRATH BROS (WASTE CONTROL) L,271820,11,60.40,REFUSE COLLECTION,19/11/12,
141112C,MCGRATH BROS (WASTE CONTROL) L,271820,12,75.50,REFUSE COLLECTION,19/11/12,
141112C,MCGRATH BROS (WASTE CONTROL) L,271820,13,115.00,REFUSE COLLECTION,19/11/12,
141112C,MCGRATH BROS (WASTE CONTROL) L,271820,14,143.10,REFUSE COLLECTION,19/11/12,
141112C,MCGRATH BROS (WASTE CONTROL) L,271820,15,271.80,REFUSE COLLECTION,19/11/12,
141112C,MCGRATH BROS (WASTE CONTROL) L,271820,16,111.50,REFUSE COLLECTION,19/11/12,
141112C,MCGRATH BROS (WASTE CONTROL) L,271820,17,271.80,REFUSE COLLECTION,19/11/12,
141112C,MCGRATH BROS (WASTE CONTROL) L,271820,18,75.50,REFUSE COLLECTION,19/11/12,
141112C,MCGRATH BROS (WASTE CONTROL) L,271820,19,271.80,REFUSE COLLECTION,19/11/12,
141112C,MCGRATH BROS (WASTE CONTROL) L,271820,20,271.80,REFUSE COLLECTION,19/11/12,
141112C,MCGRATH BROS (WASTE CONTROL) L,271820,21,342.90,REFUSE COLLECTION,19/11/12,
141112C,MCGRATH BROS (WASTE CONTROL) L,271820,22,135.90,REFUSE COLLECTION,19/11/12,
141112C,MCGRATH BROS (WASTE CONTROL) L,271820,23,75.50,REFUSE COLLECTION,19/11/12,
141112C,MCGRATH BROS (WASTE CONTROL) L,271820,24,75.50,REFUSE COLLECTION,19/11/12,
141112C,MCGRATH BROS (WASTE CONTROL) L,271820,25,75.50,REFUSE COLLECTION,19/11/12,
141112C,MCGRATH BROS (WASTE CONTROL) L,271820,26,75.50,REFUSE COLLECTION,19/11/12,
141112C,MCGRATH BROS (WASTE CONTROL) L,271820,27,111.50,REFUSE COLLECTION,19/11/12,
141112C,MCGRATH BROS (WASTE CONTROL) L,271820,28,60.40,REFUSE COLLECTION,19/11/12,
141112C,MCGRATH BROS (WASTE CONTROL) L,271820,29,271.80,REFUSE COLLECTION,19/11/12,
141112C,MCGRATH BROS (WASTE CONTROL) L,271820,30,208.60,REFUSE COLLECTION,19/11/12,
141112C,MCGRATH BROS (WASTE CONTROL) L,271820,31,75.50,REFUSE COLLECTION,19/11/12,
141112C,MCGRATH BROS (WASTE CONTROL) L,271820,32,111.50,REFUSE COLLECTION,19/11/12,
141112C,MCGRATH BROS (WASTE CONTROL) L,271820,33,271.80,REFUSE COLLECTION,19/11/12,
141112C,MCGRATH BROS (WASTE CONTROL) L,271820,34,89.20,REFUSE COLLECTION,19/11/12,
141112C,MCGRATH BROS (WASTE CONTROL) L,271820,35,111.50,REFUSE COLLECTION,19/11/12,
141112C,MCGRATH BROS (WASTE CONTROL) L,271820,36,120.80,REFUSE COLLECTION,19/11/12,
141112C,MCGRATH BROS (WASTE CONTROL) L,271820,37,89.20,REFUSE COLLECTION,19/11/12,
141112C,MCGRATH BROS (WASTE CONTROL) L,271820,38,151.00,REFUSE COLLECTION,19/11/12,
141112C,MCGRATH BROS (WASTE CONTROL) L,271820,39,115.00,REFUSE COLLECTION,19/11/12,
141112C,MCGRATH BROS (WASTE CONTROL) L,271820,40,60.40,REFUSE COLLECTION,19/11/12,
141112C,MCGRATH BROS (WASTE CONTROL) L,271820,41,208.60,REFUSE COLLECTION,19/11/12,
141112C,MCGRATH BROS (WASTE CONTROL) L,271820,42,208.60,REFUSE COLLECTION,19/11/12,
141112C,MCGRATH BROS (WASTE CONTROL) L,271820,43,111.50,REFUSE COLLECTION,19/11/12,
141112C,MCGRATH BROS (WASTE CONTROL) L,271820,44,75.50,REFUSE COLLECTION,19/11/12,
141112C,MCGRATH BROS (WASTE CONTROL) L,271820,45,60.40,REFUSE COLLECTION,19/11/12,
141112C,MCGRATH BROS (WASTE CONTROL) L,271820,46,271.80,REFUSE COLLECTION,19/11/12,
141112C,MCGRATH BROS (WASTE CONTROL) L,271820,47,208.60,REFUSE COLLECTION,19/11/12,
141112C,MCGRATH BROS (WASTE CONTROL) L,271820,48,111.50,REFUSE COLLECTION,19/11/12,
141112C,MCGRATH BROS (WASTE CONTROL) L,271820,49,60.40,REFUSE COLLECTION,19/11/12,
141112C,MCGRATH BROS (WASTE CONTROL) L,271820,50,67.60,REFUSE COLLECTION,19/11/12,
141112C,MCGRATH BROS (WASTE CONTROL) L,271820,51,111.50,REFUSE COLLECTION,19/11/12,
141112C,MCGRATH BROS (WASTE CONTROL) L,271820,52,271.80,REFUSE COLLECTION,19/11/12,
141112C,MCGRATH BROS (WASTE CONTROL) L,271820,53,75.50,REFUSE COLLECTION,19/11/12,
141112C,MCGRATH BROS (WASTE CONTROL) L,271820,54,75.50,REFUSE COLLECTION,19/11/12,
141112C,MCGRATH BROS (WASTE CONTROL) L,271820,55,111.50,REFUSE COLLECTION,19/11/12,
141112C,MCGRATH BROS (WASTE CONTROL) L,271820,56,60.40,REFUSE COLLECTION,19/11/12,
141112C,MCGRATH BROS (WASTE CONTROL) L,271820,57,115.00,REFUSE COLLECTION,19/11/12,
141112C,MCGRATH BROS (WASTE CONTROL) L,271820,58,75.50,REFUSE COLLECTION,19/11/12,
141112C,MCGRATH BROS (WASTE CONTROL) L,271820,59,151.00,REFUSE COLLECTION,19/11/12,
141112C,MCGRATH BROS (WASTE CONTROL) L,271820,60,60.40,REFUSE COLLECTION,19/11/12,
141112C,MCGRATH BROS (WASTE CONTROL) L,271820,61,271.80,REFUSE COLLECTION,19/11/12,
141112C,MCGRATH BROS (WASTE CONTROL) L,271820,62,111.50,REFUSE COLLECTION,19/11/12,
141112C,MCGRATH BROS (WASTE CONTROL) L,271820,63,111.50,REFUSE COLLECTION,19/11/12,
141112C,MCGRATH BROS (WASTE CONTROL) L,271820,64,75.50,REFUSE COLLECTION,19/11/12,
141112C,MCGRATH BROS (WASTE CONTROL) L,271820,65,286.20,REFUSE COLLECTION,19/11/12,
141112C,MCGRATH BROS (WASTE CONTROL) L,271820,66,75.50,REFUSE COLLECTION,19/11/12,
141112C,MCGRATH BROS (WASTE CONTROL) L,271820,67,271.80,REFUSE COLLECTION,19/11/12,
141112C,MCGRATH BROS (WASTE CONTROL) L,271820,68,75.50,REFUSE COLLECTION,19/11/12,
141112C,MCGRATH BROS (WASTE CONTROL) L,271820,69,111.50,REFUSE COLLECTION,19/11/12,
141112C,MCGRATH BROS (WASTE CONTROL) L,271820,70,111.50,REFUSE COLLECTION,19/11/12,
141112C,MCGRATH BROS (WASTE CONTROL) L,271820,71,111.50,REFUSE COLLECTION,19/11/12,
141112C,MCGRATH BROS (WASTE CONTROL) L,271820,72,111.50,REFUSE COLLECTION,19/11/12,
141112C,MCGRATH BROS (WASTE CONTROL) L,271820,73,60.40,REFUSE COLLECTION,19/11/12,
141112C,MCGRATH BROS (WASTE CONTROL) L,271820,74,271.80,REFUSE COLLECTION,19/11/12,
141112C,MCGRATH BROS (WASTE CONTROL) L,271820,75,75.50,REFUSE COLLECTION,19/11/12,
141112C,MCGRATH BROS (WASTE CONTROL) L,271820,76,111.50,REFUSE COLLECTION,19/11/12,
141112C,MCGRATH BROS (WASTE CONTROL) L,271820,77,99.20,REFUSE COLLECTION,19/11/12,
141112C,MCGRATH BROS (WASTE CONTROL) L,271820,78,89.20,REFUSE COLLECTION,19/11/12,
141112C,MCGRATH BROS (WASTE CONTROL) L,271820,79,99.20,REFUSE COLLECTION,19/11/12,
141112C,MCGRATH BROS (WASTE CONTROL) L,271820,80,75.50,REFUSE COLLECTION,19/11/12,
141112C,MCGRATH BROS (WASTE CONTROL) L,271820,81,75.50,REFUSE COLLECTION,19/11/12,
141112C,MCGRATH BROS (WASTE CONTROL) L,271820,82,75.50,REFUSE COLLECTION,19/11/12,
141112C,MCGRATH BROS (WASTE CONTROL) L,271820,83,75.50,REFUSE COLLECTION,19/11/12,
141112C,MCGRATH BROS (WASTE CONTROL) L,271820,84,271.80,REFUSE COLLECTION,19/11/12,
141112C,MCGRATH BROS (WASTE CONTROL) L,271820,85,271.80,REFUSE COLLECTION,19/11/12,
141112C,MCGRATH BROS (WASTE CONTROL) L,271820,86,111.50,REFUSE COLLECTION,19/11/12,
141112C,MCGRATH BROS (WASTE CONTROL) L,271820,87,75.50,REFUSE COLLECTION,19/11/12,
141112C,MCGRATH BROS (WASTE CONTROL) L,271820,88,115.00,REFUSE COLLECTION,19/11/12,
141112C,MCGRATH BROS (WASTE CONTROL) L,271820,89,97.10,REFUSE COLLECTION,19/11/12,
141112C,MCGRATH BROS (WASTE CONTROL) L,271820,90,75.50,REFUSE COLLECTION,19/11/12,
141112C,MCGRATH BROS (WASTE CONTROL) L,271820,91,523.60,REFUSE COLLECTION,19/11/12,
141112C,MCGRATH BROS (WASTE CONTROL) L,271820,92,75.50,REFUSE COLLECTION,19/11/12,
141112C,MCGRATH BROS (WASTE CONTROL) L,271820,93,60.40,REFUSE COLLECTION,19/11/12,
141112C,MCGRATH BROS (WASTE CONTROL) L,271820,94,271.80,REFUSE COLLECTION,19/11/12,
141112C,MCGRATH BROS (WASTE CONTROL) L,271820,95,75.50,REFUSE COLLECTION,19/11/12,
141112C,MCGRATH BROS (WASTE CONTROL) L,271820,96,111.50,REFUSE COLLECTION,19/11/12,
141112C,MCGRATH BROS (WASTE CONTROL) L,271820,97,111.50,REFUSE COLLECTION,19/11/12,
141112C,MCGRATH BROS (WASTE CONTROL) L,271820,98,271.80,REFUSE COLLECTION,19/11/12,
141112C,MCGRATH BROS (WASTE CONTROL) L,271820,99,104.30,REFUSE COLLECTION,19/11/12,
141112C,MCGRATH BROS (WASTE CONTROL) L,271820,100,"1,405.30",REFUSE COLLECTION,19/11/12,
141112C,MCGRATH BROS (WASTE CONTROL) L,271820,101,75.50,REFUSE COLLECTION,19/11/12,
141112C,MCGRATH BROS (WASTE CONTROL) L,271820,102,103.60,REFUSE COLLECTION,19/11/12,
141112C,MCGRATH BROS (WASTE CONTROL) L,271820,103,111.50,REFUSE COLLECTION,19/11/12,
141112C,MCGRATH BROS (WASTE CONTROL) L,271820,104,271.80,REFUSE COLLECTION,19/11/12,
141112C,MCGRATH BROS (WASTE CONTROL) L,271820,105,60.40,REFUSE COLLECTION,19/11/12,
141112C,MCGRATH BROS (WASTE CONTROL) L,271820,106,115.00,REFUSE COLLECTION,19/11/12,
141112C,MCGRATH BROS (WASTE CONTROL) L,271820,107,111.50,REFUSE COLLECTION,19/11/12,
141112C,MCGRATH BROS (WASTE CONTROL) L,271820,108,214.20,REFUSE COLLECTION,19/11/12,
141112C,MCGRATH BROS (WASTE CONTROL) L,271820,109,89.20,REFUSE COLLECTION,19/11/12,
141112C,MCGRATH BROS (WASTE CONTROL) L,271820,110,111.50,REFUSE COLLECTION,19/11/12,
141112C,MCGRATH BROS (WASTE CONTROL) L,271820,111,115.00,REFUSE COLLECTION,19/11/12,
141112C,MCGRATH BROS (WASTE CONTROL) L,271820,112,60.40,REFUSE COLLECTION,19/11/12,
141112C,MCGRATH BROS (WASTE CONTROL) L,271820,113,75.50,REFUSE COLLECTION,19/11/12,
141112C,MCGRATH BROS (WASTE CONTROL) L,271820,114,60.40,REFUSE COLLECTION,19/11/12,
141112C,MCGRATH BROS (WASTE CONTROL) L,271820,115,60.40,REFUSE COLLECTION,19/11/12,
141112C,PLANTFORCE====================,29347,1,603.00,TACTICAL DAY TO DAY,19/11/12,603.00
131112E,JSB TRAINING AND CONSULTING===,32948,1,495.00,TRAINING & CONFERENCES,19/11/12,495.00
131112E,HUNTERS CONTRACTS LIMITED,339925,1,581.75,OFFICE EQUIPMENT,19/11/12,581.75
139950,MR MICHAEL SALTER,34501,1,600.00,COUNSELS FEES,19/11/12,600.00
131112C,MUSCO LIGHTING EUROPE LTD=====,3513,1,"3,853.33",GENERAL,19/11/12,"3,853.33"
131112E,MUSCO LIGHTING EUROPE LTD=====,3553,1,"3,853.33",GENERAL,19/11/12,"3,853.33"
131112E,OPEN UNIVERSITY===============,374245,1,735.00,TRAINING & CONFERENCES,19/11/12,"1,700.00"
131112E,OPEN UNIVERSITY===============,374245,2,965.00,TRAINING & CONFERENCES,19/11/12,
141112C,PITNEY BOWES LTD==============,37601102,1,585.31,OFFICE EQUIPMENT,19/11/12,585.31
139950,DR DINSHAW MASTER,3823,1,700.00,DOCTORS/MEDICAL FEES,19/11/12,700.00
131112E,URS SCOTT WILSON LIMITED,5315719,1,783.53,PROFESSIONAL FEES - MISC,19/11/12,783.53
800014469,*GREENHAM TRADING LTD=========,5556835,1,29.30,HYGIENE,19/11/12,351.88
800014469,*GREENHAM TRADING LTD=========,5556835,2,39.60,HYGIENE,19/11/12,
800014469,*GREENHAM TRADING LTD=========,5556835,3,27.30,HYGIENE,19/11/12,
800014469,*GREENHAM TRADING LTD=========,5556835,4,132.48,OPERATIONAL EQUIP-PURCHASE,19/11/12,
800014469,*GREENHAM TRADING LTD=========,5556835,5,123.20,HYGIENE,19/11/12,
141112C,JFM MOVING SERVICES LTD=======,58870,1,"1,050.00",REMOVALS,19/11/12,"1,050.00"
131112C,GAS & AIR SERVICES (UK)=======,5938,1,"1,321.42",REPAIR & MAINTENANCE,19/11/12,"1,321.42"
141112C,AUTOMOTIVE LEASING LTD========,6102948,1,317.06,"INSPECTION,ROAD TAX & EXCESS MILEAGE",19/11/12,317.06
131112C,ANDERSON TRAVEL LTD===========,62070,1,310.00,CONTRACT HIRE,19/11/12,310.00
141112C,PREMIER HOSE TECHNOLOGIES LTD=,621124,1,291.00,OPERATIONAL EQUIP-PURCHASE,19/11/12,305.50
141112C,PREMIER HOSE TECHNOLOGIES LTD=,621124,2,14.50,OPERATIONAL EQUIP-PURCHASE,19/11/12,
131112E,MOORE STEPHENS CONSULTING LTD=,672857,1,"18,912.50",MAINTENANCE & SUPPORT,19/11/12,"18,912.50"
131112E,SWEETT  UK LTD,7017052,1,"4,825.00",PROFESSIONAL FEES - MISC,19/11/12,"4,825.00"
131112E,VIMPEX LIMITED================,74181,1,281.00,GENERAL CONSUMABLES,19/11/12,281.00
131112E,CANON (UK) LTD===============,770337377,1,282.91,OFFICE EQUIPMENT,19/11/12,282.91
151112G,CPL PETROLEUM=================,8383736,1,"4,552.40",FUEL,19/11/12,"4,552.40"
141112C,DRAEGER SAFETY UK LIMITED=====,90394993,1,37.60,PROTECTIVE EQUIPT - PARTS,19/11/12,463.00
141112C,DRAEGER SAFETY UK LIMITED=====,90394993,2,86.00,PROTECTIVE EQUIPT - PARTS,19/11/12,
141112C,DRAEGER SAFETY UK LIMITED=====,90394993,3,339.40,PROTECTIVE EQUIPT - PARTS,19/11/12,
701528,ANDREW HOLMES,99746,1,750.00,COUNSELS FEES,19/11/12,750.00
902232,ERSNT & YOUNG,GB10100036404,1,"22,494.00",EXTERNAL AUDIT,19/11/12,"22,494.00"
021112C,BALFOUR BEATTY WORKPLACE LTD,M116906,1,"1,326.00",STRATEGIC (NON CYCLICAL),19/11/12,"1,326.00"
021112C,BALFOUR BEATTY WORKPLACE LTD,M116907,1,"1,294.00",STRATEGIC (NON CYCLICAL),19/11/12,"1,294.00"
021112C,BALFOUR BEATTY WORKPLACE LTD,M116908,1,"2,381.00",STRATEGIC (NON CYCLICAL),19/11/12,"2,381.00"
021112C,BALFOUR BEATTY WORKPLACE LTD,M116909,1,"1,114.00",STRATEGIC (NON CYCLICAL),19/11/12,"1,114.00"
121112E,CONCATENO====================,MG260,1,235.00,DRUG & ALCOHOL TESTS,19/11/12,705.00
121112E,CONCATENO====================,MG260,2,235.00,DRUG & ALCOHOL TESTS,19/11/12,
121112E,CONCATENO====================,MG260,3,235.00,DRUG & ALCOHOL TESTS,19/11/12,
131112E,AQUA GAS AVK LTD==============,PSI48984,1,443.50,GENERAL CONSUMABLES,19/11/12,"1,286.00"
131112E,AQUA GAS AVK LTD==============,PSI48984,2,842.50,GENERAL CONSUMABLES,19/11/12,
091112C,PULLMAN MOTORS================,PULL132,1,"1,500.00",OPERATIONAL EQUIP-PURCHASE,19/11/12,"1,500.00"
091112C,PULLMAN MOTORS================,PULL133,1,270.00,"INSPECTION,ROAD TAX & EXCESS MILEAGE",19/11/12,270.00
091112C,PULLMAN MOTORS================,PULL134,1,900.00,OPERATIONAL EQUIP-PURCHASE,19/11/12,900.00
151112C,JEWERS SPECIALIST DOORS=======,0000008752,1,950.00,STRATEGIC (NON CYCLICAL),22/11/12,950.00
151112C,JEWERS SPECIALIST DOORS=======,0000008757,1,950.00,STRATEGIC (NON CYCLICAL),22/11/12,950.00
051112E,HEALTH MANAGEMENT LIMITED=====,0000089803,1,"113,556.67",OHS CONTRACT,22/11/12,"113,556.67"
151112C,HALLMARK CATERING & EQUIP HIRE,006622,1,388.20,PUBLIC RELATIONS,22/11/12,388.20
151112E,GEORGE JONES & SON LTD========,036098,1,629.13,STRATEGIC (NON CYCLICAL),22/11/12,629.13
191112C,AFFINITY WATER,101016046,1,533.00,CURRENT HYDRANT COSTS,22/11/12,533.00
191112C,AFFINITY WATER,101016047,1,555.00,HYDRANTS,22/11/12,555.00
191112C,AFFINITY WATER,101016048,1,533.00,CURRENT HYDRANT COSTS,22/11/12,533.00
191112C,AFFINITY WATER,101016050,1,818.00,CURRENT HYDRANT COSTS,22/11/12,818.00
191112C,AFFINITY WATER,101016051,1,818.00,CURRENT HYDRANT COSTS,22/11/12,818.00
191112C,AFFINITY WATER,101016052,1,818.00,CURRENT HYDRANT COSTS,22/11/12,818.00
191112C,AFFINITY WATER,101016055,1,818.00,CURRENT HYDRANT COSTS,22/11/12,818.00
191112C,AFFINITY WATER,101016057,1,535.00,CURRENT HYDRANT COSTS,22/11/12,535.00
191112C,AFFINITY WATER,101016062,1,359.00,CURRENT HYDRANT COSTS,22/11/12,359.00
191112C,AFFINITY WATER,101016063,1,754.00,CURRENT HYDRANT COSTS,22/11/12,754.00
191112C,AFFINITY WATER,101016068,1,754.00,CURRENT HYDRANT COSTS,22/11/12,754.00
191112C,AFFINITY WATER,101016069,1,754.00,CURRENT HYDRANT COSTS,22/11/12,754.00
191112C,AFFINITY WATER,101016071,1,403.00,CURRENT HYDRANT COSTS,22/11/12,403.00
191112C,AFFINITY WATER,101016075,1,"1,800.00",CURRENT HYDRANT COSTS,22/11/12,"1,800.00"
191112C,AFFINITY WATER,101016076,1,359.00,CURRENT HYDRANT COSTS,22/11/12,359.00
191112C,AFFINITY WATER,101016077,1,403.00,CURRENT HYDRANT COSTS,22/11/12,403.00
191112C,AFFINITY WATER,101016079,1,754.00,CURRENT HYDRANT COSTS,22/11/12,754.00
191112C,AFFINITY WATER,101016085,1,403.00,CURRENT HYDRANT COSTS,22/11/12,403.00
191112C,AFFINITY WATER,101016108,1,359.00,CURRENT HYDRANT COSTS,22/11/12,359.00
191112C,AFFINITY WATER,101016142,1,403.00,CURRENT HYDRANT COSTS,22/11/12,403.00
151112C,*SPRUE SAFETY PRODUCTS LTD====,1037156,1,632.00,FIRE DETECTORS,22/11/12,632.00
151112E,*SPRUE SAFETY PRODUCTS LTD====,1037615,1,"1,264.00",FIRE DETECTORS,22/11/12,"1,264.00"
151112E,*SPRUE SAFETY PRODUCTS LTD====,1038127,1,"1,769.60",FIRE DETECTORS,22/11/12,"1,769.60"
151112E,*SPRUE SAFETY PRODUCTS LTD====,1038135,1,"1,011.20",FIRE DETECTORS,22/11/12,"1,011.20"
151112E,R E CROSS====================,11 12 04 12,1,400.00,CONSULTANTS,22/11/12,400.00
151112E,R E CROSS====================,11 12 07 31,1,400.00,CONSULTANTS,22/11/12,400.00
151112E,INFOR (UNITED KINGDOM) LIMITED,11206790-GB04G,1,"3,745.00",MAINTENANCE & SUPPORT,22/11/12,"3,745.00"
161112C,BDO LLP,1142208,1,"2,230.50",CONSULTANTS,22/11/12,"2,230.50"
151112E,H J HALL & SON================,115402,1,718.70,UNIFORMS - POMS,22/11/12,718.70
151112E,H J HALL & SON================,115403,1,100.44,UNIFORMS - POMS,22/11/12,602.64
151112E,H J HALL & SON================,115403,2,502.20,UNIFORMS - POMS,22/11/12,
081112E,VISTA LANDSCAPE MANAGEMENT LTD,117406,1,140.21,GROUNDS MAINTENANCE,22/11/12,"2,930.41"
081112E,VISTA LANDSCAPE MANAGEMENT LTD,117406,2,22.67,GROUNDS MAINTENANCE,22/11/12,
081112E,VISTA LANDSCAPE MANAGEMENT LTD,117406,3,25.19,GROUNDS MAINTENANCE,22/11/12,
081112E,VISTA LANDSCAPE MANAGEMENT LTD,117406,4,28.22,GROUNDS MAINTENANCE,22/11/12,
081112E,VISTA LANDSCAPE MANAGEMENT LTD,117406,5,109.18,GROUNDS MAINTENANCE,22/11/12,
081112E,VISTA LANDSCAPE MANAGEMENT LTD,117406,6,21.38,GROUNDS MAINTENANCE,22/11/12,
081112E,VISTA LANDSCAPE MANAGEMENT LTD,117406,7,29.10,GROUNDS MAINTENANCE,22/11/12,
081112E,VISTA LANDSCAPE MANAGEMENT LTD,117406,8,22.42,GROUNDS MAINTENANCE,22/11/12,
081112E,VISTA LANDSCAPE MANAGEMENT LTD,117406,9,19.01,GROUNDS MAINTENANCE,22/11/12,
081112E,VISTA LANDSCAPE MANAGEMENT LTD,117406,10,19.10,GROUNDS MAINTENANCE,22/11/12,
081112E,VISTA LANDSCAPE MANAGEMENT LTD,117406,11,22.64,GROUNDS MAINTENANCE,22/11/12,
081112E,VISTA LANDSCAPE MANAGEMENT LTD,117406,12,33.19,GROUNDS MAINTENANCE,22/11/12,
081112E,VISTA LANDSCAPE MANAGEMENT LTD,117406,13,120.09,GROUNDS MAINTENANCE,22/11/12,
081112E,VISTA LANDSCAPE MANAGEMENT LTD,117406,14,18.42,GROUNDS MAINTENANCE,22/11/12,
081112E,VISTA LANDSCAPE MANAGEMENT LTD,117406,15,89.96,GROUNDS MAINTENANCE,22/11/12,
081112E,VISTA LANDSCAPE MANAGEMENT LTD,117406,16,25.11,GROUNDS MAINTENANCE,22/11/12,
081112E,VISTA LANDSCAPE MANAGEMENT LTD,117406,17,21.81,GROUNDS MAINTENANCE,22/11/12,
081112E,VISTA LANDSCAPE MANAGEMENT LTD,117406,18,137.70,GROUNDS MAINTENANCE,22/11/12,
081112E,VISTA LANDSCAPE MANAGEMENT LTD,117406,19,20.23,GROUNDS MAINTENANCE,22/11/12,
081112E,VISTA LANDSCAPE MANAGEMENT LTD,117406,20,21.77,GROUNDS MAINTENANCE,22/11/12,
081112E,VISTA LANDSCAPE MANAGEMENT LTD,117406,21,15.43,GROUNDS MAINTENANCE,22/11/12,
081112E,VISTA LANDSCAPE MANAGEMENT LTD,117406,22,20.90,GROUNDS MAINTENANCE,22/11/12,
081112E,VISTA LANDSCAPE MANAGEMENT LTD,117406,23,21.75,GROUNDS MAINTENANCE,22/11/12,
081112E,VISTA LANDSCAPE MANAGEMENT LTD,117406,24,25.45,GROUNDS MAINTENANCE,22/11/12,
081112E,VISTA LANDSCAPE MANAGEMENT LTD,117406,25,23.62,GROUNDS MAINTENANCE,22/11/12,
081112E,VISTA LANDSCAPE MANAGEMENT LTD,117406,26,64.17,GROUNDS MAINTENANCE,22/11/12,
081112E,VISTA LANDSCAPE MANAGEMENT LTD,117406,27,19.31,GROUNDS MAINTENANCE,22/11/12,
081112E,VISTA LANDSCAPE MANAGEMENT LTD,117406,28,19.18,GROUNDS MAINTENANCE,22/11/12,
081112E,VISTA LANDSCAPE MANAGEMENT LTD,117406,29,17.08,GROUNDS MAINTENANCE,22/11/12,
081112E,VISTA LANDSCAPE MANAGEMENT LTD,117406,30,87.10,GROUNDS MAINTENANCE,22/11/12,
081112E,VISTA LANDSCAPE MANAGEMENT LTD,117406,31,92.00,GROUNDS MAINTENANCE,22/11/12,
081112E,VISTA LANDSCAPE MANAGEMENT LTD,117406,32,20.48,GROUNDS MAINTENANCE,22/11/12,
081112E,VISTA LANDSCAPE MANAGEMENT LTD,117406,33,276.21,GROUNDS MAINTENANCE,22/11/12,
081112E,VISTA LANDSCAPE MANAGEMENT LTD,117406,34,19.97,GROUNDS MAINTENANCE,22/11/12,
081112E,VISTA LANDSCAPE MANAGEMENT LTD,117406,35,69.19,GROUNDS MAINTENANCE,22/11/12,
081112E,VISTA LANDSCAPE MANAGEMENT LTD,117406,36,18.49,GROUNDS MAINTENANCE,22/11/12,
081112E,VISTA LANDSCAPE MANAGEMENT LTD,117406,37,19.98,GROUNDS MAINTENANCE,22/11/12,
081112E,VISTA LANDSCAPE MANAGEMENT LTD,117406,38,19.30,GROUNDS MAINTENANCE,22/11/12,
081112E,VISTA LANDSCAPE MANAGEMENT LTD,117406,39,86.80,GROUNDS MAINTENANCE,22/11/12,
081112E,VISTA LANDSCAPE MANAGEMENT LTD,117406,40,128.26,GROUNDS MAINTENANCE,22/11/12,
081112E,VISTA LANDSCAPE MANAGEMENT LTD,117406,41,17.02,GROUNDS MAINTENANCE,22/11/12,
081112E,VISTA LANDSCAPE MANAGEMENT LTD,117406,42,747.72,GROUNDS MAINTENANCE,22/11/12,
081112E,VISTA LANDSCAPE MANAGEMENT LTD,117406,43,68.14,GROUNDS MAINTENANCE,22/11/12,
081112E,VISTA LANDSCAPE MANAGEMENT LTD,117406,44,60.24,GROUNDS MAINTENANCE,22/11/12,
081112E,VISTA LANDSCAPE MANAGEMENT LTD,117406,45,25.22,GROUNDS MAINTENANCE,22/11/12,
151112C,CARPETS & FLOOR COVERS DIRECT=,1315,1,"1,198.00",FIXTURES & FITTINGS,22/11/12,"1,198.00"
161112C,CARPETS & FLOOR COVERS DIRECT=,1320,1,"1,682.00",FIXTURES & FITTINGS,22/11/12,"1,682.00"
161112C,CARPETS & FLOOR COVERS DIRECT=,1321,1,"3,809.00",FIXTURES & FITTINGS,22/11/12,"3,809.00"
191112E,SURREY BLIND & CURTAIN CO=====,13535,1,38.00,FIXTURES & FITTINGS,22/11/12,327.00
191112E,SURREY BLIND & CURTAIN CO=====,13535,2,289.00,FIXTURES & FITTINGS,22/11/12,
191112E,COMPLETE TRANSPORT SOLUTIONS=,1372,1,276.71,PUBLIC TRANSPORT,22/11/12,276.71
201112G,CH HAULAGE,14270,1,600.00,COMMUNITY RELATIONS,22/11/12,600.00
151112E,GP CONTRACTS==================,14480,1,400.00,STRATEGIC (NON CYCLICAL),22/11/12,400.00
139954,B NOKES CONTRACTS LTD,1576,1,287.50,DAY TO DAY MINOR IMPS,22/11/12,665.50
139954,B NOKES CONTRACTS LTD,1576,2,378.00,DAY TO DAY MINOR IMPS,22/11/12,
139954,B NOKES CONTRACTS LTD,1578,1,"2,679.50",DAY TO DAY MINOR IMPS,22/11/12,"3,099.50"
139954,B NOKES CONTRACTS LTD,1578,2,420.00,DAY TO DAY MINOR IMPS,22/11/12,
139954,B NOKES CONTRACTS LTD,1582,1,943.50,DAY TO DAY MINOR IMPS,22/11/12,"1,363.50"
139954,B NOKES CONTRACTS LTD,1582,2,420.00,DAY TO DAY MINOR IMPS,22/11/12,
139954,B NOKES CONTRACTS LTD,1583,1,517.50,DAY TO DAY MINOR IMPS,22/11/12,769.50
139954,B NOKES CONTRACTS LTD,1583,2,252.00,DAY TO DAY MINOR IMPS,22/11/12,
161112C,AIRSERVICES(UK)===============,15875,1,26.00,REPAIR & MAINTENANCE,22/11/12,370.00
161112C,AIRSERVICES(UK)===============,15875,2,13.00,REPAIR & MAINTENANCE,22/11/12,
161112C,AIRSERVICES(UK)===============,15875,3,117.00,REPAIR & MAINTENANCE,22/11/12,
161112C,AIRSERVICES(UK)===============,15875,4,52.00,REPAIR & MAINTENANCE,22/11/12,
161112C,AIRSERVICES(UK)===============,15875,5,156.00,REPAIR & MAINTENANCE,22/11/12,
161112C,AIRSERVICES(UK)===============,15875,6,6.00,REPAIR & MAINTENANCE,22/11/12,
139953,AFFINITY WATER,17023072T,1,445.90,WATER & SEWERAGE RATES,22/11/12,445.90
139953,EDF ENERGY===================,1785676826,1,969.22,ELECTRICITY,22/11/12,969.22
139953,EDF ENERGY===================,1813823616,1,"15,580.44",ELECTRICITY,22/11/12,"15,580.44"
151112E,BRISTOL UNIFORMS LTD==========,199708,1,"188,417.76",CLOTHING,22/11/12,"188,417.76"
139953,AFFINITY WATER,2075273&P,1,314.37,WATER & SEWERAGE RATES,22/11/12,314.37
151112C,ARKAS LIMITED=================,22957,1,"3,000.00",STRATEGIC (NON CYCLICAL),22/11/12,"3,000.00"
201112G,DRAIN CONTROL=================,23222,1,900.00,STRATEGIC (CYCLICAL),22/11/12,900.00
201112G,DRAIN CONTROL=================,23223,1,900.00,STRATEGIC (CYCLICAL),22/11/12,900.00
201112G,DRAIN CONTROL=================,23240,1,900.00,STRATEGIC (CYCLICAL),22/11/12,900.00
201112G,DRAIN CONTROL=================,23756,1,900.00,STRATEGIC (CYCLICAL),22/11/12,900.00
800014787,ADECCO UK LIMITED=============,26197840,1,386.05,FRS STAFF AGENCY,22/11/12,386.05
800014788,ADECCO UK LIMITED=============,26197841,1,389.55,FRS STAFF AGENCY,22/11/12,389.55
800014789,ADECCO UK LIMITED=============,26197842,1,308.84,FRS STAFF AGENCY,22/11/12,308.84
800014790,ADECCO UK LIMITED=============,26197843,1,581.35,FRS STAFF AGENCY,22/11/12,581.35
800014792,ADECCO UK LIMITED=============,26197845,1,698.95,FRS STAFF AGENCY,22/11/12,698.95
800014793,ADECCO UK LIMITED=============,26197846,1,"1,173.42",FRS STAFF AGENCY,22/11/12,"1,173.42"
800014794,ADECCO UK LIMITED=============,26197847,1,581.35,FRS STAFF AGENCY,22/11/12,581.35
800014795,ADECCO UK LIMITED=============,26197848,1,"1,426.25",FRS STAFF AGENCY,22/11/12,"1,426.25"
800014796,ADECCO UK LIMITED=============,26197849,1,465.08,FRS STAFF AGENCY,22/11/12,465.08
800014797,ADECCO UK LIMITED=============,26197850,1,501.90,FRS STAFF AGENCY,22/11/12,501.90
800014798,ADECCO UK LIMITED=============,26197851,1,698.95,FRS STAFF AGENCY,22/11/12,698.95
800014799,ADECCO UK LIMITED=============,26197852,1,531.52,FRS STAFF AGENCY,22/11/12,531.52
800014800,ADECCO UK LIMITED=============,26197853,1,432.60,FRS STAFF AGENCY,22/11/12,432.60
800014801,ADECCO UK LIMITED=============,26197854,1,348.81,FRS STAFF AGENCY,22/11/12,348.81
800014802,ADECCO UK LIMITED=============,26197855,1,499.80,FRS STAFF AGENCY,22/11/12,499.80
800014803,ADECCO UK LIMITED=============,26197856,1,541.31,FRS STAFF AGENCY,22/11/12,541.31
800014804,ADECCO UK LIMITED=============,26197857,1,547.05,FRS STAFF AGENCY,22/11/12,547.05
800014805,ADECCO UK LIMITED=============,26197858,1,549.15,FRS STAFF AGENCY,22/11/12,549.15
800014806,ADECCO UK LIMITED=============,26197859,1,581.35,FRS STAFF AGENCY,22/11/12,581.35
800014807,ADECCO UK LIMITED=============,26197860,1,"1,199.08",FRS STAFF AGENCY,22/11/12,"1,199.08"
800014808,ADECCO UK LIMITED=============,26197861,1,963.60,FRS STAFF AGENCY,22/11/12,963.60
800014809,ADECCO UK LIMITED=============,26197862,1,739.00,FRS STAFF AGENCY,22/11/12,739.00
800014810,ADECCO UK LIMITED=============,26197863,1,432.60,FRS STAFF AGENCY,22/11/12,432.60
800014812,ADECCO UK LIMITED=============,26202351,1,710.50,FRS STAFF AGENCY,22/11/12,710.50
800014855,ADECCO UK LIMITED=============,26205834,1,568.76,FRS STAFF AGENCY,22/11/12,568.76
800014858,ADECCO UK LIMITED=============,26205837,1,386.05,FRS STAFF AGENCY,22/11/12,386.05
800014859,ADECCO UK LIMITED=============,26205838,1,946.49,FRS STAFF AGENCY,22/11/12,946.49
800014860,ADECCO UK LIMITED=============,26205839,1,432.60,FRS STAFF AGENCY,22/11/12,432.60
800014903,ADECCO UK LIMITED=============,26205840,1,299.88,FRS STAFF AGENCY,22/11/12,299.88
800014862,ADECCO UK LIMITED=============,26205841,1,581.35,FRS STAFF AGENCY,22/11/12,581.35
800014863,ADECCO UK LIMITED=============,26205842,1,"1,199.08",FRS STAFF AGENCY,22/11/12,"1,199.08"
800014864,ADECCO UK LIMITED=============,26205843,1,823.99,FRS STAFF AGENCY,22/11/12,823.99
800014865,ADECCO UK LIMITED=============,26205844,1,432.60,FRS STAFF AGENCY,22/11/12,432.60
800014904,ADECCO UK LIMITED=============,26205845,1,348.81,FRS STAFF AGENCY,22/11/12,348.81
800014868,ADECCO UK LIMITED=============,26205847,1,432.60,FRS STAFF AGENCY,22/11/12,432.60
800014869,ADECCO UK LIMITED=============,26205848,1,329.49,FRS STAFF AGENCY,22/11/12,329.49
800014870,ADECCO UK LIMITED=============,26205849,1,581.35,FRS STAFF AGENCY,22/11/12,581.35
800014871,ADECCO UK LIMITED=============,26205850,1,284.28,FRS STAFF AGENCY,22/11/12,284.28
800014905,ADECCO UK LIMITED=============,26205851,1,953.02,FRS STAFF AGENCY,22/11/12,953.02
800014873,ADECCO UK LIMITED=============,26205852,1,698.95,FRS STAFF AGENCY,22/11/12,698.95
800014874,ADECCO UK LIMITED=============,26205853,1,"1,419.25",FRS STAFF AGENCY,22/11/12,"1,419.25"
800014906,ADECCO UK LIMITED=============,26205855,1,348.81,FRS STAFF AGENCY,22/11/12,348.81
800014877,ADECCO UK LIMITED=============,26205856,1,698.95,FRS STAFF AGENCY,22/11/12,698.95
800014878,ADECCO UK LIMITED=============,26205857,1,912.66,FRS STAFF AGENCY,22/11/12,912.66
800014879,ADECCO UK LIMITED=============,26205858,1,301.14,FRS STAFF AGENCY,22/11/12,301.14
800014880,ADECCO UK LIMITED=============,26205859,1,322.42,FRS STAFF AGENCY,22/11/12,322.42
800014881,ADECCO UK LIMITED=============,26205860,1,570.50,FRS STAFF AGENCY,22/11/12,570.50
800014882,ADECCO UK LIMITED=============,26205861,1,501.90,FRS STAFF AGENCY,22/11/12,501.90
800014883,ADECCO UK LIMITED=============,26205862,1,581.35,FRS STAFF AGENCY,22/11/12,581.35
800014899,ADECCO UK LIMITED=============,26209866,1,284.20,FRS STAFF AGENCY,22/11/12,284.20
800014900,ADECCO UK LIMITED=============,26209867,1,"1,017.66",FRS STAFF AGENCY,22/11/12,"1,017.66"
800014885,ADECCO UK LIMITED=============,26209868,1,"1,017.66",FRS STAFF AGENCY,22/11/12,"1,017.66"
800014886,ADECCO UK LIMITED=============,26209869,1,"1,098.65",FRS STAFF AGENCY,22/11/12,"1,098.65"
800014887,ADECCO UK LIMITED=============,26209870,1,"1,098.65",FRS STAFF AGENCY,22/11/12,"1,098.65"
800014884,ADECCO UK LIMITED=============,26209871,1,710.50,FRS STAFF AGENCY,22/11/12,710.50
